Organisation Code,Organisation Label,Effective Date,Organisational Unit,Service Division Label,Category Internal Name,Purpose,Detailed Expenditure Code,Payment Date,Transaction Number,Irrecoverable VAT Amount,Amount,Capital Or Revenue,Benificiary Name,Procurement Card
Http://opendatacommunities.org/id/metropolitan-district-council/leeds,Leeds City Council,28/02/2019,Adults and Health,Social Services Support Services,Employees,Training & Development,70,28/02/2019,1902-00001,0.00,13.00,R,REDACTED PERSONAL DATA,No
Http://opendatacommunities.org/id/metropolitan-district-council/leeds,Leeds City Council,28/02/2019,Resources and Housing,Leeds Building Services,Supplies and Services,Operational Materials,205,05/02/2019,1902-00002,0.00,38.85,R,A Andrews & Sons (Marbles & Tiles),No
Http://opendatacommunities.org/id/metropolitan-district-council/leeds,Leeds City Council,28/02/2019,City Development,Planning & Sustainable Development,Income,Building Regulation Fees,929,14/02/2019,1902-00003,0.00,25.00,R,REDACTED PERSONAL DATA,No
Http://opendatacommunities.org/id/metropolitan-district-council/leeds,Leeds City Council,28/02/2019,Resources and Housing,Leeds Building Services,Supplies and Services,Other Hired And Contracted Services,265,11/02/2019,1902-00004,0.00,21560.00,R,A Buckler (Haulage) Ltd,No
Http://opendatacommunities.org/id/metropolitan-district-council/leeds,Leeds City Council,28/02/2019,Resources and Housing,Leeds Building Services,Supplies and Services,Other Hired And Contracted Services,265,11/02/2019,1902-00005,0.00,14065.00,R,A Buckler (Haulage) Ltd,No
Http://opendatacommunities.org/id/metropolitan-district-council/leeds,Leeds City Council,28/02/2019,City Development,Libraries  Arts & Heritage,Supplies and Services,Operational Furniture And Equipment,203,15/02/2019,1902-00006,0.00,232.23,R,A C Entertainment Technologies Ltd,No
Http://opendatacommunities.org/id/metropolitan-district-council/leeds,Leeds City Council,28/02/2019,Children and Families,Social Care,Third Party Payments,Services Rendered By Other Organisations,511,15/02/2019,1902-00007,0.00,124.67,R,REDACTED PERSONAL DATA,No
Http://opendatacommunities.org/id/metropolitan-district-council/leeds,Leeds City Council,28/02/2019,Children and Families,Social Care,Third Party Payments,Services Rendered By Other Organisations,511,15/02/2019,1902-00008,0.00,701.25,R,REDACTED PERSONAL DATA,No
Http://opendatacommunities.org/id/metropolitan-district-council/leeds,Leeds City Council,28/02/2019,Children and Families,Social Care,Third Party Payments,Services Rendered By Other Organisations,511,26/02/2019,1902-00009,0.00,59.33,R,REDACTED PERSONAL DATA,No
Http://opendatacommunities.org/id/metropolitan-district-council/leeds,Leeds City Council,28/02/2019,Resources and Housing,HRA Housing Leeds,Capital,Construction,3,04/02/2019,1902-00010,0.00,73217.02,C,A Connolly Limited,No
Http://opendatacommunities.org/id/metropolitan-district-council/leeds,Leeds City Council,28/02/2019,Children and Families,Social Care,Third Party Payments,Services Rendered By Other Organisations,511,20/02/2019,1902-00011,0.00,2131.80,R,REDACTED PERSONAL DATA,No
Http://opendatacommunities.org/id/metropolitan-district-council/leeds,Leeds City Council,28/02/2019,Children and Families,Social Care,Third Party Payments,Services Rendered By Voluntary Sector,505,15/02/2019,1902-00012,0.00,5376.25,R,REDACTED PERSONAL DATA,No
Http://opendatacommunities.org/id/metropolitan-district-council/leeds,Leeds City Council,28/02/2019,Children and Families,Social Care,Third Party Payments,Services Rendered By Voluntary Sector,505,26/02/2019,1902-00013,0.00,320.33,R,REDACTED PERSONAL DATA,No
Http://opendatacommunities.org/id/metropolitan-district-council/leeds,Leeds City Council,28/02/2019,City Development,Highways,Capital,Construction,3,27/02/2019,1902-00014,0.00,82292.65,C,A E Yates Ltd,No
Http://opendatacommunities.org/id/metropolitan-district-council/leeds,Leeds City Council,28/02/2019,City Development,Asset Management,Capital,Other Costs,7,20/02/2019,1902-00015,0.00,11518.00,C,A F Connell Ltd,No
Http://opendatacommunities.org/id/metropolitan-district-council/leeds,Leeds City Council,28/02/2019,Resources and Housing,HRA Housing Leeds,Capital,Other Costs,7,28/02/2019,1902-00016,0.00,249.22,C,REDACTED PERSONAL DATA,No
Http://opendatacommunities.org/id/metropolitan-district-council/leeds,Leeds City Council,28/02/2019,Children and Families,Social Care,Third Party Payments,Services Rendered By Other Organisations,511,15/02/2019,1902-00017,0.00,1527.17,R,REDACTED PERSONAL DATA,No
Http://opendatacommunities.org/id/metropolitan-district-council/leeds,Leeds City Council,28/02/2019,Children and Families,Social Care,Third Party Payments,Services Rendered By Other Organisations,511,15/02/2019,1902-00018,0.00,233.75,R,REDACTED PERSONAL DATA,No
Http://opendatacommunities.org/id/metropolitan-district-council/leeds,Leeds City Council,28/02/2019,Communities and Environment,Communities,Supplies and Services,Well Being Small Grants Projects,228,28/02/2019,1902-00019,0.00,44.93,R,REDACTED PERSONAL DATA,No
Http://opendatacommunities.org/id/metropolitan-district-council/leeds,Leeds City Council,28/02/2019,Children and Families,Social Care,Third Party Payments,Services Rendered By Other Organisations,511,15/02/2019,1902-00020,0.00,233.75,R,REDACTED PERSONAL DATA,No
Http://opendatacommunities.org/id/metropolitan-district-council/leeds,Leeds City Council,28/02/2019,Children and Families,Social Care,Third Party Payments,Services Rendered By Other Organisations,511,15/02/2019,1902-00021,0.00,249.34,R,REDACTED PERSONAL DATA,No
Http://opendatacommunities.org/id/metropolitan-district-council/leeds,Leeds City Council,28/02/2019,Children and Families,Social Care,Third Party Payments,Services Rendered By Other Organisations,511,15/02/2019,1902-00022,0.00,467.50,R,REDACTED PERSONAL DATA,No
Http://opendatacommunities.org/id/metropolitan-district-council/leeds,Leeds City Council,28/02/2019,City Development,Libraries  Arts & Heritage,Supplies and Services,Other Hired And Contracted Services,265,14/02/2019,1902-00023,0.00,575.00,R,REDACTED COMMERCIAL CONFIDENTIALITY,No
Http://opendatacommunities.org/id/metropolitan-district-council/leeds,Leeds City Council,28/02/2019,City Development,Libraries  Arts & Heritage,Supplies and Services,Other Hired And Contracted Services,265,28/02/2019,1902-00024,0.00,195.00,R,REDACTED COMMERCIAL CONFIDENTIALITY,No
Http://opendatacommunities.org/id/metropolitan-district-council/leeds,Leeds City Council,28/02/2019,Resources and Housing,Leeds Building Services,Supplies and Services,Other Hired And Contracted Services,265,06/02/2019,1902-00025,0.00,445.00,R,A J H  Pump Supply & Repair Ltd,No
Http://opendatacommunities.org/id/metropolitan-district-council/leeds,Leeds City Council,28/02/2019,Resources and Housing,Leeds Building Services,Supplies and Services,Operational Materials,205,05/02/2019,1902-00026,0.00,229.50,R,A J H  Pump Supply & Repair Ltd,No
Http://opendatacommunities.org/id/metropolitan-district-council/leeds,Leeds City Council,28/02/2019,Resources and Housing,Leeds Building Services,Supplies and Services,Operational Materials,205,07/02/2019,1902-00027,0.00,214.12,R,A J H  Pump Supply & Repair Ltd,No
Http://opendatacommunities.org/id/metropolitan-district-council/leeds,Leeds City Council,28/02/2019,Resources and Housing,Leeds Building Services,Supplies and Services,Operational Materials,205,06/02/2019,1902-00028,0.00,7.00,R,A J H  Pump Supply & Repair Ltd,No
Http://opendatacommunities.org/id/metropolitan-district-council/leeds,Leeds City Council,28/02/2019,Resources and Housing,Leeds Building Services,Supplies and Services,Operational Materials,205,06/02/2019,1902-00029,0.00,87.64,R,A J H  Pump Supply & Repair Ltd,No
Http://opendatacommunities.org/id/metropolitan-district-council/leeds,Leeds City Council,28/02/2019,Resources and Housing,Leeds Building Services,Supplies and Services,Operational Materials,205,06/02/2019,1902-00030,0.00,198.01,R,A J H  Pump Supply & Repair Ltd,No
Http://opendatacommunities.org/id/metropolitan-district-council/leeds,Leeds City Council,28/02/2019,Resources and Housing,Leeds Building Services,Supplies and Services,Operational Materials,205,06/02/2019,1902-00031,0.00,614.60,R,A J H  Pump Supply & Repair Ltd,No
Http://opendatacommunities.org/id/metropolitan-district-council/leeds,Leeds City Council,28/02/2019,Resources and Housing,Leeds Building Services,Supplies and Services,Operational Materials,205,06/02/2019,1902-00032,0.00,665.45,R,A J H  Pump Supply & Repair Ltd,No
Http://opendatacommunities.org/id/metropolitan-district-council/leeds,Leeds City Council,28/02/2019,Resources and Housing,Leeds Building Services,Supplies and Services,Operational Materials,205,05/02/2019,1902-00033,0.00,325.50,R,A J H  Pump Supply & Repair Ltd,No
Http://opendatacommunities.org/id/metropolitan-district-council/leeds,Leeds City Council,28/02/2019,Resources and Housing,Leeds Building Services,Supplies and Services,Operational Materials,205,05/02/2019,1902-00034,0.00,446.10,R,A J H  Pump Supply & Repair Ltd,No
Http://opendatacommunities.org/id/metropolitan-district-council/leeds,Leeds City Council,28/02/2019,Resources and Housing,Leeds Building Services,Supplies and Services,Operational Materials,205,05/02/2019,1902-00035,0.00,126.70,R,A J H  Pump Supply & Repair Ltd,No
Http://opendatacommunities.org/id/metropolitan-district-council/leeds,Leeds City Council,28/02/2019,Resources and Housing,Leeds Building Services,Supplies and Services,Operational Materials,205,05/02/2019,1902-00036,0.00,15.00,R,A J H  Pump Supply & Repair Ltd,No
Http://opendatacommunities.org/id/metropolitan-district-council/leeds,Leeds City Council,28/02/2019,Resources and Housing,Leeds Building Services,Supplies and Services,Operational Materials,205,05/02/2019,1902-00037,0.00,51.96,R,A J H  Pump Supply & Repair Ltd,No
Http://opendatacommunities.org/id/metropolitan-district-council/leeds,Leeds City Council,28/02/2019,Resources and Housing,Leeds Building Services,Supplies and Services,Operational Materials,205,04/02/2019,1902-00038,0.00,20.84,R,A J H  Pump Supply & Repair Ltd,No
Http://opendatacommunities.org/id/metropolitan-district-council/leeds,Leeds City Council,28/02/2019,Resources and Housing,Leeds Building Services,Supplies and Services,Operational Materials,205,04/02/2019,1902-00039,0.00,33.44,R,A J H  Pump Supply & Repair Ltd,No
Http://opendatacommunities.org/id/metropolitan-district-council/leeds,Leeds City Council,28/02/2019,Resources and Housing,Leeds Building Services,Supplies and Services,Operational Materials,205,05/02/2019,1902-00040,0.00,161.58,R,A J H  Pump Supply & Repair Ltd,No
Http://opendatacommunities.org/id/metropolitan-district-council/leeds,Leeds City Council,28/02/2019,Resources and Housing,Leeds Building Services,Supplies and Services,Operational Materials,205,05/02/2019,1902-00041,0.00,57.37,R,A J H  Pump Supply & Repair Ltd,No
Http://opendatacommunities.org/id/metropolitan-district-council/leeds,Leeds City Council,28/02/2019,Resources and Housing,Leeds Building Services,Supplies and Services,Operational Materials,205,05/02/2019,1902-00042,0.00,33.00,R,A J H  Pump Supply & Repair Ltd,No
Http://opendatacommunities.org/id/metropolitan-district-council/leeds,Leeds City Council,28/02/2019,Resources and Housing,Leeds Building Services,Supplies and Services,Operational Materials,205,05/02/2019,1902-00043,0.00,1100.00,R,A J H  Pump Supply & Repair Ltd,No
Http://opendatacommunities.org/id/metropolitan-district-council/leeds,Leeds City Council,28/02/2019,Resources and Housing,Leeds Building Services,Supplies and Services,Operational Materials,205,05/02/2019,1902-00044,0.00,48.34,R,A J H  Pump Supply & Repair Ltd,No
Http://opendatacommunities.org/id/metropolitan-district-council/leeds,Leeds City Council,28/02/2019,Resources and Housing,Leeds Building Services,Supplies and Services,Operational Materials,205,05/02/2019,1902-00045,0.00,258.42,R,A J H  Pump Supply & Repair Ltd,No
Http://opendatacommunities.org/id/metropolitan-district-council/leeds,Leeds City Council,28/02/2019,Resources and Housing,Leeds Building Services,Supplies and Services,Operational Materials,205,05/02/2019,1902-00046,0.00,187.27,R,A J H  Pump Supply & Repair Ltd,No
Http://opendatacommunities.org/id/metropolitan-district-council/leeds,Leeds City Council,28/02/2019,Resources and Housing,Leeds Building Services,Supplies and Services,Operational Materials,205,06/02/2019,1902-00047,0.00,127.95,R,A J H  Pump Supply & Repair Ltd,No
Http://opendatacommunities.org/id/metropolitan-district-council/leeds,Leeds City Council,28/02/2019,Resources and Housing,Leeds Building Services,Supplies and Services,Operational Materials,205,06/02/2019,1902-00048,0.00,151.70,R,A J H  Pump Supply & Repair Ltd,No
Http://opendatacommunities.org/id/metropolitan-district-council/leeds,Leeds City Council,28/02/2019,Resources and Housing,Leeds Building Services,Supplies and Services,Operational Materials,205,06/02/2019,1902-00049,0.00,70.00,R,A J H  Pump Supply & Repair Ltd,No
Http://opendatacommunities.org/id/metropolitan-district-council/leeds,Leeds City Council,28/02/2019,Resources and Housing,Leeds Building Services,Supplies and Services,Operational Materials,205,06/02/2019,1902-00050,0.00,19.90,R,A J H  Pump Supply & Repair Ltd,No
Http://opendatacommunities.org/id/metropolitan-district-council/leeds,Leeds City Council,28/02/2019,Resources and Housing,Leeds Building Services,Supplies and Services,Operational Materials,205,06/02/2019,1902-00051,0.00,126.21,R,A J H  Pump Supply & Repair Ltd,No
Http://opendatacommunities.org/id/metropolitan-district-council/leeds,Leeds City Council,28/02/2019,Resources and Housing,Leeds Building Services,Supplies and Services,Operational Furniture And Equipment,203,14/02/2019,1902-00052,0.00,217.50,R,A J H  Pump Supply & Repair Ltd,No
Http://opendatacommunities.org/id/metropolitan-district-council/leeds,Leeds City Council,28/02/2019,Resources and Housing,Leeds Building Services,Supplies and Services,Operational Materials,205,14/02/2019,1902-00053,0.00,16.90,R,A J H  Pump Supply & Repair Ltd,No
Http://opendatacommunities.org/id/metropolitan-district-council/leeds,Leeds City Council,28/02/2019,Resources and Housing,Leeds Building Services,Supplies and Services,Operational Materials,205,18/02/2019,1902-00054,0.00,116.79,R,A J H  Pump Supply & Repair Ltd,No
Http://opendatacommunities.org/id/metropolitan-district-council/leeds,Leeds City Council,28/02/2019,Resources and Housing,Leeds Building Services,Supplies and Services,Operational Materials,205,18/02/2019,1902-00055,0.00,120.00,R,A J H  Pump Supply & Repair Ltd,No
Http://opendatacommunities.org/id/metropolitan-district-council/leeds,Leeds City Council,28/02/2019,Resources and Housing,Leeds Building Services,Supplies and Services,Other Hired And Contracted Services,265,06/02/2019,1902-00056,0.00,308.00,R,A J H  Pump Supply & Repair Ltd,No
Http://opendatacommunities.org/id/metropolitan-district-council/leeds,Leeds City Council,28/02/2019,Resources and Housing,Leeds Building Services,Supplies and Services,Operational Materials,205,18/02/2019,1902-00057,0.00,30.95,R,A J H  Pump Supply & Repair Ltd,No
Http://opendatacommunities.org/id/metropolitan-district-council/leeds,Leeds City Council,28/02/2019,Resources and Housing,Leeds Building Services,Supplies and Services,Operational Materials,205,19/02/2019,1902-00058,0.00,184.84,R,A J H  Pump Supply & Repair Ltd,No
Http://opendatacommunities.org/id/metropolitan-district-council/leeds,Leeds City Council,28/02/2019,Resources and Housing,Leeds Building Services,Supplies and Services,Operational Materials,205,19/02/2019,1902-00059,0.00,195.00,R,A J H  Pump Supply & Repair Ltd,No
Http://opendatacommunities.org/id/metropolitan-district-council/leeds,Leeds City Council,28/02/2019,Resources and Housing,Leeds Building Services,Supplies and Services,Operational Materials,205,19/02/2019,1902-00060,0.00,99.00,R,A J H  Pump Supply & Repair Ltd,No
Http://opendatacommunities.org/id/metropolitan-district-council/leeds,Leeds City Council,28/02/2019,Resources and Housing,Leeds Building Services,Supplies and Services,Operational Materials,205,18/02/2019,1902-00061,0.00,567.00,R,A J H  Pump Supply & Repair Ltd,No
Http://opendatacommunities.org/id/metropolitan-district-council/leeds,Leeds City Council,28/02/2019,Resources and Housing,Leeds Building Services,Supplies and Services,Operational Materials,205,19/02/2019,1902-00062,0.00,580.00,R,A J H  Pump Supply & Repair Ltd,No
Http://opendatacommunities.org/id/metropolitan-district-council/leeds,Leeds City Council,28/02/2019,Resources and Housing,Leeds Building Services,Supplies and Services,Operational Materials,205,18/02/2019,1902-00063,0.00,158.94,R,A J H  Pump Supply & Repair Ltd,No
Http://opendatacommunities.org/id/metropolitan-district-council/leeds,Leeds City Council,28/02/2019,Resources and Housing,Leeds Building Services,Supplies and Services,Operational Materials,205,18/02/2019,1902-00064,0.00,42.17,R,A J H  Pump Supply & Repair Ltd,No
Http://opendatacommunities.org/id/metropolitan-district-council/leeds,Leeds City Council,28/02/2019,Resources and Housing,Leeds Building Services,Supplies and Services,Operational Materials,205,19/02/2019,1902-00065,0.00,270.14,R,A J H  Pump Supply & Repair Ltd,No
Http://opendatacommunities.org/id/metropolitan-district-council/leeds,Leeds City Council,28/02/2019,Resources and Housing,Leeds Building Services,Supplies and Services,Operational Materials,205,19/02/2019,1902-00066,0.00,61.95,R,A J H  Pump Supply & Repair Ltd,No
Http://opendatacommunities.org/id/metropolitan-district-council/leeds,Leeds City Council,28/02/2019,Resources and Housing,Leeds Building Services,Supplies and Services,Operational Materials,205,19/02/2019,1902-00067,0.00,25.00,R,A J H  Pump Supply & Repair Ltd,No
Http://opendatacommunities.org/id/metropolitan-district-council/leeds,Leeds City Council,28/02/2019,Resources and Housing,Leeds Building Services,Supplies and Services,Operational Materials,205,19/02/2019,1902-00068,0.00,193.00,R,A J H  Pump Supply & Repair Ltd,No
Http://opendatacommunities.org/id/metropolitan-district-council/leeds,Leeds City Council,28/02/2019,Resources and Housing,Leeds Building Services,Supplies and Services,Operational Materials,205,18/02/2019,1902-00069,0.00,46.28,R,A J H  Pump Supply & Repair Ltd,No
Http://opendatacommunities.org/id/metropolitan-district-council/leeds,Leeds City Council,28/02/2019,Resources and Housing,Leeds Building Services,Supplies and Services,Operational Materials,205,18/02/2019,1902-00070,0.00,3940.00,R,A J H  Pump Supply & Repair Ltd,No
Http://opendatacommunities.org/id/metropolitan-district-council/leeds,Leeds City Council,28/02/2019,Resources and Housing,Leeds Building Services,Supplies and Services,Operational Materials,205,19/02/2019,1902-00071,0.00,536.37,R,A J H  Pump Supply & Repair Ltd,No
Http://opendatacommunities.org/id/metropolitan-district-council/leeds,Leeds City Council,28/02/2019,Resources and Housing,Leeds Building Services,Supplies and Services,Operational Materials,205,19/02/2019,1902-00072,0.00,55.00,R,A J H  Pump Supply & Repair Ltd,No
Http://opendatacommunities.org/id/metropolitan-district-council/leeds,Leeds City Council,28/02/2019,Resources and Housing,Leeds Building Services,Supplies and Services,Operational Materials,205,27/02/2019,1902-00073,0.00,199.34,R,A J H  Pump Supply & Repair Ltd,No
Http://opendatacommunities.org/id/metropolitan-district-council/leeds,Leeds City Council,28/02/2019,Resources and Housing,Leeds Building Services,Supplies and Services,Operational Materials,205,27/02/2019,1902-00074,0.00,31.85,R,A J H  Pump Supply & Repair Ltd,No
Http://opendatacommunities.org/id/metropolitan-district-council/leeds,Leeds City Council,28/02/2019,Resources and Housing,Leeds Building Services,Supplies and Services,Other Hired And Contracted Services,265,26/02/2019,1902-00075,0.00,225.00,R,A J H  Pump Supply & Repair Ltd,No
Http://opendatacommunities.org/id/metropolitan-district-council/leeds,Leeds City Council,28/02/2019,City Development,Libraries  Arts & Heritage,Supplies and Services,Art Galleries Total Stores,3,15/02/2019,1902-00076,0.00,137.00,R,A J Promotions,No
Http://opendatacommunities.org/id/metropolitan-district-council/leeds,Leeds City Council,28/02/2019,City Development,Libraries  Arts & Heritage,Supplies and Services,Art Galleries Total Stores,3,21/02/2019,1902-00077,0.00,32.00,R,A J Promotions,No
Http://opendatacommunities.org/id/metropolitan-district-council/leeds,Leeds City Council,28/02/2019,Children and Families,Social Care,Third Party Payments,Services Rendered By Other Organisations,511,20/02/2019,1902-00078,0.00,280.50,R,REDACTED PERSONAL DATA,No
Http://opendatacommunities.org/id/metropolitan-district-council/leeds,Leeds City Council,28/02/2019,Children and Families,Social Care,Third Party Payments,Services Rendered By Other Organisations,511,15/02/2019,1902-00079,0.00,2337.50,R,REDACTED PERSONAL DATA,No
Http://opendatacommunities.org/id/metropolitan-district-council/leeds,Leeds City Council,28/02/2019,Children and Families,Social Care,Third Party Payments,Services Rendered By Other Organisations,511,26/02/2019,1902-00080,0.00,71.00,R,REDACTED PERSONAL DATA,No
Http://opendatacommunities.org/id/metropolitan-district-council/leeds,Leeds City Council,28/02/2019,Adults and Health,Public Health,Third Party Payments,Public Health Commissioned Services,526,19/02/2019,1902-00081,0.00,340.00,R,A Khan & K Muneer,No
Http://opendatacommunities.org/id/metropolitan-district-council/leeds,Leeds City Council,28/02/2019,Resources and Housing,HRA Housing Leeds,Capital,Other Costs,7,28/02/2019,1902-00082,0.00,283.99,C,REDACTED PERSONAL DATA,No
Http://opendatacommunities.org/id/metropolitan-district-council/leeds,Leeds City Council,28/02/2019,Communities and Environment,Customer Access,Supplies and Services,Other Hired And Contracted Services,265,04/02/2019,1902-00083,0.00,1238.00,R,A Mohammed,No
Http://opendatacommunities.org/id/metropolitan-district-council/leeds,Leeds City Council,28/02/2019,Children and Families,Social Care,Third Party Payments,Services Rendered By Other Organisations,511,20/02/2019,1902-00084,0.00,1963.50,R,A Myland,No
Http://opendatacommunities.org/id/metropolitan-district-council/leeds,Leeds City Council,28/02/2019,Children and Families,Social Care,Third Party Payments,Services Rendered By Other Organisations,511,15/02/2019,1902-00085,0.00,935.00,R,A Myland,No
Http://opendatacommunities.org/id/metropolitan-district-council/leeds,Leeds City Council,28/02/2019,Communities and Environment,Customer Access,Supplies and Services,Other Hired And Contracted Services,265,04/02/2019,1902-00086,0.00,644.50,R,A Namaki,No
Http://opendatacommunities.org/id/metropolitan-district-council/leeds,Leeds City Council,28/02/2019,Communities and Environment,Parks and Countryside,Supplies and Services,Operational Materials,205,01/02/2019,1902-00087,0.00,1212.00,R,A Newton,No
Http://opendatacommunities.org/id/metropolitan-district-council/leeds,Leeds City Council,28/02/2019,City Development,Libraries  Arts & Heritage,Supplies and Services,Bought In Professional Services,277,13/02/2019,1902-00088,0.00,1000.00,R,A P Wood,No
Http://opendatacommunities.org/id/metropolitan-district-council/leeds,Leeds City Council,28/02/2019,Communities and Environment,Car Parking Services,Income,Penalties  Fines & Car Parking Charges,934,25/02/2019,1902-00089,0.00,30.00,R,REDACTED PERSONAL DATA,No
Http://opendatacommunities.org/id/metropolitan-district-council/leeds,Leeds City Council,28/02/2019,Communities and Environment,Elections  Licensing and Registration,Income,Admissions  Booking Fees & Ticket Sales,933,21/02/2019,1902-00090,0.00,140.00,R,REDACTED PERSONAL DATA,No
Http://opendatacommunities.org/id/metropolitan-district-council/leeds,Leeds City Council,28/02/2019,Children and Families,Social Care,Third Party Payments,Services Rendered By Other Organisations,511,15/02/2019,1902-00091,0.00,198.69,R,REDACTED PERSONAL DATA,No
Http://opendatacommunities.org/id/metropolitan-district-council/leeds,Leeds City Council,28/02/2019,Resources and Housing,Shared Services,Supplies and Services,Other Hired And Contracted Services,265,08/02/2019,1902-00092,0.00,81.25,R,A Star Couriers Ltd,No
Http://opendatacommunities.org/id/metropolitan-district-council/leeds,Leeds City Council,28/02/2019,Resources and Housing,Shared Services,Supplies and Services,Other Hired And Contracted Services,265,22/02/2019,1902-00093,0.00,70.00,R,A Star Couriers Ltd,No
Http://opendatacommunities.org/id/metropolitan-district-council/leeds,Leeds City Council,28/02/2019,Communities and Environment,Communities,Supplies and Services,Other Hired And Contracted Services,265,06/02/2019,1902-00094,0.00,75.00,R,REDACTED PERSONAL DATA,No
Http://opendatacommunities.org/id/metropolitan-district-council/leeds,Leeds City Council,28/02/2019,Communities and Environment,Communities,Supplies and Services,Other Hired And Contracted Services,265,06/02/2019,1902-00095,0.00,25.00,R,REDACTED PERSONAL DATA,No
Http://opendatacommunities.org/id/metropolitan-district-council/leeds,Leeds City Council,28/02/2019,Children and Families,Social Care,Third Party Payments,Services Rendered By Other Organisations,511,20/02/2019,1902-00096,0.00,280.50,R,REDACTED PERSONAL DATA,No
Http://opendatacommunities.org/id/metropolitan-district-council/leeds,Leeds City Council,28/02/2019,Children and Families,Social Care,Third Party Payments,Services Rendered By Other Organisations,511,15/02/2019,1902-00097,0.00,233.75,R,REDACTED PERSONAL DATA,No
Http://opendatacommunities.org/id/metropolitan-district-council/leeds,Leeds City Council,28/02/2019,Children and Families,Social Care,Third Party Payments,Services Rendered By Other Organisations,511,26/02/2019,1902-00098,0.00,125.00,R,REDACTED PERSONAL DATA,No
Http://opendatacommunities.org/id/metropolitan-district-council/leeds,Leeds City Council,28/02/2019,Children and Families,Social Care,Third Party Payments,Services Rendered By Other Organisations,511,15/02/2019,1902-00099,0.00,467.50,R,REDACTED PERSONAL DATA,No
Http://opendatacommunities.org/id/metropolitan-district-council/leeds,Leeds City Council,28/02/2019,Children and Families,Social Care,Third Party Payments,General External Residential Placements,507,08/02/2019,1902-00100,0.00,178.20,R,A Wilderness Way Ltd,No
Http://opendatacommunities.org/id/metropolitan-district-council/leeds,Leeds City Council,28/02/2019,Children and Families,Social Care,Third Party Payments,General External Residential Placements,507,08/02/2019,1902-00101,0.00,760.50,R,A Wilderness Way Ltd,No
Http://opendatacommunities.org/id/metropolitan-district-council/leeds,Leeds City Council,28/02/2019,Communities and Environment,Waste Management,Capital,Furniture And Equipment,5,19/02/2019,1902-00102,0.00,14198.25,C,A&C Weber Uk Ltd,No
Http://opendatacommunities.org/id/metropolitan-district-council/leeds,Leeds City Council,28/02/2019,Communities and Environment,Waste Management,Capital,Furniture And Equipment,5,20/02/2019,1902-00103,0.00,12573.75,C,A&C Weber Uk Ltd,No
Http://opendatacommunities.org/id/metropolitan-district-council/leeds,Leeds City Council,28/02/2019,Communities and Environment,Waste Management,Capital,Furniture And Equipment,5,18/02/2019,1902-00104,0.00,2475.00,C,A&C Weber Uk Ltd,No
Http://opendatacommunities.org/id/metropolitan-district-council/leeds,Leeds City Council,28/02/2019,Communities and Environment,Waste Management,Capital,Furniture And Equipment,5,19/02/2019,1902-00105,0.00,2769.00,C,A&C Weber Uk Ltd,No
Http://opendatacommunities.org/id/metropolitan-district-council/leeds,Leeds City Council,28/02/2019,Communities and Environment,Waste Management,Capital,Furniture And Equipment,5,18/02/2019,1902-00106,0.00,2475.00,C,A&C Weber Uk Ltd,No
Http://opendatacommunities.org/id/metropolitan-district-council/leeds,Leeds City Council,28/02/2019,Communities and Environment,Waste Management,Capital,Furniture And Equipment,5,18/02/2019,1902-00107,0.00,3430.00,C,A&C Weber Uk Ltd,No
Http://opendatacommunities.org/id/metropolitan-district-council/leeds,Leeds City Council,28/02/2019,Communities and Environment,Waste Management,Capital,Furniture And Equipment,5,18/02/2019,1902-00108,0.00,2076.75,C,A&C Weber Uk Ltd,No
Http://opendatacommunities.org/id/metropolitan-district-council/leeds,Leeds City Council,28/02/2019,Communities and Environment,Waste Management,Capital,Furniture And Equipment,5,18/02/2019,1902-00109,0.00,3174.70,C,A&C Weber Uk Ltd,No
Http://opendatacommunities.org/id/metropolitan-district-council/leeds,Leeds City Council,28/02/2019,Communities and Environment,Waste Management,Capital,Furniture And Equipment,5,18/02/2019,1902-00110,0.00,7240.00,C,A&C Weber Uk Ltd,No
Http://opendatacommunities.org/id/metropolitan-district-council/leeds,Leeds City Council,28/02/2019,Communities and Environment,Waste Management,Capital,Furniture And Equipment,5,18/02/2019,1902-00111,0.00,266.10,C,A&C Weber Uk Ltd,No
Http://opendatacommunities.org/id/metropolitan-district-council/leeds,Leeds City Council,28/02/2019,Resources and Housing,Leeds Building Services,Supplies and Services,Operational Materials,205,11/02/2019,1902-00112,0.00,750.00,R,A1 Stair Lift Services,No
Http://opendatacommunities.org/id/metropolitan-district-council/leeds,Leeds City Council,28/02/2019,Resources and Housing,Leeds Building Services,Supplies and Services,Other Hired And Contracted Services,265,22/02/2019,1902-00113,0.00,2750.00,R,A1 Stair Lift Services,No
Http://opendatacommunities.org/id/metropolitan-district-council/leeds,Leeds City Council,28/02/2019,Children and Families,Social Care  ,Supplies and Services,Operational Materials,205,15/01/2019,1902-00114,0.00,118.35,R,Aardvark Archery,Yes
Http://opendatacommunities.org/id/metropolitan-district-council/leeds,Leeds City Council As Accountable Body,28/02/2019,Social Services Pooled Budgets,Jcs For People With Learning Disabilitie,Supplies and Services,Other Equipment,203,01/02/2019,1902-00115,0.00,214.99,R,Aat (Gb) Ltd,No
Http://opendatacommunities.org/id/metropolitan-district-council/leeds,Leeds City Council As Accountable Body,28/02/2019,Social Services Pooled Budgets,Leeds Community Equip Store Pooled Budgt,Supplies and Services,Other Equipment,203,15/02/2019,1902-00116,0.00,458.00,R,Aat (Gb) Ltd,No
Http://opendatacommunities.org/id/metropolitan-district-council/leeds,Leeds City Council As Accountable Body,28/02/2019,Social Services Pooled Budgets,Leeds Community Equip Store Pooled Budgt,Supplies and Services,Other Equipment,203,15/02/2019,1902-00117,0.00,444.00,R,Aat (Gb) Ltd,No
Http://opendatacommunities.org/id/metropolitan-district-council/leeds,Leeds City Council,28/02/2019,Adults and Health,Social Services Support Services,Transport,Public Transport Expenses,310,05/02/2019,1902-00118,0.00,266.00,R,Ab Cars,No
Http://opendatacommunities.org/id/metropolitan-district-council/leeds,Leeds City Council,28/02/2019,Communities and Environment,Community Safety  ,Supplies and Services,Printing,215,29/01/2019,1902-00119,0.00,485.00,R,Ab Print Group Ltd,Yes
Http://opendatacommunities.org/id/metropolitan-district-council/leeds,Leeds City Council,28/02/2019,Communities and Environment,Parks And Countryside  ,Supplies and Services,Resaleable Materials,204,08/01/2019,1902-00120,0.00,220.00,R,Abacus Cards Ltd,Yes
Http://opendatacommunities.org/id/metropolitan-district-council/leeds,Leeds City Council,28/02/2019,City Development,Libraries  Arts & Heritage,Supplies and Services,Postages,212,07/02/2019,1902-00121,0.00,50.00,R,Abacus Express Limited,No
Http://opendatacommunities.org/id/metropolitan-district-council/leeds,Leeds City Council,28/02/2019,Children and Families,Social Care,Support Services,Legal Disbursements,411,01/02/2019,1902-00122,0.00,31.02,R,Abacus Express Limited,No
Http://opendatacommunities.org/id/metropolitan-district-council/leeds,Leeds City Council,28/02/2019,Children and Families,Social Care,Support Services,Legal Disbursements,411,01/02/2019,1902-00123,0.00,16.66,R,Abacus Express Limited,No
Http://opendatacommunities.org/id/metropolitan-district-council/leeds,Leeds City Council,28/02/2019,Children and Families,Social Care,Support Services,Legal Disbursements,411,01/02/2019,1902-00124,0.00,18.81,R,Abacus Express Limited,No
Http://opendatacommunities.org/id/metropolitan-district-council/leeds,Leeds City Council,28/02/2019,City Development,Planning & Sustainable Development,Supplies and Services,Other Hired And Contracted Services,265,12/02/2019,1902-00125,0.00,51.06,R,Abacus Express Limited,No
Http://opendatacommunities.org/id/metropolitan-district-council/leeds,Leeds City Council,28/02/2019,Children and Families,Social Care,Support Services,Legal Disbursements,411,27/02/2019,1902-00126,0.00,20.43,R,Abacus Express Limited,No
Http://opendatacommunities.org/id/metropolitan-district-council/leeds,Leeds City Council,28/02/2019,Children and Families,Social Care  ,Supplies and Services,Food & Drink,231,10/01/2019,1902-00127,0.00,18.03,R,Abaseen Mini Market,Yes
Http://opendatacommunities.org/id/metropolitan-district-council/leeds,Leeds City Council,28/02/2019,City Development,Libraries  Arts & Heritage,Supplies and Services,Other Hired And Contracted Services,265,27/02/2019,1902-00128,0.00,1000.00,R,Abbey Event Services,No
Http://opendatacommunities.org/id/metropolitan-district-council/leeds,Leeds City Council,28/02/2019,Adults and Health,Public Health,Third Party Payments,Public Health Commissioned Services,526,19/02/2019,1902-00129,0.00,5.00,R,Abbey Grange Medical Practice,No
Http://opendatacommunities.org/id/metropolitan-district-council/leeds,Leeds City Council,28/02/2019,Adults and Health,Public Health,Third Party Payments,Public Health Commissioned Services,526,19/02/2019,1902-00130,0.00,920.00,R,Abbey Grange Medical Practice,No
Http://opendatacommunities.org/id/metropolitan-district-council/leeds,Leeds City Council,28/02/2019,Adults and Health,Services For Adults Under 65 Mental/Dis,Third Party Payments,Nursing Home,570,06/02/2019,1902-00131,0.00,1852.00,R,Abbey Grange Nursing Home,No
Http://opendatacommunities.org/id/metropolitan-district-council/leeds,Leeds City Council,28/02/2019,Communities and Environment,Environmental Health,Supplies and Services,Bought In Professional Services,277,13/02/2019,1902-00132,0.00,56.50,R,Abbey House Veterinary Hospital,No
Http://opendatacommunities.org/id/metropolitan-district-council/leeds,Leeds City Council,28/02/2019,Communities and Environment,Communities,Supplies and Services,'Well Being' Large Grants Projects,230,01/02/2019,1902-00133,0.00,50.00,R,Abbey Multi Academy Trust,No
Http://opendatacommunities.org/id/metropolitan-district-council/leeds,Leeds City Council,28/02/2019,Children and Families,Social Care,Premises,Hire of meeting rooms,143,01/02/2019,1902-00134,0.00,30.00,R,Abbey Multi Academy Trust,No
Http://opendatacommunities.org/id/metropolitan-district-council/leeds,Leeds City Council,28/02/2019,Children and Families,Social Care,Supplies and Services,Food & Drink,231,01/02/2019,1902-00135,0.00,42.00,R,Abbey Multi Academy Trust,No
Http://opendatacommunities.org/id/metropolitan-district-council/leeds,Leeds City Council,28/02/2019,Communities and Environment,Parks and Countryside,Supplies and Services,Other Hired And Contracted Services,265,20/02/2019,1902-00136,0.00,550.00,R,Abbotts Memorials,No
Http://opendatacommunities.org/id/metropolitan-district-council/leeds,Leeds City Council,28/02/2019,Children and Families,Social Care,Third Party Payments,Services Rendered By Other Organisations,511,20/02/2019,1902-00137,0.00,1683.00,R,Abc Daycare And Ozone Out Of School,No
Http://opendatacommunities.org/id/metropolitan-district-council/leeds,Leeds City Council,28/02/2019,Children and Families,Social Care,Third Party Payments,Services Rendered By Other Organisations,511,15/02/2019,1902-00138,0.00,14492.50,R,Abc Daycare And Ozone Out Of School,No
Http://opendatacommunities.org/id/metropolitan-district-council/leeds,Leeds City Council,28/02/2019,Children and Families,Social Care,Third Party Payments,Services Rendered By Other Organisations,511,26/02/2019,1902-00139,0.00,272.67,R,Abc Daycare And Ozone Out Of School,No
Http://opendatacommunities.org/id/metropolitan-district-council/leeds,Leeds City Council,28/02/2019,Children and Families,Social Care,Third Party Payments,Services Rendered By Voluntary Sector,505,26/02/2019,1902-00140,0.00,521.07,R,Abc Daycare And Ozone Out Of School,No
Http://opendatacommunities.org/id/metropolitan-district-council/leeds,Leeds City Council,28/02/2019,Children and Families,Social Care,Third Party Payments,Services Rendered By Other Organisations,511,20/02/2019,1902-00141,0.00,3553.00,R,Abc Nursery At Lufc,No
Http://opendatacommunities.org/id/metropolitan-district-council/leeds,Leeds City Council,28/02/2019,Children and Families,Social Care,Third Party Payments,Services Rendered By Other Organisations,511,15/02/2019,1902-00142,0.00,6545.00,R,Abc Nursery At Lufc,No
Http://opendatacommunities.org/id/metropolitan-district-council/leeds,Leeds City Council,28/02/2019,Children and Families,Social Care,Third Party Payments,Services Rendered By Other Organisations,511,26/02/2019,1902-00143,0.00,1362.33,R,Abc Nursery At Lufc,No
Http://opendatacommunities.org/id/metropolitan-district-council/leeds,Leeds City Council,28/02/2019,Children and Families,Social Care,Third Party Payments,Payments To Voluntary Organisations,561,20/02/2019,1902-00144,0.00,561.00,R,Abc@D'S Childcare Services,No
Http://opendatacommunities.org/id/metropolitan-district-council/leeds,Leeds City Council,28/02/2019,Children and Families,Social Care,Third Party Payments,Services Rendered By Other Organisations,511,15/02/2019,1902-00145,0.00,9116.25,R,Abc@D'S Childcare Services,No
Http://opendatacommunities.org/id/metropolitan-district-council/leeds,Leeds City Council,28/02/2019,Children and Families,Social Care,Third Party Payments,Services Rendered By Other Organisations,511,26/02/2019,1902-00146,0.00,630.33,R,Abc@D'S Childcare Services,No
Http://opendatacommunities.org/id/metropolitan-district-council/leeds,Leeds City Council,28/02/2019,Communities and Environment,Customer Access,Supplies and Services,Other Hired And Contracted Services,265,04/02/2019,1902-00147,0.00,346.50,R,Abdulahad Denha,No
Http://opendatacommunities.org/id/metropolitan-district-council/leeds,Leeds City Council,28/02/2019,Communities and Environment,Car Parking Services,Income,Penalties  Fines & Car Parking Charges,934,25/02/2019,1902-00148,0.00,98.00,R,REDACTED PERSONAL DATA,No
Http://opendatacommunities.org/id/metropolitan-district-council/leeds,Leeds City Council,28/02/2019,Communities and Environment,Communities,Supplies and Services,'Well Being' Large Grants Projects,230,28/02/2019,1902-00149,0.00,688.00,R,Aberford And District Parish Council,No
Http://opendatacommunities.org/id/metropolitan-district-council/leeds,Leeds City Council,28/02/2019,Adults and Health,Services For Older People - 65 And Over,Third Party Payments,Nursing Home,570,06/02/2019,1902-00150,0.00,30045.92,R,Aberford Hall,No
Http://opendatacommunities.org/id/metropolitan-district-council/leeds,Leeds City Council,28/02/2019,Adults and Health,Services For Older People - 65 And Over,Third Party Payments,Residential,580,06/02/2019,1902-00151,0.00,1531.12,R,Aberford Hall,No
Http://opendatacommunities.org/id/metropolitan-district-council/leeds,Leeds City Council,28/02/2019,Resources and Housing,Leeds Building Services,Supplies and Services,Operational Materials,205,04/02/2019,1902-00152,0.00,15.00,R,Abi Garage Doors Ltd,No
Http://opendatacommunities.org/id/metropolitan-district-council/leeds,Leeds City Council,28/02/2019,Resources and Housing,Leeds Building Services,Supplies and Services,Operational Materials,205,12/02/2019,1902-00153,0.00,15.00,R,Abi Garage Doors Ltd,No
Http://opendatacommunities.org/id/metropolitan-district-council/leeds,Leeds City Council,28/02/2019,Resources and Housing,Leeds Building Services,Supplies and Services,Operational Materials,205,20/02/2019,1902-00154,0.00,260.42,R,Abi Garage Doors Ltd,No
Http://opendatacommunities.org/id/metropolitan-district-council/leeds,Leeds City Council,28/02/2019,Resources and Housing,Leeds Building Services,Supplies and Services,Operational Materials,205,20/02/2019,1902-00155,0.00,1562.70,R,Abi Garage Doors Ltd,No
Http://opendatacommunities.org/id/metropolitan-district-council/leeds,Leeds City Council,28/02/2019,Resources and Housing,Leeds Building Services,Supplies and Services,Operational Materials,205,22/02/2019,1902-00156,0.00,260.45,R,Abi Garage Doors Ltd,No
Http://opendatacommunities.org/id/metropolitan-district-council/leeds,Leeds City Council,28/02/2019,Resources and Housing,Leeds Building Services,Supplies and Services,Operational Materials,205,27/02/2019,1902-00157,0.00,260.45,R,Abi Garage Doors Ltd,No
Http://opendatacommunities.org/id/metropolitan-district-council/leeds,Leeds City Council,28/02/2019,Children and Families,Social Care  ,Transfer Payments,Leaving Care Allowances,634,03/01/2019,1902-00158,0.00,9.12,R,Abo Leeds,Yes
Http://opendatacommunities.org/id/metropolitan-district-council/leeds,Leeds City Council,28/02/2019,Communities and Environment,Car Parking Services,Income,Penalties  Fines & Car Parking Charges,934,01/02/2019,1902-00159,0.00,4.00,R,REDACTED PERSONAL DATA,No
Http://opendatacommunities.org/id/metropolitan-district-council/leeds,Leeds City Council,28/02/2019,Insurance,Insurance,Supplies and Services,Insurance Claims,248,07/02/2019,1902-00160,0.00,4345.00,R,Absolute Law,No
Http://opendatacommunities.org/id/metropolitan-district-council/leeds,Leeds City Council,28/02/2019,City Development,Libraries  Arts & Heritage,Supplies and Services,Art Galleries Total Stores,3,07/02/2019,1902-00161,0.00,63.70,R,Ac Jade Trading Ltd,No
Http://opendatacommunities.org/id/metropolitan-district-council/leeds,Leeds City Council,28/02/2019,Strategic Landlord,Property and Contracts,Transfer Payments,Disrepair Provision,644,28/02/2019,1902-00162,0.00,120.00,R,Ac Secure Ltd,No
Http://opendatacommunities.org/id/metropolitan-district-council/leeds,Leeds City Council,28/02/2019,Children and Families,Social Care,Employees,Agency Staff,8,01/02/2019,1902-00163,0.00,752.50,R,Academic Appointments Ltd,No
Http://opendatacommunities.org/id/metropolitan-district-council/leeds,Leeds City Council,28/02/2019,Children and Families,Social Care,Employees,Agency Staff,8,08/02/2019,1902-00164,0.00,160.50,R,Academic Appointments Ltd,No
Http://opendatacommunities.org/id/metropolitan-district-council/leeds,Leeds City Council,28/02/2019,Children and Families,Learning,Employees,Agency Staff,8,14/02/2019,1902-00165,0.00,409.20,R,Academic Appointments Ltd,No
Http://opendatacommunities.org/id/metropolitan-district-council/leeds,Leeds City Council,28/02/2019,Children and Families,Social Care,Employees,Agency Staff,8,15/02/2019,1902-00166,0.00,2575.00,R,Academic Appointments Ltd,No
Http://opendatacommunities.org/id/metropolitan-district-council/leeds,Leeds City Council,28/02/2019,Children and Families,Social Care,Employees,Agency Staff,8,15/02/2019,1902-00167,0.00,507.00,R,Academic Appointments Ltd,No
Http://opendatacommunities.org/id/metropolitan-district-council/leeds,Leeds City Council,28/02/2019,Children and Families,Learning,Employees,Agency Staff,8,21/02/2019,1902-00168,0.00,1097.44,R,Academic Appointments Ltd,No
Http://opendatacommunities.org/id/metropolitan-district-council/leeds,Leeds City Council,28/02/2019,Children and Families,Social Care,Employees,Agency Staff,8,22/02/2019,1902-00169,0.00,2575.00,R,Academic Appointments Ltd,No
Http://opendatacommunities.org/id/metropolitan-district-council/leeds,Leeds City Council,28/02/2019,Children and Families,Social Care,Employees,Agency Staff,8,22/02/2019,1902-00170,0.00,566.50,R,Academic Appointments Ltd,No
Http://opendatacommunities.org/id/metropolitan-district-council/leeds,Leeds City Council,28/02/2019,Children and Families,Learning,Employees,Agency Staff,8,22/02/2019,1902-00171,0.00,206.80,R,Academic Appointments Ltd,No
Http://opendatacommunities.org/id/metropolitan-district-council/leeds,Leeds City Council,28/02/2019,Communities and Environment,Communities,Supplies and Services,'Well Being' Large Grants Projects,230,05/02/2019,1902-00172,0.00,2538.64,R,Acamps,No
Http://opendatacommunities.org/id/metropolitan-district-council/leeds,Leeds City Council,28/02/2019,Resources and Housing,Technology,Supplies and Services,Computer Software & Equipment,214,01/02/2019,1902-00173,0.00,5162.60,R,Accenture (Uk) Ltd,No
Http://opendatacommunities.org/id/metropolitan-district-council/leeds,Leeds City Council,28/02/2019,Resources and Housing,Technology,Supplies and Services,Computer Software & Equipment,214,01/02/2019,1902-00174,0.00,5700.00,R,Accenture (Uk) Ltd,No
Http://opendatacommunities.org/id/metropolitan-district-council/leeds,Leeds City Council,28/02/2019,Children and Families,Social Care  ,Premises,Maintenance Of Buildings,101,25/01/2019,1902-00175,0.00,127.50,R,Access Electrical(Serv,Yes
Http://opendatacommunities.org/id/metropolitan-district-council/leeds,Leeds City Council,28/02/2019,Communities and Environment,Community Safety,Transport,Hire Of Movable Plant & Machinery,315,01/02/2019,1902-00176,0.00,1310.86,R,Access Hire Nationwide Ltd,No
Http://opendatacommunities.org/id/metropolitan-district-council/leeds,Leeds City Council,28/02/2019,Communities and Environment,Community Safety,Transport,Hire Of Movable Plant & Machinery,315,27/02/2019,1902-00177,0.00,1310.86,R,Access Hire Nationwide Ltd,No
Http://opendatacommunities.org/id/metropolitan-district-council/leeds,Leeds City Council,28/02/2019,Resources and Housing,Leeds Building Services  ,Supplies and Services,Other Hired And Contracted Services,265,17/01/2019,1902-00178,0.00,32.71,R,Access Locksmiths,Yes
Http://opendatacommunities.org/id/metropolitan-district-council/leeds,Leeds City Council,28/02/2019,Resources and Housing,Commercial Services  ,Supplies and Services,Operational Furniture And Equipment,203,17/01/2019,1902-00179,0.00,325.40,R,Access Locksmiths,Yes
Http://opendatacommunities.org/id/metropolitan-district-council/leeds,Leeds City Council,28/02/2019,Resources and Housing,Facilities Management  ,Supplies and Services,Operational Furniture And Equipment,203,17/01/2019,1902-00180,0.00,81.46,R,Access Locksmiths,Yes
Http://opendatacommunities.org/id/metropolitan-district-council/leeds,Leeds City Council,28/02/2019,Strategic Landlord,Housing Management,Supplies and Services,Resaleable Materials,204,12/02/2019,1902-00181,0.00,5.00,R,Access Locksmiths (Leeds) Limited,No
Http://opendatacommunities.org/id/metropolitan-district-council/leeds,Leeds City Council,28/02/2019,Resources and Housing,Leeds Building Services,Supplies and Services,Operational Materials,205,07/02/2019,1902-00182,0.00,3.50,R,Access Locksmiths (Leeds) Limited,No
Http://opendatacommunities.org/id/metropolitan-district-council/leeds,Leeds City Council,28/02/2019,Resources and Housing,Leeds Building Services,Supplies and Services,Operational Materials,205,07/02/2019,1902-00183,0.00,104.40,R,Access Locksmiths (Leeds) Limited,No
Http://opendatacommunities.org/id/metropolitan-district-council/leeds,Leeds City Council,28/02/2019,Resources and Housing,Leeds Building Services,Supplies and Services,Operational Materials,205,07/02/2019,1902-00184,0.00,58.33,R,Access Locksmiths (Leeds) Limited,No
Http://opendatacommunities.org/id/metropolitan-district-council/leeds,Leeds City Council,28/02/2019,Resources and Housing,Leeds Building Services,Supplies and Services,Operational Materials,205,07/02/2019,1902-00185,0.00,13.50,R,Access Locksmiths (Leeds) Limited,No
Http://opendatacommunities.org/id/metropolitan-district-council/leeds,Leeds City Council,28/02/2019,Resources and Housing,Leeds Building Services,Supplies and Services,Operational Materials,205,14/02/2019,1902-00186,0.00,20.57,R,Access Locksmiths (Leeds) Limited,No
Http://opendatacommunities.org/id/metropolitan-district-council/leeds,Leeds City Council,28/02/2019,Resources and Housing,Leeds Building Services,Supplies and Services,Operational Materials,205,14/02/2019,1902-00187,0.00,7.50,R,Access Locksmiths (Leeds) Limited,No
Http://opendatacommunities.org/id/metropolitan-district-council/leeds,Leeds City Council,28/02/2019,Resources and Housing,Leeds Building Services,Supplies and Services,Operational Materials,205,14/02/2019,1902-00188,0.00,66.06,R,Access Locksmiths (Leeds) Limited,No
Http://opendatacommunities.org/id/metropolitan-district-council/leeds,Leeds City Council,28/02/2019,Resources and Housing,Leeds Building Services,Supplies and Services,Operational Materials,205,14/02/2019,1902-00189,0.00,6.25,R,Access Locksmiths (Leeds) Limited,No
Http://opendatacommunities.org/id/metropolitan-district-council/leeds,Leeds City Council,28/02/2019,Resources and Housing,Leeds Building Services,Supplies and Services,Operational Materials,205,14/02/2019,1902-00190,0.00,130.50,R,Access Locksmiths (Leeds) Limited,No
Http://opendatacommunities.org/id/metropolitan-district-council/leeds,Leeds City Council,28/02/2019,Resources and Housing,Leeds Building Services,Supplies and Services,Other Hired And Contracted Services,265,11/02/2019,1902-00191,0.00,403.60,R,Access Locksmiths (Leeds) Limited,No
Http://opendatacommunities.org/id/metropolitan-district-council/leeds,Leeds City Council,28/02/2019,Communities and Environment,Waste Management,Supplies and Services,Operational Furniture And Equipment,203,15/02/2019,1902-00192,0.00,403.60,R,Access Locksmiths (Leeds) Limited,No
Http://opendatacommunities.org/id/metropolitan-district-council/leeds,Leeds City Council,28/02/2019,Resources and Housing,Commercial Services,Supplies and Services,Operational Furniture And Equipment,203,15/02/2019,1902-00193,0.00,201.80,R,Access Locksmiths (Leeds) Limited,No
Http://opendatacommunities.org/id/metropolitan-district-council/leeds,Leeds City Council,28/02/2019,Strategic Landlord,Property and Contracts,Premises,General Maintenance,104,22/02/2019,1902-00194,0.00,37.50,R,Access Locksmiths (Leeds) Limited,No
Http://opendatacommunities.org/id/metropolitan-district-council/leeds,Leeds City Council,28/02/2019,Strategic Landlord,Property and Contracts,Premises,General Maintenance,104,22/02/2019,1902-00195,0.00,150.12,R,Access Locksmiths (Leeds) Limited,No
Http://opendatacommunities.org/id/metropolitan-district-council/leeds,Leeds City Council,28/02/2019,Strategic Landlord,Property and Contracts,Premises,General Maintenance,104,22/02/2019,1902-00196,0.00,103.00,R,Access Locksmiths (Leeds) Limited,No
Http://opendatacommunities.org/id/metropolitan-district-council/leeds,Leeds City Council,28/02/2019,Resources and Housing,HRA Housing Leeds,Capital,Other Costs,7,27/02/2019,1902-00197,0.00,77.64,C,Access Locksmiths (Leeds) Limited,No
Http://opendatacommunities.org/id/metropolitan-district-council/leeds,Leeds City Council,28/02/2019,Resources and Housing,HRA Housing Leeds,Capital,Construction,3,27/02/2019,1902-00198,0.00,100.90,C,Access Locksmiths (Leeds) Limited,No
Http://opendatacommunities.org/id/metropolitan-district-council/leeds,Leeds City Council,28/02/2019,Resources and Housing,HRA Housing Leeds,Capital,Other Costs,7,27/02/2019,1902-00199,0.00,42.30,C,Access Locksmiths (Leeds) Limited,No
Http://opendatacommunities.org/id/metropolitan-district-council/leeds,Leeds City Council,28/02/2019,Strategic Landlord,Housing Management,Supplies and Services,Resaleable Materials,204,27/02/2019,1902-00200,0.00,285.00,R,Access Locksmiths (Leeds) Limited,No
Http://opendatacommunities.org/id/metropolitan-district-council/leeds,Leeds City Council,28/02/2019,Strategic Landlord,Housing Management,Premises,General Maintenance,104,27/02/2019,1902-00201,0.00,147.00,R,Access Locksmiths (Leeds) Limited,No
Http://opendatacommunities.org/id/metropolitan-district-council/leeds,Leeds City Council,28/02/2019,City Development,Libraries  Arts & Heritage,Supplies and Services,Bought In Professional Services,277,11/02/2019,1902-00202,0.00,680.00,R,Access Moving Image Ltd,No
Http://opendatacommunities.org/id/metropolitan-district-council/leeds,Leeds City Council,28/02/2019,Resources and Housing,Leeds Building Services,Supplies and Services,Operational Materials,205,22/02/2019,1902-00203,0.00,50.00,R,Access Opening Systems,No
Http://opendatacommunities.org/id/metropolitan-district-council/leeds,Leeds City Council,28/02/2019,Resources and Housing,Leeds Building Services,Supplies and Services,Operational Materials,205,05/02/2019,1902-00204,0.00,125.00,R,Access Opening Systems,No
Http://opendatacommunities.org/id/metropolitan-district-council/leeds,Leeds City Council,28/02/2019,Resources and Housing,Leeds Building Services,Supplies and Services,Operational Materials,205,19/02/2019,1902-00205,0.00,285.00,R,Access Opening Systems,No
Http://opendatacommunities.org/id/metropolitan-district-council/leeds,Leeds City Council,28/02/2019,Resources and Housing,Leeds Building Services,Supplies and Services,Other Hired And Contracted Services,265,07/02/2019,1902-00206,0.00,142.50,R,Access Opening Systems,No
Http://opendatacommunities.org/id/metropolitan-district-council/leeds,Leeds City Council,28/02/2019,Resources and Housing,Leeds Building Services,Supplies and Services,Operational Materials,205,18/02/2019,1902-00207,0.00,990.00,R,Access Opening Systems,No
Http://opendatacommunities.org/id/metropolitan-district-council/leeds,Leeds City Council,28/02/2019,Resources and Housing,Leeds Building Services,Supplies and Services,Operational Materials,205,20/02/2019,1902-00208,0.00,97.50,R,Access Opening Systems,No
Http://opendatacommunities.org/id/metropolitan-district-council/leeds,Leeds City Council,28/02/2019,Resources and Housing,Leeds Building Services,Supplies and Services,Operational Materials,205,19/02/2019,1902-00209,0.00,412.50,R,Access Opening Systems,No
Http://opendatacommunities.org/id/metropolitan-district-council/leeds,Leeds City Council,28/02/2019,Resources and Housing,Leeds Building Services,Supplies and Services,Operational Materials,205,27/02/2019,1902-00210,0.00,180.00,R,Access Opening Systems,No
Http://opendatacommunities.org/id/metropolitan-district-council/leeds,Leeds City Council,28/02/2019,Resources and Housing,Leeds Building Services,Supplies and Services,Operational Materials,205,22/02/2019,1902-00211,0.00,570.00,R,Access Opening Systems,No
Http://opendatacommunities.org/id/metropolitan-district-council/leeds,Leeds City Council,28/02/2019,Resources and Housing,Leeds Building Services,Supplies and Services,Operational Materials,205,27/02/2019,1902-00212,0.00,175.00,R,Access Opening Systems,No
Http://opendatacommunities.org/id/metropolitan-district-council/leeds,Leeds City Council,28/02/2019,Resources and Housing,Leeds Building Services,Supplies and Services,Operational Materials,205,27/02/2019,1902-00213,0.00,80.00,R,Access Opening Systems,No
Http://opendatacommunities.org/id/metropolitan-district-council/leeds,Leeds City Council,28/02/2019,Resources and Housing,Leeds Building Services,Supplies and Services,Operational Materials,205,27/02/2019,1902-00214,0.00,280.00,R,Access Opening Systems,No
Http://opendatacommunities.org/id/metropolitan-district-council/leeds,Leeds City Council,28/02/2019,City Development,Recreation,Supplies and Services,Other Hired And Contracted Services,265,01/02/2019,1902-00215,0.00,93.00,R,Ace Container Services Limited,No
Http://opendatacommunities.org/id/metropolitan-district-council/leeds,Leeds City Council,28/02/2019,City Development,Libraries  Arts & Heritage,Supplies and Services,Other Hired And Contracted Services,265,01/02/2019,1902-00216,0.00,46.50,R,Ace Container Services Limited,No
Http://opendatacommunities.org/id/metropolitan-district-council/leeds,Leeds City Council,28/02/2019,Children and Families,Partnerships & Health,Third Party Payments,SEN Placements,566,05/02/2019,1902-00217,0.00,-18138.66,R,Acorn Care And Education Ltd,No
Http://opendatacommunities.org/id/metropolitan-district-council/leeds,Leeds City Council,28/02/2019,Children and Families,Partnerships & Health,Third Party Payments,SEN Placements,566,05/02/2019,1902-00218,0.00,-18138.66,R,Acorn Care And Education Ltd,No
Http://opendatacommunities.org/id/metropolitan-district-council/leeds,Leeds City Council,28/02/2019,Children and Families,Partnerships & Health,Third Party Payments,SEN Placements,566,05/02/2019,1902-00219,0.00,-18138.65,R,Acorn Care And Education Ltd,No
Http://opendatacommunities.org/id/metropolitan-district-council/leeds,Leeds City Council,28/02/2019,Children and Families,Partnerships & Health,Third Party Payments,SEN Placements,566,05/02/2019,1902-00220,0.00,-18138.66,R,Acorn Care And Education Ltd,No
Http://opendatacommunities.org/id/metropolitan-district-council/leeds,Leeds City Council,28/02/2019,Children and Families,Partnerships & Health,Third Party Payments,SEN Placements,566,05/02/2019,1902-00221,0.00,-18138.66,R,Acorn Care And Education Ltd,No
Http://opendatacommunities.org/id/metropolitan-district-council/leeds,Leeds City Council,28/02/2019,Children and Families,Partnerships & Health,Third Party Payments,SEN Placements,566,05/02/2019,1902-00222,0.00,-18138.66,R,Acorn Care And Education Ltd,No
Http://opendatacommunities.org/id/metropolitan-district-council/leeds,Leeds City Council,28/02/2019,Children and Families,Partnerships & Health,Third Party Payments,SEN Placements,566,05/02/2019,1902-00223,0.00,-18138.66,R,Acorn Care And Education Ltd,No
Http://opendatacommunities.org/id/metropolitan-district-council/leeds,Leeds City Council,28/02/2019,Children and Families,Partnerships & Health,Third Party Payments,SEN Placements,566,05/02/2019,1902-00224,0.00,-7000.00,R,Acorn Care And Education Ltd,No
Http://opendatacommunities.org/id/metropolitan-district-council/leeds,Leeds City Council,28/02/2019,Children and Families,Partnerships & Health,Third Party Payments,SEN Placements,566,05/02/2019,1902-00225,0.00,-18138.66,R,Acorn Care And Education Ltd,No
Http://opendatacommunities.org/id/metropolitan-district-council/leeds,Leeds City Council,28/02/2019,Children and Families,Partnerships & Health,Third Party Payments,SEN Placements,566,13/02/2019,1902-00226,0.00,-18472.00,R,Acorn Care And Education Ltd,No
Http://opendatacommunities.org/id/metropolitan-district-council/leeds,Leeds City Council,28/02/2019,Children and Families,Partnerships & Health,Third Party Payments,SEN Placements,566,13/02/2019,1902-00227,0.00,-8500.00,R,Acorn Care And Education Ltd,No
Http://opendatacommunities.org/id/metropolitan-district-council/leeds,Leeds City Council,28/02/2019,Children and Families,Partnerships & Health,Third Party Payments,SEN Placements,566,13/02/2019,1902-00228,0.00,27098.36,R,Acorn Care And Education Ltd,No
Http://opendatacommunities.org/id/metropolitan-district-council/leeds,Leeds City Council,28/02/2019,Children and Families,Partnerships & Health,Third Party Payments,SEN Placements,566,05/02/2019,1902-00229,0.00,18138.66,R,Acorn Care And Education Ltd,No
Http://opendatacommunities.org/id/metropolitan-district-council/leeds,Leeds City Council,28/02/2019,Children and Families,Partnerships & Health,Third Party Payments,SEN Placements,566,05/02/2019,1902-00230,0.00,10259.75,R,Acorn Care And Education Ltd,No
Http://opendatacommunities.org/id/metropolitan-district-council/leeds,Leeds City Council,28/02/2019,Children and Families,Partnerships & Health,Third Party Payments,SEN Placements,566,05/02/2019,1902-00231,0.00,18138.67,R,Acorn Care And Education Ltd,No
Http://opendatacommunities.org/id/metropolitan-district-council/leeds,Leeds City Council,28/02/2019,Children and Families,Partnerships & Health,Third Party Payments,SEN Placements,566,05/02/2019,1902-00232,0.00,18138.67,R,Acorn Care And Education Ltd,No
Http://opendatacommunities.org/id/metropolitan-district-council/leeds,Leeds City Council,28/02/2019,Children and Families,Partnerships & Health,Third Party Payments,SEN Placements,566,05/02/2019,1902-00233,0.00,18138.67,R,Acorn Care And Education Ltd,No
Http://opendatacommunities.org/id/metropolitan-district-council/leeds,Leeds City Council,28/02/2019,Children and Families,Partnerships & Health,Third Party Payments,SEN Placements,566,05/02/2019,1902-00234,0.00,18472.00,R,Acorn Care And Education Ltd,No
Http://opendatacommunities.org/id/metropolitan-district-council/leeds,Leeds City Council,28/02/2019,Children and Families,Partnerships & Health,Third Party Payments,SEN Placements,566,05/02/2019,1902-00235,0.00,18472.00,R,Acorn Care And Education Ltd,No
Http://opendatacommunities.org/id/metropolitan-district-council/leeds,Leeds City Council,28/02/2019,Children and Families,Partnerships & Health,Third Party Payments,SEN Placements,566,05/02/2019,1902-00236,0.00,8500.00,R,Acorn Care And Education Ltd,No
Http://opendatacommunities.org/id/metropolitan-district-council/leeds,Leeds City Council,28/02/2019,Children and Families,Partnerships & Health,Third Party Payments,SEN Placements,566,05/02/2019,1902-00237,0.00,18472.00,R,Acorn Care And Education Ltd,No
Http://opendatacommunities.org/id/metropolitan-district-council/leeds,Leeds City Council,28/02/2019,Children and Families,Partnerships & Health,Third Party Payments,SEN Placements,566,05/02/2019,1902-00238,0.00,18472.00,R,Acorn Care And Education Ltd,No
Http://opendatacommunities.org/id/metropolitan-district-council/leeds,Leeds City Council,28/02/2019,Children and Families,Partnerships & Health,Third Party Payments,SEN Placements,566,05/02/2019,1902-00239,0.00,18138.67,R,Acorn Care And Education Ltd,No
Http://opendatacommunities.org/id/metropolitan-district-council/leeds,Leeds City Council,28/02/2019,Children and Families,Partnerships & Health,Third Party Payments,SEN Placements,566,05/02/2019,1902-00240,0.00,18472.00,R,Acorn Care And Education Ltd,No
Http://opendatacommunities.org/id/metropolitan-district-council/leeds,Leeds City Council,28/02/2019,Children and Families,Partnerships & Health,Third Party Payments,SEN Placements,566,05/02/2019,1902-00241,0.00,8500.00,R,Acorn Care And Education Ltd,No
Http://opendatacommunities.org/id/metropolitan-district-council/leeds,Leeds City Council,28/02/2019,Children and Families,Partnerships & Health,Third Party Payments,SEN Placements,566,05/02/2019,1902-00242,0.00,58000.00,R,Acorn Care And Education Ltd,No
Http://opendatacommunities.org/id/metropolitan-district-council/leeds,Leeds City Council,28/02/2019,Adults and Health,Services For Older People - 65 And Over,Third Party Payments,Nursing Care Dementia,574,06/02/2019,1902-00243,0.00,1625.64,R,Acorn Nursing Home,No
Http://opendatacommunities.org/id/metropolitan-district-council/leeds,Leeds City Council,28/02/2019,City Development,Libraries  Arts & Heritage,Supplies and Services,Other Hired And Contracted Services,265,21/02/2019,1902-00244,0.00,496.00,R,Acorn Scaffolding (Yorkshire) Ltd,No
Http://opendatacommunities.org/id/metropolitan-district-council/leeds,Leeds City Council,28/02/2019,City Development,Libraries  Arts & Heritage,Supplies and Services,Operational Furniture And Equipment,203,12/02/2019,1902-00245,0.00,4876.00,R,Acorn Scaffolding (Yorkshire) Ltd,No
Http://opendatacommunities.org/id/metropolitan-district-council/leeds,Leeds City Council,28/02/2019,City Development,Libraries  Arts & Heritage,Supplies and Services,Other Hired And Contracted Services,265,15/02/2019,1902-00246,0.00,257.20,R,Acorn Scaffolding (Yorkshire) Ltd,No
Http://opendatacommunities.org/id/metropolitan-district-council/leeds,Leeds City Council,28/02/2019,Children and Families,Social Care,Third Party Payments,Services Rendered By Other Organisations,511,15/02/2019,1902-00247,0.00,9817.50,R,Acorns Nursery,No
Http://opendatacommunities.org/id/metropolitan-district-council/leeds,Leeds City Council,28/02/2019,Adults and Health,Services For Older People - 65 And Over,Third Party Payments,Nursing Home,570,06/02/2019,1902-00248,0.00,35396.62,R,Acre Green,No
Http://opendatacommunities.org/id/metropolitan-district-council/leeds,Leeds City Council,28/02/2019,Adults and Health,Services For Older People - 65 And Over,Third Party Payments,Residential,580,06/02/2019,1902-00249,0.00,3631.60,R,Acre Green,No
Http://opendatacommunities.org/id/metropolitan-district-council/leeds,Leeds City Council,28/02/2019,Adults and Health,Services For Older People Under 65 P/Dis,Third Party Payments,Nursing Home,570,06/02/2019,1902-00250,0.00,2200.00,R,Acre Green,No
Http://opendatacommunities.org/id/metropolitan-district-council/leeds,Leeds City Council,28/02/2019,Adults and Health,Services For Older People Under 65 P/Dis,Third Party Payments,Residential,580,06/02/2019,1902-00251,0.00,-204.95,R,Acre Green,No
Http://opendatacommunities.org/id/metropolitan-district-council/leeds,Leeds City Council,28/02/2019,Children and Families,Social Care,Third Party Payments,Services Rendered By Other Organisations,511,20/02/2019,1902-00252,0.00,2244.00,R,Acre Wood Day Nursery,No
Http://opendatacommunities.org/id/metropolitan-district-council/leeds,Leeds City Council,28/02/2019,Children and Families,Social Care,Third Party Payments,Services Rendered By Other Organisations,511,15/02/2019,1902-00253,0.00,13090.00,R,Acre Wood Day Nursery,No
Http://opendatacommunities.org/id/metropolitan-district-council/leeds,Leeds City Council,28/02/2019,Children and Families,Social Care,Third Party Payments,Services Rendered By Other Organisations,511,26/02/2019,1902-00254,0.00,1272.67,R,Acre Wood Day Nursery,No
Http://opendatacommunities.org/id/metropolitan-district-council/leeds,Leeds City Council,28/02/2019,City Development,Highways,Supplies and Services,Operational Materials,205,15/02/2019,1902-00255,0.00,870.00,R,Actavo (Leeds H & S),No
Http://opendatacommunities.org/id/metropolitan-district-council/leeds,Leeds City Council,28/02/2019,City Development,Highways,Supplies and Services,Operational Materials,205,22/02/2019,1902-00256,0.00,260.00,R,Actavo (Leeds H & S),No
Http://opendatacommunities.org/id/metropolitan-district-council/leeds,Leeds City Council,28/02/2019,Children and Families,Social Care,Third Party Payments,Independent Fostering Agencies,509,22/02/2019,1902-00257,0.00,4776.48,R,Action For Children,No
Http://opendatacommunities.org/id/metropolitan-district-council/leeds,Leeds City Council,28/02/2019,Children and Families,Social Care,Third Party Payments,Independent Fostering Agencies,509,22/02/2019,1902-00258,0.00,4776.48,R,Action For Children,No
Http://opendatacommunities.org/id/metropolitan-district-council/leeds,Leeds City Council,28/02/2019,Children and Families,Social Care,Third Party Payments,Independent Fostering Agencies,509,22/02/2019,1902-00259,0.00,4776.48,R,Action For Children,No
Http://opendatacommunities.org/id/metropolitan-district-council/leeds,Leeds City Council,28/02/2019,Children and Families,Social Care,Third Party Payments,Independent Fostering Agencies,509,22/02/2019,1902-00260,0.00,4776.48,R,Action For Children,No
Http://opendatacommunities.org/id/metropolitan-district-council/leeds,Leeds City Council,28/02/2019,Adults and Health,Services For Older People - 65 And Over,Third Party Payments,Payments To Voluntary Organisations,561,08/02/2019,1902-00261,0.00,3775.00,R,Action For Gipton Elderly,No
Http://opendatacommunities.org/id/metropolitan-district-council/leeds,Leeds City Council,28/02/2019,Adults and Health,Services For Adults Under 65 Mental/Dis,Third Party Payments,Home Care,568,05/02/2019,1902-00262,0.00,850.00,R,Active Cleaning Solutions Ltd,No
Http://opendatacommunities.org/id/metropolitan-district-council/leeds,Leeds City Council,28/02/2019,Children and Families,Social Care,Third Party Payments,Services Rendered By Other Organisations,511,20/02/2019,1902-00263,0.00,280.50,R,Active Kids Yeadon Llp,No
Http://opendatacommunities.org/id/metropolitan-district-council/leeds,Leeds City Council,28/02/2019,Children and Families,Social Care,Third Party Payments,Services Rendered By Other Organisations,511,15/02/2019,1902-00264,0.00,7698.17,R,Active Kids Yeadon Llp,No
Http://opendatacommunities.org/id/metropolitan-district-council/leeds,Leeds City Council,28/02/2019,Children and Families,Social Care,Third Party Payments,Services Rendered By Other Organisations,511,26/02/2019,1902-00265,0.00,183.67,R,Active Kids Yeadon Llp,No
Http://opendatacommunities.org/id/metropolitan-district-council/leeds,Leeds City Council,28/02/2019,Resources and Housing,Commercial Services  ,Supplies and Services,Operational Materials,205,07/01/2019,1902-00266,0.00,240.00,R,Active Products UK Ltd,Yes
Http://opendatacommunities.org/id/metropolitan-district-council/leeds,Leeds City Council,28/02/2019,Resources and Housing,Strategic Housing Partnership & Support,Supplies and Services,Other Hired And Contracted Services,265,20/02/2019,1902-00267,0.00,550.00,R,Active Properties,No
Http://opendatacommunities.org/id/metropolitan-district-council/leeds,Leeds City Council,28/02/2019,Communities and Environment,Cleaner Neighbourhood Teams,Premises,Removal Of Workplace Waste,126,13/02/2019,1902-00268,0.00,110.00,R,Acumen Waste Services Ltd,No
Http://opendatacommunities.org/id/metropolitan-district-council/leeds,Leeds City Council,28/02/2019,Communities and Environment,Cleaner Neighbourhood Teams,Premises,Removal Of Workplace Waste,126,13/02/2019,1902-00269,0.00,110.00,R,Acumen Waste Services Ltd,No
Http://opendatacommunities.org/id/metropolitan-district-council/leeds,Leeds City Council,28/02/2019,Communities and Environment,Cleaner Neighbourhood Teams,Premises,Removal Of Workplace Waste,126,13/02/2019,1902-00270,0.00,110.00,R,Acumen Waste Services Ltd,No
Http://opendatacommunities.org/id/metropolitan-district-council/leeds,Leeds City Council,28/02/2019,Communities and Environment,Cleaner Neighbourhood Teams,Premises,Removal Of Workplace Waste,126,13/02/2019,1902-00271,0.00,110.00,R,Acumen Waste Services Ltd,No
Http://opendatacommunities.org/id/metropolitan-district-council/leeds,Leeds City Council,28/02/2019,Communities and Environment,Cleaner Neighbourhood Teams,Premises,Removal Of Workplace Waste,126,01/02/2019,1902-00272,0.00,50.00,R,Acumen Waste Services Ltd,No
Http://opendatacommunities.org/id/metropolitan-district-council/leeds,Leeds City Council,28/02/2019,Communities and Environment,Cleaner Neighbourhood Teams,Premises,Removal Of Workplace Waste,126,01/02/2019,1902-00273,0.00,50.00,R,Acumen Waste Services Ltd,No
Http://opendatacommunities.org/id/metropolitan-district-council/leeds,Leeds City Council,28/02/2019,Communities and Environment,Cleaner Neighbourhood Teams,Premises,Removal Of Workplace Waste,126,01/02/2019,1902-00274,0.00,110.00,R,Acumen Waste Services Ltd,No
Http://opendatacommunities.org/id/metropolitan-district-council/leeds,Leeds City Council,28/02/2019,Communities and Environment,Cleaner Neighbourhood Teams,Premises,Removal Of Workplace Waste,126,01/02/2019,1902-00275,0.00,110.00,R,Acumen Waste Services Ltd,No
Http://opendatacommunities.org/id/metropolitan-district-council/leeds,Leeds City Council,28/02/2019,Communities and Environment,Cleaner Neighbourhood Teams,Premises,Removal Of Workplace Waste,126,01/02/2019,1902-00276,0.00,110.00,R,Acumen Waste Services Ltd,No
Http://opendatacommunities.org/id/metropolitan-district-council/leeds,Leeds City Council,28/02/2019,Communities and Environment,Cleaner Neighbourhood Teams,Premises,Removal Of Workplace Waste,126,01/02/2019,1902-00277,0.00,110.00,R,Acumen Waste Services Ltd,No
Http://opendatacommunities.org/id/metropolitan-district-council/leeds,Leeds City Council,28/02/2019,Communities and Environment,Cleaner Neighbourhood Teams,Premises,Removal Of Workplace Waste,126,01/02/2019,1902-00278,0.00,45.00,R,Acumen Waste Services Ltd,No
Http://opendatacommunities.org/id/metropolitan-district-council/leeds,Leeds City Council,28/02/2019,Communities and Environment,Cleaner Neighbourhood Teams,Premises,Removal Of Workplace Waste,126,01/02/2019,1902-00279,0.00,45.00,R,Acumen Waste Services Ltd,No
Http://opendatacommunities.org/id/metropolitan-district-council/leeds,Leeds City Council,28/02/2019,Communities and Environment,Cleaner Neighbourhood Teams,Premises,Removal Of Workplace Waste,126,01/02/2019,1902-00280,0.00,45.00,R,Acumen Waste Services Ltd,No
Http://opendatacommunities.org/id/metropolitan-district-council/leeds,Leeds City Council,28/02/2019,Communities and Environment,Cleaner Neighbourhood Teams,Premises,Removal Of Workplace Waste,126,01/02/2019,1902-00281,0.00,45.00,R,Acumen Waste Services Ltd,No
Http://opendatacommunities.org/id/metropolitan-district-council/leeds,Leeds City Council,28/02/2019,Communities and Environment,Waste Management,Supplies and Services,Recycling & Reuse Charges,234,06/02/2019,1902-00282,0.00,1861.26,R,Acumen Waste Services Ltd,No
Http://opendatacommunities.org/id/metropolitan-district-council/leeds,Leeds City Council,28/02/2019,Communities and Environment,Waste Management,Supplies and Services,Recycling & Reuse Charges,234,06/02/2019,1902-00283,0.00,2872.96,R,Acumen Waste Services Ltd,No
Http://opendatacommunities.org/id/metropolitan-district-council/leeds,Leeds City Council,28/02/2019,Communities and Environment,Cleaner Neighbourhood Teams,Premises,Removal Of Workplace Waste,126,08/02/2019,1902-00284,0.00,125.00,R,Acumen Waste Services Ltd,No
Http://opendatacommunities.org/id/metropolitan-district-council/leeds,Leeds City Council,28/02/2019,Communities and Environment,Cleaner Neighbourhood Teams,Premises,Removal Of Workplace Waste,126,12/02/2019,1902-00285,0.00,245.00,R,Acumen Waste Services Ltd,No
Http://opendatacommunities.org/id/metropolitan-district-council/leeds,Leeds City Council,28/02/2019,Communities and Environment,Waste Management,Supplies and Services,Recycling & Reuse Charges,234,08/02/2019,1902-00286,0.00,4713.45,R,Acumen Waste Services Ltd,No
Http://opendatacommunities.org/id/metropolitan-district-council/leeds,Leeds City Council,28/02/2019,Communities and Environment,Cleaner Neighbourhood Teams,Premises,Removal Of Workplace Waste,126,08/02/2019,1902-00287,0.00,110.00,R,Acumen Waste Services Ltd,No
Http://opendatacommunities.org/id/metropolitan-district-council/leeds,Leeds City Council,28/02/2019,Communities and Environment,Cleaner Neighbourhood Teams,Premises,Removal Of Workplace Waste,126,08/02/2019,1902-00288,0.00,110.00,R,Acumen Waste Services Ltd,No
Http://opendatacommunities.org/id/metropolitan-district-council/leeds,Leeds City Council,28/02/2019,Communities and Environment,Cleaner Neighbourhood Teams,Premises,Removal Of Workplace Waste,126,08/02/2019,1902-00289,0.00,110.00,R,Acumen Waste Services Ltd,No
Http://opendatacommunities.org/id/metropolitan-district-council/leeds,Leeds City Council,28/02/2019,Communities and Environment,Cleaner Neighbourhood Teams,Premises,Removal Of Workplace Waste,126,08/02/2019,1902-00290,0.00,45.00,R,Acumen Waste Services Ltd,No
Http://opendatacommunities.org/id/metropolitan-district-council/leeds,Leeds City Council,28/02/2019,Communities and Environment,Cleaner Neighbourhood Teams,Premises,Removal Of Workplace Waste,126,13/02/2019,1902-00291,0.00,110.00,R,Acumen Waste Services Ltd,No
Http://opendatacommunities.org/id/metropolitan-district-council/leeds,Leeds City Council,28/02/2019,Communities and Environment,Cleaner Neighbourhood Teams,Premises,Removal Of Workplace Waste,126,08/02/2019,1902-00292,0.00,110.00,R,Acumen Waste Services Ltd,No
Http://opendatacommunities.org/id/metropolitan-district-council/leeds,Leeds City Council,28/02/2019,Communities and Environment,Waste Management,Supplies and Services,Recycling & Reuse Charges,234,12/02/2019,1902-00293,0.00,6685.93,R,Acumen Waste Services Ltd,No
Http://opendatacommunities.org/id/metropolitan-district-council/leeds,Leeds City Council,28/02/2019,Communities and Environment,Cleaner Neighbourhood Teams,Premises,Removal Of Workplace Waste,126,15/02/2019,1902-00294,0.00,60.00,R,Acumen Waste Services Ltd,No
Http://opendatacommunities.org/id/metropolitan-district-council/leeds,Leeds City Council,28/02/2019,Communities and Environment,Cleaner Neighbourhood Teams,Premises,Removal Of Workplace Waste,126,15/02/2019,1902-00295,0.00,110.00,R,Acumen Waste Services Ltd,No
Http://opendatacommunities.org/id/metropolitan-district-council/leeds,Leeds City Council,28/02/2019,Communities and Environment,Cleaner Neighbourhood Teams,Premises,Removal Of Workplace Waste,126,15/02/2019,1902-00296,0.00,45.00,R,Acumen Waste Services Ltd,No
Http://opendatacommunities.org/id/metropolitan-district-council/leeds,Leeds City Council,28/02/2019,Communities and Environment,Cleaner Neighbourhood Teams,Premises,Removal Of Workplace Waste,126,15/02/2019,1902-00297,0.00,110.00,R,Acumen Waste Services Ltd,No
Http://opendatacommunities.org/id/metropolitan-district-council/leeds,Leeds City Council,28/02/2019,Communities and Environment,Cleaner Neighbourhood Teams,Premises,Removal Of Workplace Waste,126,15/02/2019,1902-00298,0.00,110.00,R,Acumen Waste Services Ltd,No
Http://opendatacommunities.org/id/metropolitan-district-council/leeds,Leeds City Council,28/02/2019,Communities and Environment,Cleaner Neighbourhood Teams,Premises,Removal Of Workplace Waste,126,15/02/2019,1902-00299,0.00,110.00,R,Acumen Waste Services Ltd,No
Http://opendatacommunities.org/id/metropolitan-district-council/leeds,Leeds City Council,28/02/2019,Communities and Environment,Cleaner Neighbourhood Teams,Premises,Removal Of Workplace Waste,126,15/02/2019,1902-00300,0.00,110.00,R,Acumen Waste Services Ltd,No
Http://opendatacommunities.org/id/metropolitan-district-council/leeds,Leeds City Council,28/02/2019,Communities and Environment,Waste Management,Supplies and Services,Recycling & Reuse Charges,234,22/02/2019,1902-00301,0.00,6599.50,R,Acumen Waste Services Ltd,No
Http://opendatacommunities.org/id/metropolitan-district-council/leeds,Leeds City Council,28/02/2019,Communities and Environment,Cleaner Neighbourhood Teams,Premises,Removal Of Workplace Waste,126,21/02/2019,1902-00302,0.00,45.00,R,Acumen Waste Services Ltd,No
Http://opendatacommunities.org/id/metropolitan-district-council/leeds,Leeds City Council,28/02/2019,Communities and Environment,Cleaner Neighbourhood Teams,Premises,Removal Of Workplace Waste,126,21/02/2019,1902-00303,0.00,110.00,R,Acumen Waste Services Ltd,No
Http://opendatacommunities.org/id/metropolitan-district-council/leeds,Leeds City Council,28/02/2019,Communities and Environment,Cleaner Neighbourhood Teams,Premises,Removal Of Workplace Waste,126,21/02/2019,1902-00304,0.00,110.00,R,Acumen Waste Services Ltd,No
Http://opendatacommunities.org/id/metropolitan-district-council/leeds,Leeds City Council,28/02/2019,Communities and Environment,Cleaner Neighbourhood Teams,Premises,Removal Of Workplace Waste,126,22/02/2019,1902-00305,0.00,110.00,R,Acumen Waste Services Ltd,No
Http://opendatacommunities.org/id/metropolitan-district-council/leeds,Leeds City Council,28/02/2019,Communities and Environment,Cleaner Neighbourhood Teams,Premises,Removal Of Workplace Waste,126,22/02/2019,1902-00306,0.00,45.00,R,Acumen Waste Services Ltd,No
Http://opendatacommunities.org/id/metropolitan-district-council/leeds,Leeds City Council,28/02/2019,Communities and Environment,Waste Management,Supplies and Services,Recycling & Reuse Charges,234,27/02/2019,1902-00307,0.00,5670.88,R,Acumen Waste Services Ltd,No
Http://opendatacommunities.org/id/metropolitan-district-council/leeds,Leeds City Council,28/02/2019,Communities and Environment,Parks and Countryside,Supplies and Services,Resaleable Materials,204,05/02/2019,1902-00308,0.00,171.00,R,Acushnet Europe Limited,No
Http://opendatacommunities.org/id/metropolitan-district-council/leeds,Leeds City Council,28/02/2019,Communities and Environment,Parks and Countryside,Supplies and Services,Resaleable Materials,204,27/02/2019,1902-00309,0.00,285.00,R,Acushnet Europe Limited,No
Http://opendatacommunities.org/id/metropolitan-district-council/leeds,Leeds City Council,28/02/2019,Resources and Housing,Shared Services,Supplies and Services,Other Hired And Contracted Services,265,08/02/2019,1902-00310,0.00,705.00,R,Ad3 Envelope Printers Limited,No
Http://opendatacommunities.org/id/metropolitan-district-council/leeds,Leeds City Council,28/02/2019,City Development,Asset Management Services,Supplies and Services,Bought In Professional Services,277,12/02/2019,1902-00311,0.00,500.00,R,Adair Paxton Ltd,No
Http://opendatacommunities.org/id/metropolitan-district-council/leeds,Leeds City Council,28/02/2019,City Development,Libraries  Arts & Heritage,Income,Admissions  Booking Fees & Ticket Sales,933,25/02/2019,1902-00312,0.00,1738.75,R,Adam Robinson,No
Http://opendatacommunities.org/id/metropolitan-district-council/leeds,Leeds City Council,28/02/2019,City Development,Libraries  Arts & Heritage,Income,Other Income,973,25/02/2019,1902-00313,0.00,-61.11,R,Adam Robinson,No
Http://opendatacommunities.org/id/metropolitan-district-council/leeds,Leeds City Council,28/02/2019,Adults and Health,Services For Older People - 65 And Over,Third Party Payments,Nursing Home,570,06/02/2019,1902-00314,0.00,3897.12,R,Adbolton Hall,No
Http://opendatacommunities.org/id/metropolitan-district-council/leeds,Leeds City Council,28/02/2019,Communities and Environment,Communities,Supplies and Services,'Well Being' Large Grants Projects,230,04/02/2019,1902-00315,0.00,1200.00,R,Addictive Audio,No
Http://opendatacommunities.org/id/metropolitan-district-council/leeds,Leeds City Council,28/02/2019,Communities and Environment,Communities,Supplies and Services,'Well Being' Large Grants Projects,230,01/02/2019,1902-00316,0.00,1280.00,R,Addictive Audio,No
Http://opendatacommunities.org/id/metropolitan-district-council/leeds,Leeds City Council,28/02/2019,Strategic Landlord,Property and Contracts,Support Services,Professional Legal Services Charges,410,22/02/2019,1902-00317,0.00,338.50,R,Addleshaw Goddard Llp,No
Http://opendatacommunities.org/id/metropolitan-district-council/leeds,Leeds City Council,28/02/2019,Adults and Health,Public Health,Third Party Payments,Public Health Commissioned Services,526,19/02/2019,1902-00318,0.00,433.00,R,Addlestone & Partners,No
Http://opendatacommunities.org/id/metropolitan-district-council/leeds,Leeds City Council,28/02/2019,Resources and Housing,Technology  ,Employees,Agency Staff,8,07/01/2019,1902-00319,0.00,75937.17,R,Adecco Alfred Marks,Yes
Http://opendatacommunities.org/id/metropolitan-district-council/leeds,Leeds City Council,28/02/2019,Resources and Housing,Technology  ,Employees,Agency Staff,8,29/01/2019,1902-00320,0.00,45333.21,R,Adecco Alfred Marks,Yes
Http://opendatacommunities.org/id/metropolitan-district-council/leeds,Leeds City Council,28/02/2019,Children and Families,Social Care,Third Party Payments,Services Rendered By Voluntary Sector,505,20/02/2019,1902-00321,0.00,280.50,R,Adel Pre School,No
Http://opendatacommunities.org/id/metropolitan-district-council/leeds,Leeds City Council,28/02/2019,Children and Families,Social Care,Third Party Payments,Services Rendered By Voluntary Sector,505,15/02/2019,1902-00322,0.00,5610.00,R,Adel Pre School,No
Http://opendatacommunities.org/id/metropolitan-district-council/leeds,Leeds City Council,28/02/2019,Children and Families,Social Care,Third Party Payments,Services Rendered By Voluntary Sector,505,26/02/2019,1902-00323,0.00,960.67,R,Adel Pre School,No
Http://opendatacommunities.org/id/metropolitan-district-council/leeds,Leeds City Council,28/02/2019,Children and Families,Social Care,Third Party Payments,Services Rendered By Other Organisations,511,15/02/2019,1902-00324,0.00,233.75,R,REDACTED PERSONAL DATA,No
Http://opendatacommunities.org/id/metropolitan-district-council/leeds,Leeds City Council,28/02/2019,Children and Families,Social Care,Third Party Payments,Services Rendered By Other Organisations,511,26/02/2019,1902-00325,0.00,237.33,R,REDACTED PERSONAL DATA,No
Http://opendatacommunities.org/id/metropolitan-district-council/leeds,Leeds City Council,28/02/2019,Children and Families,Social Care,Third Party Payments,Services Rendered By Other Organisations,511,15/02/2019,1902-00326,0.00,155.84,R,REDACTED PERSONAL DATA,No
Http://opendatacommunities.org/id/metropolitan-district-council/leeds,Leeds City Council,28/02/2019,Adults and Health,Social Services Support Services,Employees,Training & Development,70,28/02/2019,1902-00327,0.00,13.00,R,REDACTED PERSONAL DATA,No
Http://opendatacommunities.org/id/metropolitan-district-council/leeds,Leeds City Council,28/02/2019,Children and Families,Social Care,Third Party Payments,Services Rendered By Other Organisations,511,15/02/2019,1902-00328,0.00,1309.00,R,REDACTED PERSONAL DATA,No
Http://opendatacommunities.org/id/metropolitan-district-council/leeds,Leeds City Council,28/02/2019,Adults and Health,Services For Older People - 65 And Over,Third Party Payments,Nursing Home,570,06/02/2019,1902-00329,0.00,1184.76,R,Aden House,No
Http://opendatacommunities.org/id/metropolitan-district-council/leeds,Leeds City Council,28/02/2019,Resources and Housing,Leeds Building Services,Supplies and Services,Operational Materials,205,22/02/2019,1902-00330,0.00,1923.96,R,Adi Global,No
Http://opendatacommunities.org/id/metropolitan-district-council/leeds,Leeds City Council,28/02/2019,Resources and Housing,Leeds Building Services,Supplies and Services,Operational Materials,205,04/02/2019,1902-00331,0.00,191.22,R,Adi Global,No
Http://opendatacommunities.org/id/metropolitan-district-council/leeds,Leeds City Council,28/02/2019,Communities and Environment,Community Safety,Supplies and Services,Other Hired And Contracted Services,265,07/02/2019,1902-00332,0.00,1394.75,R,Adi Global,No
Http://opendatacommunities.org/id/metropolitan-district-council/leeds,Leeds City Council,28/02/2019,Resources and Housing,Leeds Building Services,Supplies and Services,Operational Materials,205,14/02/2019,1902-00333,0.00,19.01,R,Adi Global,No
Http://opendatacommunities.org/id/metropolitan-district-council/leeds,Leeds City Council,28/02/2019,Resources and Housing,Leeds Building Services,Supplies and Services,Operational Materials,205,14/02/2019,1902-00334,0.00,1233.82,R,Adi Global,No
Http://opendatacommunities.org/id/metropolitan-district-council/leeds,Leeds City Council,28/02/2019,Resources and Housing,Leeds Building Services,Supplies and Services,Operational Materials,205,19/02/2019,1902-00335,0.00,420.51,R,Adi Global,No
Http://opendatacommunities.org/id/metropolitan-district-council/leeds,Leeds City Council,28/02/2019,Resources and Housing,Leeds Building Services,Supplies and Services,Operational Materials,205,19/02/2019,1902-00336,0.00,1625.26,R,Adi Global,No
Http://opendatacommunities.org/id/metropolitan-district-council/leeds,Leeds City Council,28/02/2019,Resources and Housing,Leeds Building Services,Supplies and Services,Operational Materials,205,19/02/2019,1902-00337,0.00,111.35,R,Adi Global,No
Http://opendatacommunities.org/id/metropolitan-district-council/leeds,Leeds City Council,28/02/2019,Resources and Housing,Leeds Building Services,Supplies and Services,Operational Materials,205,22/02/2019,1902-00338,0.00,104.00,R,Adi Global,No
Http://opendatacommunities.org/id/metropolitan-district-council/leeds,Leeds City Council,28/02/2019,Resources and Housing,Leeds Building Services,Supplies and Services,Operational Materials,205,22/02/2019,1902-00339,0.00,138.69,R,Adi Global,No
Http://opendatacommunities.org/id/metropolitan-district-council/leeds,Leeds City Council,28/02/2019,Resources and Housing,Leeds Building Services,Supplies and Services,Operational Materials,205,22/02/2019,1902-00340,0.00,23.02,R,Adi Global,No
Http://opendatacommunities.org/id/metropolitan-district-council/leeds,Leeds City Council,28/02/2019,Resources and Housing,Leeds Building Services,Supplies and Services,Operational Materials,205,22/02/2019,1902-00341,0.00,32.89,R,Adi Global,No
Http://opendatacommunities.org/id/metropolitan-district-council/leeds,Leeds City Council,28/02/2019,Resources and Housing,Leeds Building Services,Supplies and Services,Operational Materials,205,22/02/2019,1902-00342,0.00,62.00,R,Adi Global,No
Http://opendatacommunities.org/id/metropolitan-district-council/leeds,Leeds City Council,28/02/2019,Resources and Housing,Leeds Building Services,Supplies and Services,Operational Materials,205,22/02/2019,1902-00343,0.00,720.00,R,Adi Global,No
Http://opendatacommunities.org/id/metropolitan-district-council/leeds,Leeds City Council,28/02/2019,Resources and Housing,Leeds Building Services,Supplies and Services,Operational Materials,205,22/02/2019,1902-00344,0.00,23.37,R,Adi Global,No
Http://opendatacommunities.org/id/metropolitan-district-council/leeds,Leeds City Council,28/02/2019,Resources and Housing,Leeds Building Services,Supplies and Services,Operational Materials,205,22/02/2019,1902-00345,0.00,816.56,R,Adi Global,No
Http://opendatacommunities.org/id/metropolitan-district-council/leeds,Leeds City Council,28/02/2019,Resources and Housing,Leeds Building Services,Supplies and Services,Operational Materials,205,22/02/2019,1902-00346,0.00,32.89,R,Adi Global,No
Http://opendatacommunities.org/id/metropolitan-district-council/leeds,Leeds City Council,28/02/2019,Communities and Environment,Community Safety  ,Supplies and Services,Other Hired And Contracted Services,265,14/01/2019,1902-00347,0.00,50.74,R,Adi-Gardiner Ltd,Yes
Http://opendatacommunities.org/id/metropolitan-district-council/leeds,Leeds City Council,28/02/2019,Adults and Health,Services For Older People - 65 And Over,Third Party Payments,Home Care,568,27/02/2019,1902-00348,0.00,4108.00,R,Adjuvo,No
Http://opendatacommunities.org/id/metropolitan-district-council/leeds,Leeds City Council,28/02/2019,Adults and Health,Services For Older People - 65 And Over,Third Party Payments,HCAIT Community Support,575,27/02/2019,1902-00349,0.00,400.00,R,Adjuvo,No
Http://opendatacommunities.org/id/metropolitan-district-council/leeds,Leeds City Council As Accountable Body,28/02/2019,Social Services Pooled Budgets,Jcs For People With Learning Disabilitie,Third Party Payments,Home Care,568,27/02/2019,1902-00350,0.00,192.00,R,Adjuvo,No
Http://opendatacommunities.org/id/metropolitan-district-council/leeds,Leeds City Council,28/02/2019,City Development,Libraries  Arts & Heritage  ,Supplies and Services,Computer Software & Equipment,214,17/01/2019,1902-00351,0.00,104.18,R,Adobe Sign,Yes
Http://opendatacommunities.org/id/metropolitan-district-council/leeds,Leeds City Council,28/02/2019,Children and Families,Social Care,Third Party Payments,Independent Fostering Agencies,509,06/02/2019,1902-00352,0.00,3129.14,R,Adolescent And Childrens Trust,No
Http://opendatacommunities.org/id/metropolitan-district-council/leeds,Leeds City Council,28/02/2019,Children and Families,Social Care,Third Party Payments,Independent Fostering Agencies,509,06/02/2019,1902-00353,0.00,3129.14,R,Adolescent And Childrens Trust,No
Http://opendatacommunities.org/id/metropolitan-district-council/leeds,Leeds City Council,28/02/2019,Children and Families,Social Care,Third Party Payments,Independent Fostering Agencies,509,01/02/2019,1902-00354,0.00,841.34,R,Adolescent And Childrens Trust,No
Http://opendatacommunities.org/id/metropolitan-district-council/leeds,Leeds City Council,28/02/2019,Children and Families,Social Care,Third Party Payments,Independent Fostering Agencies,509,07/02/2019,1902-00355,0.00,2713.20,R,Adolescent And Childrens Trust,No
Http://opendatacommunities.org/id/metropolitan-district-council/leeds,Leeds City Council,28/02/2019,Strategic Landlord,Housing Management,Premises,Premises Security Services,162,01/02/2019,1902-00356,0.00,148.35,R,Adt Fire And Security Plc,No
Http://opendatacommunities.org/id/metropolitan-district-council/leeds,Leeds City Council As Accountable Body,28/02/2019,Social Services Pooled Budgets,Jcs For People With Learning Disabilitie,Third Party Payments,Sheltered Accommodation,569,01/02/2019,1902-00357,0.00,659.10,R,Adult Placement Services,No
Http://opendatacommunities.org/id/metropolitan-district-council/leeds,Leeds City Council As Accountable Body,28/02/2019,Social Services Pooled Budgets,Jcs For People With Learning Disabilitie,Third Party Payments,Sheltered Accommodation,569,21/02/2019,1902-00358,0.00,150.76,R,Adult Placement Services,No
Http://opendatacommunities.org/id/metropolitan-district-council/leeds,Leeds City Council As Accountable Body,28/02/2019,Social Services Pooled Budgets,Jcs For People With Learning Disabilitie,Third Party Payments,Sheltered Accommodation,569,22/02/2019,1902-00359,0.00,1332.20,R,Adult Placement Services,No
Http://opendatacommunities.org/id/metropolitan-district-council/leeds,Leeds City Council As Accountable Body,28/02/2019,Social Services Pooled Budgets,Jcs For People With Learning Disabilitie,Third Party Payments,Sheltered Accommodation,569,27/02/2019,1902-00360,0.00,142.74,R,Adult Placement Services,No
Http://opendatacommunities.org/id/metropolitan-district-council/leeds,Leeds City Council As Accountable Body,28/02/2019,Social Services Pooled Budgets,Jcs For People With Learning Disabilitie,Third Party Payments,Sheltered Accommodation,569,27/02/2019,1902-00361,0.00,823.81,R,Adult Placement Services,No
Http://opendatacommunities.org/id/metropolitan-district-council/leeds,Leeds City Council,28/02/2019,City Development,Libraries  Arts & Heritage,Supplies and Services,External Audit Fees,261,05/02/2019,1902-00362,0.00,90.00,R,Advance Stocks Ltd,No
Http://opendatacommunities.org/id/metropolitan-district-council/leeds,Leeds City Council,28/02/2019,City Development,Libraries  Arts & Heritage,Supplies and Services,External Audit Fees,261,13/02/2019,1902-00363,0.00,85.00,R,Advance Stocks Ltd,No
Http://opendatacommunities.org/id/metropolitan-district-council/leeds,Leeds City Council,28/02/2019,Children and Families,Social Care,Support Services,Legal Disbursements,411,14/02/2019,1902-00364,0.00,548.73,R,Advanced Child Care Assessments Ltd,No
Http://opendatacommunities.org/id/metropolitan-district-council/leeds,Leeds City Council,28/02/2019,Resources and Housing,Leeds Building Services,Supplies and Services,Operational Materials,205,27/02/2019,1902-00365,0.00,272.00,R,Advanced Labelling Limited,No
Http://opendatacommunities.org/id/metropolitan-district-council/leeds,Leeds City Council As Accountable Body,28/02/2019,Social Services Pooled Budgets,Jcs For People With Learning Disabilitie,Third Party Payments,Residential,580,06/02/2019,1902-00366,0.00,17782.08,R,Advitam Ltd,No
Http://opendatacommunities.org/id/metropolitan-district-council/leeds,Leeds City Council As Accountable Body,28/02/2019,Social Services Pooled Budgets,Jcs For People With Learning Disabilitie,Third Party Payments,Other Agency Services,561,01/02/2019,1902-00367,0.00,11372.30,R,Advonet,No
Http://opendatacommunities.org/id/metropolitan-district-council/leeds,Leeds City Council As Accountable Body,28/02/2019,Social Services Pooled Budgets,Jcs For People With Learning Disabilitie,Third Party Payments,Other Agency Services,561,01/02/2019,1902-00368,0.00,151.50,R,Advonet,No
Http://opendatacommunities.org/id/metropolitan-district-council/leeds,Leeds City Council As Accountable Body,28/02/2019,Social Services Pooled Budgets,Jcs For People With Learning Disabilitie,Third Party Payments,Other Agency Services,561,15/02/2019,1902-00369,0.00,27.60,R,Advonet,No
Http://opendatacommunities.org/id/metropolitan-district-council/leeds,Leeds City Council,28/02/2019,Children and Families,Social Care,Third Party Payments,Placement Support,550,06/02/2019,1902-00370,0.00,30.00,R,Advonet,No
Http://opendatacommunities.org/id/metropolitan-district-council/leeds,Leeds City Council As Accountable Body,28/02/2019,Social Services Pooled Budgets,Jcs For People With Learning Disabilitie,Third Party Payments,Other Agency Services,561,15/02/2019,1902-00371,0.00,9.90,R,Advonet,No
Http://opendatacommunities.org/id/metropolitan-district-council/leeds,Leeds City Council As Accountable Body,28/02/2019,Social Services Pooled Budgets,Jcs For People With Learning Disabilitie,Third Party Payments,Other Agency Services,561,15/02/2019,1902-00372,0.00,20.10,R,Advonet,No
Http://opendatacommunities.org/id/metropolitan-district-council/leeds,Leeds City Council,28/02/2019,Adults and Health,Services For Older People - 65 And Over,Third Party Payments,Payments To Voluntary Organisations,561,08/02/2019,1902-00373,0.00,103916.67,R,Advonet,No
Http://opendatacommunities.org/id/metropolitan-district-council/leeds,Leeds City Council,28/02/2019,Adults and Health,Social Services Support Services,Employees,Training & Development,70,13/02/2019,1902-00374,0.00,360.00,R,Advonet,No
Http://opendatacommunities.org/id/metropolitan-district-council/leeds,Leeds City Council,28/02/2019,Adults and Health,Services For Adults Under 65 Mental/Dis,Third Party Payments,Fees - Level 4,520,20/02/2019,1902-00375,0.00,230.00,R,Ae Bia Assessments Limited,No
Http://opendatacommunities.org/id/metropolitan-district-council/leeds,Leeds City Council,28/02/2019,Adults and Health,Services For Adults Under 65 Mental/Dis,Third Party Payments,Fees - Level 4,520,20/02/2019,1902-00376,0.00,251.30,R,Ae Bia Assessments Limited,No
Http://opendatacommunities.org/id/metropolitan-district-council/leeds,Leeds City Council,28/02/2019,Adults and Health,Services For Adults Under 65 Mental/Dis,Third Party Payments,Fees - Level 4,520,20/02/2019,1902-00377,0.00,200.00,R,Ae Bia Assessments Limited,No
Http://opendatacommunities.org/id/metropolitan-district-council/leeds,Leeds City Council,28/02/2019,Adults and Health,Services For Adults Under 65 Mental/Dis,Third Party Payments,Fees - Level 4,520,20/02/2019,1902-00378,0.00,200.00,R,Ae Bia Assessments Limited,No
Http://opendatacommunities.org/id/metropolitan-district-council/leeds,Leeds City Council As Accountable Body,28/02/2019,Social Services Pooled Budgets,Jcs For People With Learning Disabilitie,Third Party Payments,Home Care,568,18/02/2019,1902-00379,0.00,701.14,R,Affinity Trust,No
Http://opendatacommunities.org/id/metropolitan-district-council/leeds,Leeds City Council As Accountable Body,28/02/2019,Social Services Pooled Budgets,Jcs For People With Learning Disabilitie,Third Party Payments,Day Centre,564,06/02/2019,1902-00380,0.00,9142.77,R,Affinity Trust,No
Http://opendatacommunities.org/id/metropolitan-district-council/leeds,Leeds City Council As Accountable Body,28/02/2019,Social Services Pooled Budgets,Jcs For People With Learning Disabilitie,Third Party Payments,Day Centre,564,20/02/2019,1902-00381,0.00,17538.00,R,Affinity Trust,No
Http://opendatacommunities.org/id/metropolitan-district-council/leeds,Leeds City Council As Accountable Body,28/02/2019,Social Services Pooled Budgets,Jcs For People With Learning Disabilitie,Third Party Payments,Day Centre,564,20/02/2019,1902-00382,0.00,9142.77,R,Affinity Trust,No
Http://opendatacommunities.org/id/metropolitan-district-council/leeds,Leeds City Council,28/02/2019,Adults and Health,Services For Older People - 65 And Over,Third Party Payments,Home Care,568,06/02/2019,1902-00383,0.00,-0.30,R,Affinity Trust,No
Http://opendatacommunities.org/id/metropolitan-district-council/leeds,Leeds City Council,28/02/2019,Adults and Health,Services For Older People - 65 And Over,Third Party Payments,HCAIT Community Support,575,06/02/2019,1902-00384,0.00,479.40,R,Affinity Trust,No
Http://opendatacommunities.org/id/metropolitan-district-council/leeds,Leeds City Council,28/02/2019,Adults and Health,Services For Older People Under 65 P/Dis,Third Party Payments,Home Care,568,06/02/2019,1902-00385,0.00,958.80,R,Affinity Trust,No
Http://opendatacommunities.org/id/metropolitan-district-council/leeds,Leeds City Council As Accountable Body,28/02/2019,Social Services Pooled Budgets,Jcs For People With Learning Disabilitie,Third Party Payments,Home Care,568,06/02/2019,1902-00386,0.00,511.36,R,Affinity Trust,No
Http://opendatacommunities.org/id/metropolitan-district-council/leeds,Leeds City Council As Accountable Body,28/02/2019,Social Services Pooled Budgets,Jcs For People With Learning Disabilitie,Third Party Payments,Nursing Home - Physical Disabl,575,20/02/2019,1902-00387,0.00,63.92,R,Affinity Trust,No
Http://opendatacommunities.org/id/metropolitan-district-council/leeds,Leeds City Council As Accountable Body,28/02/2019,Social Services Pooled Budgets,Jcs For People With Learning Disabilitie,Third Party Payments,Home Care,568,22/02/2019,1902-00388,0.00,479.40,R,Affinity Trust,No
Http://opendatacommunities.org/id/metropolitan-district-council/leeds,Leeds City Council As Accountable Body,28/02/2019,Social Services Pooled Budgets,Jcs For People With Learning Disabilitie,Third Party Payments,Home Care,568,22/02/2019,1902-00389,0.00,1294.38,R,Affinity Trust,No
Http://opendatacommunities.org/id/metropolitan-district-council/leeds,Leeds City Council As Accountable Body,28/02/2019,Social Services Pooled Budgets,Jcs For People With Learning Disabilitie,Third Party Payments,Home Care,568,22/02/2019,1902-00390,0.00,335.58,R,Affinity Trust,No
Http://opendatacommunities.org/id/metropolitan-district-council/leeds,Leeds City Council As Accountable Body,28/02/2019,Social Services Pooled Budgets,Jcs For People With Learning Disabilitie,Third Party Payments,Home Care,568,15/02/2019,1902-00391,0.00,271.66,R,Affinity Trust,No
Http://opendatacommunities.org/id/metropolitan-district-council/leeds,Leeds City Council As Accountable Body,28/02/2019,Social Services Pooled Budgets,Jcs For People With Learning Disabilitie,Third Party Payments,Day Centre,564,22/02/2019,1902-00392,0.00,416.64,R,Affinity Trust,No
Http://opendatacommunities.org/id/metropolitan-district-council/leeds,Leeds City Council As Accountable Body,28/02/2019,Social Services Pooled Budgets,Jcs For People With Learning Disabilitie,Third Party Payments,Home Care,568,22/02/2019,1902-00393,0.00,1254.00,R,Affinity Trust,No
Http://opendatacommunities.org/id/metropolitan-district-council/leeds,Leeds City Council As Accountable Body,28/02/2019,Social Services Pooled Budgets,Jcs For People With Learning Disabilitie,Third Party Payments,Home Care,568,22/02/2019,1902-00394,0.00,824.18,R,Affinity Trust,No
Http://opendatacommunities.org/id/metropolitan-district-council/leeds,Leeds City Council As Accountable Body,28/02/2019,Social Services Pooled Budgets,Jcs For People With Learning Disabilitie,Third Party Payments,Home Care,568,22/02/2019,1902-00395,0.00,591.26,R,Affinity Trust,No
Http://opendatacommunities.org/id/metropolitan-district-council/leeds,Leeds City Council As Accountable Body,28/02/2019,Social Services Pooled Budgets,Jcs For People With Learning Disabilitie,Third Party Payments,Home Care,568,22/02/2019,1902-00396,0.00,639.20,R,Affinity Trust,No
Http://opendatacommunities.org/id/metropolitan-district-council/leeds,Leeds City Council As Accountable Body,28/02/2019,Social Services Pooled Budgets,Jcs For People With Learning Disabilitie,Third Party Payments,Home Care,568,22/02/2019,1902-00397,0.00,204.00,R,Affinity Trust,No
Http://opendatacommunities.org/id/metropolitan-district-council/leeds,Leeds City Council As Accountable Body,28/02/2019,Social Services Pooled Budgets,Jcs For People With Learning Disabilitie,Third Party Payments,Home Care,568,22/02/2019,1902-00398,0.00,1086.64,R,Affinity Trust,No
Http://opendatacommunities.org/id/metropolitan-district-council/leeds,Leeds City Council As Accountable Body,28/02/2019,Social Services Pooled Budgets,Jcs For People With Learning Disabilitie,Third Party Payments,Home Care,568,22/02/2019,1902-00399,0.00,2780.52,R,Affinity Trust,No
Http://opendatacommunities.org/id/metropolitan-district-council/leeds,Leeds City Council As Accountable Body,28/02/2019,Social Services Pooled Budgets,Jcs For People With Learning Disabilitie,Third Party Payments,Home Care,568,22/02/2019,1902-00400,0.00,408.64,R,Affinity Trust,No
Http://opendatacommunities.org/id/metropolitan-district-council/leeds,Leeds City Council As Accountable Body,28/02/2019,Social Services Pooled Budgets,Jcs For People With Learning Disabilitie,Third Party Payments,Home Care,568,22/02/2019,1902-00401,0.00,706.44,R,Affinity Trust,No
Http://opendatacommunities.org/id/metropolitan-district-council/leeds,Leeds City Council As Accountable Body,28/02/2019,Social Services Pooled Budgets,Jcs For People With Learning Disabilitie,Third Party Payments,Home Care,568,22/02/2019,1902-00402,0.00,878.90,R,Affinity Trust,No
Http://opendatacommunities.org/id/metropolitan-district-council/leeds,Leeds City Council As Accountable Body,28/02/2019,Social Services Pooled Budgets,Jcs For People With Learning Disabilitie,Third Party Payments,Home Care,568,22/02/2019,1902-00403,0.00,319.60,R,Affinity Trust,No
Http://opendatacommunities.org/id/metropolitan-district-council/leeds,Leeds City Council As Accountable Body,28/02/2019,Social Services Pooled Budgets,Jcs For People With Learning Disabilitie,Third Party Payments,Home Care,568,22/02/2019,1902-00404,0.00,639.20,R,Affinity Trust,No
Http://opendatacommunities.org/id/metropolitan-district-council/leeds,Leeds City Council As Accountable Body,28/02/2019,Social Services Pooled Budgets,Jcs For People With Learning Disabilitie,Third Party Payments,Home Care,568,22/02/2019,1902-00405,0.00,127.84,R,Affinity Trust,No
Http://opendatacommunities.org/id/metropolitan-district-council/leeds,Leeds City Council As Accountable Body,28/02/2019,Social Services Pooled Budgets,Jcs For People With Learning Disabilitie,Third Party Payments,Home Care,568,22/02/2019,1902-00406,0.00,858.93,R,Affinity Trust,No
Http://opendatacommunities.org/id/metropolitan-district-council/leeds,Leeds City Council As Accountable Body,28/02/2019,Social Services Pooled Budgets,Jcs For People With Learning Disabilitie,Third Party Payments,Home Care,568,22/02/2019,1902-00407,0.00,319.60,R,Affinity Trust,No
Http://opendatacommunities.org/id/metropolitan-district-council/leeds,Leeds City Council As Accountable Body,28/02/2019,Social Services Pooled Budgets,Jcs For People With Learning Disabilitie,Third Party Payments,Day Centre,564,22/02/2019,1902-00408,0.00,271.66,R,Affinity Trust,No
Http://opendatacommunities.org/id/metropolitan-district-council/leeds,Leeds City Council As Accountable Body,28/02/2019,Social Services Pooled Budgets,Jcs For People With Learning Disabilitie,Third Party Payments,Home Care,568,22/02/2019,1902-00409,0.00,159.80,R,Affinity Trust,No
Http://opendatacommunities.org/id/metropolitan-district-council/leeds,Leeds City Council As Accountable Body,28/02/2019,Social Services Pooled Budgets,Jcs For People With Learning Disabilitie,Third Party Payments,Home Care,568,22/02/2019,1902-00410,0.00,191.76,R,Affinity Trust,No
Http://opendatacommunities.org/id/metropolitan-district-council/leeds,Leeds City Council,28/02/2019,Adults and Health,Assessment And Care Management,Third Party Payments,Home Care,568,26/02/2019,1902-00411,0.00,511.36,R,Affinity Trust,No
Http://opendatacommunities.org/id/metropolitan-district-council/leeds,Leeds City Council,28/02/2019,Adults and Health,Services For Older People Under 65 P/Dis,Third Party Payments,Home Care,568,26/02/2019,1902-00412,0.00,790.54,R,Affinity Trust,No
Http://opendatacommunities.org/id/metropolitan-district-council/leeds,Leeds City Council,28/02/2019,Adults and Health,Services For Older People - 65 And Over,Third Party Payments,Home Care,568,26/02/2019,1902-00413,0.00,383.52,R,Affinity Trust,No
Http://opendatacommunities.org/id/metropolitan-district-council/leeds,Leeds City Council As Accountable Body,28/02/2019,Social Services Pooled Budgets,Jcs For People With Learning Disabilitie,Third Party Payments,Sheltered Accommodation,569,06/02/2019,1902-00414,0.00,132461.44,R,Affinity Trust North Divisional Office,No
Http://opendatacommunities.org/id/metropolitan-district-council/leeds,Leeds City Council,28/02/2019,Communities and Environment,Parks And Countryside  ,Transport,External Hire -Occasional,304,14/01/2019,1902-00415,0.00,950.00,R,Afi Uplift,Yes
Http://opendatacommunities.org/id/metropolitan-district-council/leeds,Leeds City Council,28/02/2019,Communities and Environment,Parks And Countryside  ,Transport,External Hire -Occasional,304,14/01/2019,1902-00416,0.00,950.00,R,Afi Uplift,Yes
Http://opendatacommunities.org/id/metropolitan-district-council/leeds,Leeds City Council,28/02/2019,Communities and Environment,Parks And Countryside  ,Transport,External Hire -Occasional,304,14/01/2019,1902-00417,0.00,950.00,R,Afi Uplift,Yes
Http://opendatacommunities.org/id/metropolitan-district-council/leeds,Leeds City Council,28/02/2019,Communities and Environment,Parks And Countryside  ,Transport,External Hire -Occasional,304,14/01/2019,1902-00418,0.00,570.00,R,Afi Uplift,Yes
Http://opendatacommunities.org/id/metropolitan-district-council/leeds,Leeds City Council,28/02/2019,Communities and Environment,Parks And Countryside  ,Transport,External Hire -Occasional,304,14/01/2019,1902-00419,0.00,950.00,R,Afi Uplift,Yes
Http://opendatacommunities.org/id/metropolitan-district-council/leeds,Leeds City Council,28/02/2019,Communities and Environment,Parks And Countryside  ,Transport,External Hire -Occasional,304,14/01/2019,1902-00420,0.00,950.00,R,Afi Uplift,Yes
Http://opendatacommunities.org/id/metropolitan-district-council/leeds,Leeds City Council,28/02/2019,Communities and Environment,Parks And Countryside  ,Transport,External Hire -Occasional,304,14/01/2019,1902-00421,0.00,950.00,R,Afi Uplift,Yes
Http://opendatacommunities.org/id/metropolitan-district-council/leeds,Leeds City Council,28/02/2019,Resources and Housing,Strategic Housing Partnership & Support,Supplies and Services,Other Hired And Contracted Services,265,20/02/2019,1902-00422,0.00,1000.00,R,Afk Estates.,No
Http://opendatacommunities.org/id/metropolitan-district-council/leeds,Leeds City Council,28/02/2019,City Development,Highways,Capital,Construction,3,26/02/2019,1902-00423,0.00,97215.59,C,Aggregate Industries Uk Ltd,No
Http://opendatacommunities.org/id/metropolitan-district-council/leeds,Leeds City Council,28/02/2019,City Development,Highways,Capital,Construction,3,27/02/2019,1902-00424,0.00,55290.00,C,Aggregate Industries Uk Ltd,No
Http://opendatacommunities.org/id/metropolitan-district-council/leeds,Leeds City Council,28/02/2019,City Development,Highways,Capital,Construction,3,28/02/2019,1902-00425,0.00,3052.57,C,Aggregate Industries Uk Ltd,No
Http://opendatacommunities.org/id/metropolitan-district-council/leeds,Leeds City Council,28/02/2019,City Development,Highways  ,Employees,Training Costs,71,21/01/2019,1902-00426,0.00,106.80,R,Agilysis Ltd,Yes
Http://opendatacommunities.org/id/metropolitan-district-council/leeds,Leeds City Council,28/02/2019,City Development,Employment & Skills,Supplies and Services,Other Hired And Contracted Services,265,22/02/2019,1902-00427,0.00,1000.00,R,Ahead Partnership Ltd,No
Http://opendatacommunities.org/id/metropolitan-district-council/leeds,Leeds City Council,28/02/2019,Adults and Health,Social Services Support Services,Employees,Training & Development,70,28/02/2019,1902-00428,0.00,13.00,R,REDACTED PERSONAL DATA,No
Http://opendatacommunities.org/id/metropolitan-district-council/leeds,Leeds City Council As Accountable Body,28/02/2019,Social Services Pooled Budgets,Leeds Community Equip Store Pooled Budgt,Supplies and Services,Other Equipment,203,01/02/2019,1902-00429,0.00,462.00,R,Aidapt Bathrooms Ltd,No
Http://opendatacommunities.org/id/metropolitan-district-council/leeds,Leeds City Council As Accountable Body,28/02/2019,Social Services Pooled Budgets,Leeds Community Equip Store Pooled Budgt,Supplies and Services,Other Equipment,203,01/02/2019,1902-00430,0.00,515.80,R,Aidapt Bathrooms Ltd,No
Http://opendatacommunities.org/id/metropolitan-district-council/leeds,Leeds City Council As Accountable Body,28/02/2019,Social Services Pooled Budgets,Leeds Community Equip Store Pooled Budgt,Supplies and Services,Other Equipment,203,27/02/2019,1902-00431,0.00,1274.50,R,Aidapt Bathrooms Ltd,No
Http://opendatacommunities.org/id/metropolitan-district-council/leeds,Leeds City Council,28/02/2019,Resources and Housing,Leeds Building Services,Supplies and Services,Operational Materials,205,06/02/2019,1902-00432,0.00,642.92,R,Air Conditioning Accessories,No
Http://opendatacommunities.org/id/metropolitan-district-council/leeds,Leeds City Council,28/02/2019,Resources and Housing,Leeds Building Services,Supplies and Services,Operational Materials,205,14/02/2019,1902-00433,0.00,438.35,R,Air Conditioning Accessories,No
Http://opendatacommunities.org/id/metropolitan-district-council/leeds,Leeds City Council,28/02/2019,Resources and Housing,Leeds Building Services,Supplies and Services,Operational Materials,205,18/02/2019,1902-00434,0.00,159.69,R,Air Conditioning Accessories,No
Http://opendatacommunities.org/id/metropolitan-district-council/leeds,Leeds City Council,28/02/2019,Resources and Housing,Leeds Building Services,Supplies and Services,Operational Materials,205,20/02/2019,1902-00435,0.00,70.00,R,Air Conditioning Accessories,No
Http://opendatacommunities.org/id/metropolitan-district-council/leeds,Leeds City Council,28/02/2019,Resources and Housing,Leeds Building Services,Supplies and Services,Operational Materials,205,19/02/2019,1902-00436,0.00,33.00,R,Air Conditioning Accessories,No
Http://opendatacommunities.org/id/metropolitan-district-council/leeds,Leeds City Council,28/02/2019,Resources and Housing,Commercial Services  ,Supplies and Services,Operational Materials,205,15/01/2019,1902-00437,0.00,23.00,R,Air Force Pneumati,Yes
Http://opendatacommunities.org/id/metropolitan-district-council/leeds,Leeds City Council,28/02/2019,Resources and Housing,Commercial Services  ,Supplies and Services,Operational Materials,205,15/01/2019,1902-00438,0.00,24.00,R,Air Force Pneumati,Yes
Http://opendatacommunities.org/id/metropolitan-district-council/leeds,Leeds City Council,28/02/2019,Resources and Housing,Commercial Services  ,Supplies and Services,Operational Materials,205,28/01/2019,1902-00439,0.00,30.00,R,Air Force Pneumati,Yes
Http://opendatacommunities.org/id/metropolitan-district-council/leeds,Leeds City Council,28/02/2019,Communities and Environment,Environmental Health,Supplies and Services,Other Hired And Contracted Services,265,26/02/2019,1902-00440,0.00,9.86,R,Air Liquide Uk,No
Http://opendatacommunities.org/id/metropolitan-district-council/leeds,Leeds City Council,28/02/2019,Communities and Environment,Environmental Health,Supplies and Services,Other Hired And Contracted Services,265,26/02/2019,1902-00441,0.00,9.86,R,Air Liquide Uk,No
Http://opendatacommunities.org/id/metropolitan-district-council/leeds,Leeds City Council,28/02/2019,Communities and Environment,Environmental Health,Supplies and Services,Other Hired And Contracted Services,265,01/02/2019,1902-00442,0.00,15.03,R,Air Liquide Uk,No
Http://opendatacommunities.org/id/metropolitan-district-council/leeds,Leeds City Council,28/02/2019,Communities and Environment,Environmental Health,Supplies and Services,Other Hired And Contracted Services,265,26/02/2019,1902-00443,0.00,69.02,R,Air Liquide Uk,No
Http://opendatacommunities.org/id/metropolitan-district-council/leeds,Leeds City Council,28/02/2019,Resources and Housing,Leeds Building Services,Supplies and Services,Operational Materials,205,22/02/2019,1902-00444,0.00,51.36,R,Air Liquide Uk,No
Http://opendatacommunities.org/id/metropolitan-district-council/leeds,Leeds City Council,28/02/2019,Communities and Environment,Environmental Health,Supplies and Services,Other Hired And Contracted Services,265,21/02/2019,1902-00445,0.00,508.36,R,Air Liquide Uk,No
Http://opendatacommunities.org/id/metropolitan-district-council/leeds,Leeds City Council,28/02/2019,Communities and Environment,Parks and Countryside,Supplies and Services,Operational Furniture And Equipment,203,08/02/2019,1902-00446,0.00,3429.80,R,Air Solutions (Leeds) Ltd,No
Http://opendatacommunities.org/id/metropolitan-district-council/leeds,Leeds City Council,28/02/2019,Communities and Environment,Parks and Countryside,Supplies and Services,Other Hired And Contracted Services,265,13/02/2019,1902-00447,0.00,850.00,R,Aire Valley Tree Services Ltd,No
Http://opendatacommunities.org/id/metropolitan-district-council/leeds,Leeds City Council,28/02/2019,Communities and Environment,Parks and Countryside,Supplies and Services,Other Hired And Contracted Services,265,15/02/2019,1902-00448,0.00,975.00,R,Aire Valley Tree Services Ltd,No
Http://opendatacommunities.org/id/metropolitan-district-council/leeds,Leeds City Council,28/02/2019,Communities and Environment,Parks and Countryside,Supplies and Services,Other Hired And Contracted Services,265,22/02/2019,1902-00449,0.00,11605.00,R,Aire Valley Tree Services Ltd,No
Http://opendatacommunities.org/id/metropolitan-district-council/leeds,Leeds City Council,28/02/2019,Adults and Health,Services For Older People - 65 And Over,Third Party Payments,Residential Care Dementia,571,06/02/2019,1902-00450,0.00,56361.79,R,Aire View Residential Home,No
Http://opendatacommunities.org/id/metropolitan-district-council/leeds,Leeds City Council,28/02/2019,Adults and Health,Services For Older People - 65 And Over,Third Party Payments,Residential,580,06/02/2019,1902-00451,0.00,11638.19,R,Aire View Residential Home,No
Http://opendatacommunities.org/id/metropolitan-district-council/leeds,Leeds City Council,28/02/2019,Adults and Health,Public Health,Third Party Payments,Public Health Commissioned Services,526,19/02/2019,1902-00452,0.00,1285.00,R,Aireborough Family Practice,No
Http://opendatacommunities.org/id/metropolitan-district-council/leeds,Leeds City Council,28/02/2019,Communities and Environment,Customer Access,Supplies and Services,Resaleable Materials,204,20/02/2019,1902-00453,0.00,229.50,R,Aireborough Historical Society,No
Http://opendatacommunities.org/id/metropolitan-district-council/leeds,Leeds City Council,28/02/2019,Adults and Health,Services For Older People - 65 And Over,Third Party Payments,Residential Care Dementia,571,06/02/2019,1902-00454,0.00,2202.65,R,Airedale Care Home,No
Http://opendatacommunities.org/id/metropolitan-district-council/leeds,Leeds City Council,28/02/2019,Adults and Health,Services For Older People - 65 And Over,Third Party Payments,Residential,580,06/02/2019,1902-00455,0.00,19729.43,R,Airedale Care Home,No
Http://opendatacommunities.org/id/metropolitan-district-council/leeds,Leeds City Council,28/02/2019,Adults and Health,Services For Older People Under 65 P/Dis,Third Party Payments,Residential,580,06/02/2019,1902-00456,0.00,1046.00,R,Airedale Care Home,No
Http://opendatacommunities.org/id/metropolitan-district-council/leeds,Leeds City Council,28/02/2019,Resources and Housing,Commercial Services,Supplies and Services,'Well Being' Large Grants Projects,230,19/02/2019,1902-00457,0.00,2845.00,R,Airedale Catering Equipment Ltd,No
Http://opendatacommunities.org/id/metropolitan-district-council/leeds,Leeds City Council,28/02/2019,Resources and Housing,Commercial Services,Supplies and Services,Operational Furniture And Equipment,203,19/02/2019,1902-00458,0.00,200.00,R,Airedale Catering Equipment Ltd,No
Http://opendatacommunities.org/id/metropolitan-district-council/leeds,Leeds City Council,28/02/2019,Resources and Housing,Commercial Services,Supplies and Services,Operational Furniture And Equipment,203,19/02/2019,1902-00459,0.00,335.00,R,Airedale Catering Equipment Ltd,No
Http://opendatacommunities.org/id/metropolitan-district-council/leeds,Leeds City Council,28/02/2019,Resources and Housing,Commercial Services,Supplies and Services,Operational Furniture And Equipment,203,15/02/2019,1902-00460,0.00,1275.00,R,Airedale Catering Equipment Ltd,No
Http://opendatacommunities.org/id/metropolitan-district-council/leeds,Leeds City Council,28/02/2019,Resources and Housing,Commercial Services,Supplies and Services,Operational Furniture And Equipment,203,15/02/2019,1902-00461,0.00,1390.00,R,Airedale Catering Equipment Ltd,No
Http://opendatacommunities.org/id/metropolitan-district-council/leeds,Leeds City Council,28/02/2019,Resources and Housing,Commercial Services,Supplies and Services,Operational Furniture And Equipment,203,15/02/2019,1902-00462,0.00,1020.00,R,Airedale Catering Equipment Ltd,No
Http://opendatacommunities.org/id/metropolitan-district-council/leeds,Leeds City Council,28/02/2019,Resources and Housing,Commercial Services,Supplies and Services,Operational Furniture And Equipment,203,27/02/2019,1902-00463,0.00,3239.00,R,Airedale Catering Equipment Ltd,No
Http://opendatacommunities.org/id/metropolitan-district-council/leeds,Leeds City Council,28/02/2019,Adults and Health,Assessment And Care Management,Employees,Training Costs,71,01/02/2019,1902-00464,0.00,90.00,R,Airedale Community Trading (Act) Ltd,No
Http://opendatacommunities.org/id/metropolitan-district-council/leeds,Leeds City Council,28/02/2019,Adults and Health,Assessment And Care Management,Employees,Training Costs,71,28/02/2019,1902-00465,0.00,150.00,R,Airedale Community Trading (Act) Ltd,No
Http://opendatacommunities.org/id/metropolitan-district-council/leeds,Leeds City Council,28/02/2019,Communities and Environment,Community Safety,Supplies and Services,Bought In Professional Services,277,08/02/2019,1902-00466,0.00,832.44,R,Airwave Solutions Ltd,No
Http://opendatacommunities.org/id/metropolitan-district-council/leeds,Leeds City Council,28/02/2019,Adults and Health,Services For Adults Under 65 Mental/Dis,Third Party Payments,Fees - Level 4,520,25/02/2019,1902-00467,0.00,175.00,R,Ait Mitra Limited,No
Http://opendatacommunities.org/id/metropolitan-district-council/leeds,Leeds City Council,28/02/2019,Adults and Health,Services For Adults Under 65 Mental/Dis,Third Party Payments,Fees - Level 4,520,25/02/2019,1902-00468,0.00,175.00,R,Ait Mitra Limited,No
Http://opendatacommunities.org/id/metropolitan-district-council/leeds,Leeds City Council,28/02/2019,Adults and Health,Services For Adults Under 65 Mental/Dis,Third Party Payments,Fees - Level 4,520,25/02/2019,1902-00469,0.00,175.00,R,Ait Mitra Limited,No
Http://opendatacommunities.org/id/metropolitan-district-council/leeds,Leeds City Council,28/02/2019,Adults and Health,Services For Adults Under 65 Mental/Dis,Third Party Payments,Fees - Level 4,520,25/02/2019,1902-00470,0.00,175.00,R,Ait Mitra Limited,No
Http://opendatacommunities.org/id/metropolitan-district-council/leeds,Leeds City Council,28/02/2019,Adults and Health,Services For Adults Under 65 Mental/Dis,Third Party Payments,Fees - Level 4,520,25/02/2019,1902-00471,0.00,175.00,R,Ait Mitra Limited,No
Http://opendatacommunities.org/id/metropolitan-district-council/leeds,Leeds City Council,28/02/2019,Adults and Health,Services For Adults Under 65 Mental/Dis,Third Party Payments,Fees - Level 4,520,25/02/2019,1902-00472,0.00,175.00,R,Ait Mitra Limited,No
Http://opendatacommunities.org/id/metropolitan-district-council/leeds,Leeds City Council,28/02/2019,Adults and Health,Services For Adults Under 65 Mental/Dis,Third Party Payments,Fees - Level 4,520,25/02/2019,1902-00473,0.00,261.00,R,Ait Mitra Limited,No
Http://opendatacommunities.org/id/metropolitan-district-council/leeds,Leeds City Council,28/02/2019,Adults and Health,Services For Adults Under 65 Mental/Dis,Third Party Payments,Fees - Level 4,520,25/02/2019,1902-00474,0.00,175.00,R,Ait Mitra Limited,No
Http://opendatacommunities.org/id/metropolitan-district-council/leeds,Leeds City Council,28/02/2019,Adults and Health,Services For Adults Under 65 Mental/Dis,Third Party Payments,Fees - Level 4,520,25/02/2019,1902-00475,0.00,175.00,R,Ait Mitra Limited,No
Http://opendatacommunities.org/id/metropolitan-district-council/leeds,Leeds City Council,28/02/2019,Adults and Health,Services For Adults Under 65 Mental/Dis,Third Party Payments,Fees - Level 4,520,25/02/2019,1902-00476,0.00,175.00,R,Ait Mitra Limited,No
Http://opendatacommunities.org/id/metropolitan-district-council/leeds,Leeds City Council,28/02/2019,Adults and Health,Services For Adults Under 65 Mental/Dis,Third Party Payments,Fees - Level 4,520,25/02/2019,1902-00477,0.00,175.00,R,Ait Mitra Limited,No
Http://opendatacommunities.org/id/metropolitan-district-council/leeds,Leeds City Council,28/02/2019,Adults and Health,Services For Adults Under 65 Mental/Dis,Third Party Payments,Fees - Level 4,520,25/02/2019,1902-00478,0.00,175.00,R,Ait Mitra Limited,No
Http://opendatacommunities.org/id/metropolitan-district-council/leeds,Leeds City Council,28/02/2019,Adults and Health,Services For Adults Under 65 Mental/Dis,Third Party Payments,Fees - Level 4,520,25/02/2019,1902-00479,0.00,175.00,R,Ait Mitra Limited,No
Http://opendatacommunities.org/id/metropolitan-district-council/leeds,Leeds City Council,28/02/2019,Adults and Health,Services For Adults Under 65 Mental/Dis,Third Party Payments,Fees - Level 4,520,25/02/2019,1902-00480,0.00,175.00,R,Ait Mitra Limited,No
Http://opendatacommunities.org/id/metropolitan-district-council/leeds,Leeds City Council,28/02/2019,Adults and Health,Services For Adults Under 65 Mental/Dis,Third Party Payments,Fees - Level 4,520,25/02/2019,1902-00481,0.00,175.00,R,Ait Mitra Limited,No
Http://opendatacommunities.org/id/metropolitan-district-council/leeds,Leeds City Council,28/02/2019,Adults and Health,Services For Adults Under 65 Mental/Dis,Third Party Payments,Fees - Level 4,520,01/02/2019,1902-00482,0.00,175.00,R,Ait Mitra Limited,No
Http://opendatacommunities.org/id/metropolitan-district-council/leeds,Leeds City Council,28/02/2019,Adults and Health,Services For Adults Under 65 Mental/Dis,Third Party Payments,Fees - Level 4,520,01/02/2019,1902-00483,0.00,175.00,R,Ait Mitra Limited,No
Http://opendatacommunities.org/id/metropolitan-district-council/leeds,Leeds City Council,28/02/2019,Adults and Health,Services For Adults Under 65 Mental/Dis,Third Party Payments,Fees - Level 4,520,01/02/2019,1902-00484,0.00,175.00,R,Ait Mitra Limited,No
Http://opendatacommunities.org/id/metropolitan-district-council/leeds,Leeds City Council,28/02/2019,Adults and Health,Services For Adults Under 65 Mental/Dis,Third Party Payments,Fees - Level 4,520,01/02/2019,1902-00485,0.00,175.00,R,Ait Mitra Limited,No
Http://opendatacommunities.org/id/metropolitan-district-council/leeds,Leeds City Council,28/02/2019,Adults and Health,Services For Adults Under 65 Mental/Dis,Third Party Payments,Services Provided By Other NHS Bodies,522,01/02/2019,1902-00486,0.00,239.50,R,Ait Mitra Limited,No
Http://opendatacommunities.org/id/metropolitan-district-council/leeds,Leeds City Council,28/02/2019,Adults and Health,Services For Adults Under 65 Mental/Dis,Third Party Payments,Services Provided By Other NHS Bodies,522,01/02/2019,1902-00487,0.00,175.00,R,Ait Mitra Limited,No
Http://opendatacommunities.org/id/metropolitan-district-council/leeds,Leeds City Council,28/02/2019,Adults and Health,Services For Adults Under 65 Mental/Dis,Third Party Payments,Services Provided By Other NHS Bodies,522,01/02/2019,1902-00488,0.00,175.00,R,Ait Mitra Limited,No
Http://opendatacommunities.org/id/metropolitan-district-council/leeds,Leeds City Council,28/02/2019,Adults and Health,Services For Adults Under 65 Mental/Dis,Third Party Payments,Services Provided By Other NHS Bodies,522,01/02/2019,1902-00489,0.00,175.00,R,Ait Mitra Limited,No
Http://opendatacommunities.org/id/metropolitan-district-council/leeds,Leeds City Council,28/02/2019,Adults and Health,Services For Adults Under 65 Mental/Dis,Third Party Payments,Services Provided By Other NHS Bodies,522,01/02/2019,1902-00490,0.00,175.00,R,Ait Mitra Limited,No
Http://opendatacommunities.org/id/metropolitan-district-council/leeds,Leeds City Council,28/02/2019,Adults and Health,Services For Adults Under 65 Mental/Dis,Third Party Payments,Services Provided By Other NHS Bodies,522,01/02/2019,1902-00491,0.00,175.00,R,Ait Mitra Limited,No
Http://opendatacommunities.org/id/metropolitan-district-council/leeds,Leeds City Council,28/02/2019,Adults and Health,Services For Adults Under 65 Mental/Dis,Third Party Payments,Services Provided By Other NHS Bodies,522,01/02/2019,1902-00492,0.00,175.00,R,Ait Mitra Limited,No
Http://opendatacommunities.org/id/metropolitan-district-council/leeds,Leeds City Council,28/02/2019,Adults and Health,Services For Adults Under 65 Mental/Dis,Third Party Payments,Services Provided By Other NHS Bodies,522,01/02/2019,1902-00493,0.00,175.00,R,Ait Mitra Limited,No
Http://opendatacommunities.org/id/metropolitan-district-council/leeds,Leeds City Council,28/02/2019,Adults and Health,Services For Adults Under 65 Mental/Dis,Third Party Payments,Services Provided By Other NHS Bodies,522,01/02/2019,1902-00494,0.00,175.00,R,Ait Mitra Limited,No
Http://opendatacommunities.org/id/metropolitan-district-council/leeds,Leeds City Council,28/02/2019,Adults and Health,Services For Adults Under 65 Mental/Dis,Third Party Payments,Services Provided By Other NHS Bodies,522,01/02/2019,1902-00495,0.00,175.00,R,Ait Mitra Limited,No
Http://opendatacommunities.org/id/metropolitan-district-council/leeds,Leeds City Council,28/02/2019,Adults and Health,Services For Adults Under 65 Mental/Dis,Third Party Payments,Services Provided By Other NHS Bodies,522,01/02/2019,1902-00496,0.00,175.00,R,Ait Mitra Limited,No
Http://opendatacommunities.org/id/metropolitan-district-council/leeds,Leeds City Council,28/02/2019,Adults and Health,Services For Adults Under 65 Mental/Dis,Third Party Payments,Services Provided By Other NHS Bodies,522,01/02/2019,1902-00497,0.00,175.00,R,Ait Mitra Limited,No
Http://opendatacommunities.org/id/metropolitan-district-council/leeds,Leeds City Council,28/02/2019,Adults and Health,Services For Adults Under 65 Mental/Dis,Third Party Payments,Services Provided By Other NHS Bodies,522,01/02/2019,1902-00498,0.00,175.00,R,Ait Mitra Limited,No
Http://opendatacommunities.org/id/metropolitan-district-council/leeds,Leeds City Council,28/02/2019,Adults and Health,Services For Adults Under 65 Mental/Dis,Third Party Payments,Services Provided By Other NHS Bodies,522,01/02/2019,1902-00499,0.00,175.00,R,Ait Mitra Limited,No
Http://opendatacommunities.org/id/metropolitan-district-council/leeds,Leeds City Council,28/02/2019,Adults and Health,Services For Adults Under 65 Mental/Dis,Third Party Payments,Services Provided By Other NHS Bodies,522,01/02/2019,1902-00500,0.00,175.00,R,Ait Mitra Limited,No
Http://opendatacommunities.org/id/metropolitan-district-council/leeds,Leeds City Council,28/02/2019,Adults and Health,Services For Adults Under 65 Mental/Dis,Third Party Payments,Services Provided By Other NHS Bodies,522,01/02/2019,1902-00501,0.00,175.00,R,Ait Mitra Limited,No
Http://opendatacommunities.org/id/metropolitan-district-council/leeds,Leeds City Council,28/02/2019,Adults and Health,Services For Adults Under 65 Mental/Dis,Third Party Payments,Services Provided By Other NHS Bodies,522,01/02/2019,1902-00502,0.00,175.00,R,Ait Mitra Limited,No
Http://opendatacommunities.org/id/metropolitan-district-council/leeds,Leeds City Council,28/02/2019,Adults and Health,Services For Adults Under 65 Mental/Dis,Third Party Payments,Fees - Level 4,520,27/02/2019,1902-00503,0.00,243.80,R,Ait Mitra Limited,No
Http://opendatacommunities.org/id/metropolitan-district-council/leeds,Leeds City Council,28/02/2019,Adults and Health,Services For Adults Under 65 Mental/Dis,Third Party Payments,Fees - Level 4,520,27/02/2019,1902-00504,0.00,175.00,R,Ait Mitra Limited,No
Http://opendatacommunities.org/id/metropolitan-district-council/leeds,Leeds City Council,28/02/2019,Adults and Health,Services For Adults Under 65 Mental/Dis,Third Party Payments,Fees - Level 4,520,27/02/2019,1902-00505,0.00,175.00,R,Ait Mitra Limited,No
Http://opendatacommunities.org/id/metropolitan-district-council/leeds,Leeds City Council As Accountable Body,28/02/2019,Social Services Pooled Budgets,Jcs For People With Learning Disabilitie,Third Party Payments,Residential,580,06/02/2019,1902-00506,0.00,6173.24,R,Aitch Care Homes,No
Http://opendatacommunities.org/id/metropolitan-district-council/leeds,Leeds City Council,28/02/2019,Adults and Health,Services For Older People - 65 And Over,Third Party Payments,Home Care,568,08/02/2019,1902-00507,0.00,7651.20,R,Aj Community Care Ltd,No
Http://opendatacommunities.org/id/metropolitan-district-council/leeds,Leeds City Council,28/02/2019,Adults and Health,Services For Older People Under 65 P/Dis,Third Party Payments,Home Care,568,08/02/2019,1902-00508,0.00,15531.92,R,Aj Community Care Ltd,No
Http://opendatacommunities.org/id/metropolitan-district-council/leeds,Leeds City Council,28/02/2019,Adults and Health,Services For Older People - 65 And Over,Third Party Payments,Home Care,568,08/02/2019,1902-00509,0.00,3465.23,R,Aj Community Care Ltd,No
Http://opendatacommunities.org/id/metropolitan-district-council/leeds,Leeds City Council,28/02/2019,Adults and Health,Services For Older People Under 65 P/Dis,Third Party Payments,Home Care,568,08/02/2019,1902-00510,0.00,1952.49,R,Aj Community Care Ltd,No
Http://opendatacommunities.org/id/metropolitan-district-council/leeds,Leeds City Council,28/02/2019,Adults and Health,Services For Older People - 65 And Over,Third Party Payments,Home Care,568,08/02/2019,1902-00511,0.00,15527.84,R,Aj Community Care Ltd,No
Http://opendatacommunities.org/id/metropolitan-district-council/leeds,Leeds City Council,28/02/2019,Adults and Health,Services For Older People Under 65 P/Dis,Third Party Payments,Home Care,568,08/02/2019,1902-00512,0.00,7292.55,R,Aj Community Care Ltd,No
Http://opendatacommunities.org/id/metropolitan-district-council/leeds,Leeds City Council,28/02/2019,Adults and Health,Services For Older People - 65 And Over,Third Party Payments,Home Care,568,27/02/2019,1902-00513,0.00,1886.52,R,Aj Community Care Ltd,No
Http://opendatacommunities.org/id/metropolitan-district-council/leeds,Leeds City Council,28/02/2019,Adults and Health,Services For Older People Under 65 P/Dis,Third Party Payments,Home Care,568,27/02/2019,1902-00514,0.00,1767.81,R,Aj Community Care Ltd,No
Http://opendatacommunities.org/id/metropolitan-district-council/leeds,Leeds City Council,28/02/2019,Adults and Health,Services For Older People Under 65 P/Dis,Third Party Payments,Home Care,568,27/02/2019,1902-00515,0.00,35.18,R,Aj Community Care Ltd,No
Http://opendatacommunities.org/id/metropolitan-district-council/leeds,Leeds City Council,28/02/2019,Resources and Housing,Leeds Building Services,Supplies and Services,Stores - Central And Other Depots,5,05/02/2019,1902-00516,0.00,1234.35,R,Ajm Fixings & Power Tools Ltd,No
Http://opendatacommunities.org/id/metropolitan-district-council/leeds,Leeds City Council,28/02/2019,Resources and Housing,Leeds Building Services,Supplies and Services,Operational Furniture And Equipment,203,07/02/2019,1902-00517,0.00,7036.00,R,Ajm Fixings & Power Tools Ltd,No
Http://opendatacommunities.org/id/metropolitan-district-council/leeds,Leeds City Council,28/02/2019,Resources and Housing,Leeds Building Services,Supplies and Services,Operational Furniture And Equipment,203,05/02/2019,1902-00518,0.00,130.00,R,Ajm Fixings & Power Tools Ltd,No
Http://opendatacommunities.org/id/metropolitan-district-council/leeds,Leeds City Council,28/02/2019,Resources and Housing,Leeds Building Services,Supplies and Services,Stores - Central And Other Depots,5,05/02/2019,1902-00519,0.00,102.00,R,Ajm Fixings & Power Tools Ltd,No
Http://opendatacommunities.org/id/metropolitan-district-council/leeds,Leeds City Council,28/02/2019,Resources and Housing,Leeds Building Services,Supplies and Services,Operational Furniture And Equipment,203,05/02/2019,1902-00520,0.00,22.00,R,Ajm Fixings & Power Tools Ltd,No
Http://opendatacommunities.org/id/metropolitan-district-council/leeds,Leeds City Council,28/02/2019,Resources and Housing,Leeds Building Services,Supplies and Services,Operational Furniture And Equipment,203,14/02/2019,1902-00521,0.00,438.72,R,Ajm Fixings & Power Tools Ltd,No
Http://opendatacommunities.org/id/metropolitan-district-council/leeds,Leeds City Council,28/02/2019,Resources and Housing,Leeds Building Services,Supplies and Services,Clothing & Uniforms,241,04/02/2019,1902-00522,0.00,80.00,R,Ajm Fixings & Power Tools Ltd,No
Http://opendatacommunities.org/id/metropolitan-district-council/leeds,Leeds City Council,28/02/2019,Resources and Housing,Leeds Building Services,Supplies and Services,Operational Furniture And Equipment,203,22/02/2019,1902-00523,0.00,493.00,R,Ajm Fixings & Power Tools Ltd,No
Http://opendatacommunities.org/id/metropolitan-district-council/leeds,Leeds City Council,28/02/2019,Resources and Housing,Leeds Building Services,Supplies and Services,Stores - Central And Other Depots,5,22/02/2019,1902-00524,0.00,300.00,R,Ajm Fixings & Power Tools Ltd,No
Http://opendatacommunities.org/id/metropolitan-district-council/leeds,Leeds City Council,28/02/2019,Resources and Housing,Leeds Building Services,Supplies and Services,Operational Materials,205,22/02/2019,1902-00525,0.00,295.63,R,Ajm Fixings & Power Tools Ltd,No
Http://opendatacommunities.org/id/metropolitan-district-council/leeds,Leeds City Council,28/02/2019,Resources and Housing,Leeds Building Services,Supplies and Services,Operational Furniture And Equipment,203,22/02/2019,1902-00526,0.00,933.07,R,Ajm Fixings & Power Tools Ltd,No
Http://opendatacommunities.org/id/metropolitan-district-council/leeds,Leeds City Council,28/02/2019,Resources and Housing,Leeds Building Services,Supplies and Services,Operational Materials,205,22/02/2019,1902-00527,0.00,360.60,R,Ajm Fixings & Power Tools Ltd,No
Http://opendatacommunities.org/id/metropolitan-district-council/leeds,Leeds City Council,28/02/2019,Resources and Housing,Strategic Housing Partnerships,Capital,Construction,3,14/02/2019,1902-00528,0.00,5000.00,C,Akr Construction Ltd,No
Http://opendatacommunities.org/id/metropolitan-district-council/leeds,Leeds City Council,28/02/2019,Resources and Housing,Commercial Services,Premises,Maintenance Of Buildings,101,07/02/2019,1902-00529,0.00,166.90,R,Akua Uk Ltd,No
Http://opendatacommunities.org/id/metropolitan-district-council/leeds,Leeds City Council,28/02/2019,Resources and Housing,Commercial Services,Premises,Maintenance Of Buildings,101,07/02/2019,1902-00530,0.00,227.50,R,Akua Uk Ltd,No
Http://opendatacommunities.org/id/metropolitan-district-council/leeds,Leeds City Council,28/02/2019,Resources and Housing,Commercial Services,Premises,Maintenance Of Buildings,101,07/02/2019,1902-00531,0.00,299.20,R,Akua Uk Ltd,No
Http://opendatacommunities.org/id/metropolitan-district-council/leeds,Leeds City Council,28/02/2019,Resources and Housing,Leeds Building Services,Supplies and Services,Operational Materials,205,06/02/2019,1902-00532,0.00,56.31,R,Akw Medicare Ltd,No
Http://opendatacommunities.org/id/metropolitan-district-council/leeds,Leeds City Council,28/02/2019,Resources and Housing,Leeds Building Services,Supplies and Services,Operational Materials,205,14/02/2019,1902-00533,0.00,47.97,R,Akw Medicare Ltd,No
Http://opendatacommunities.org/id/metropolitan-district-council/leeds,Leeds City Council,28/02/2019,Resources and Housing,Leeds Building Services,Supplies and Services,Operational Materials,205,14/02/2019,1902-00534,0.00,56.31,R,Akw Medicare Ltd,No
Http://opendatacommunities.org/id/metropolitan-district-council/leeds,Leeds City Council,28/02/2019,Resources and Housing,Leeds Building Services,Supplies and Services,Operational Materials,205,22/02/2019,1902-00535,0.00,112.62,R,Akw Medicare Ltd,No
Http://opendatacommunities.org/id/metropolitan-district-council/leeds,Leeds City Council,28/02/2019,City Development,Libraries  Arts & Heritage  ,Supplies and Services,Operational Materials,205,04/01/2019,1902-00536,0.00,598.06,R,Akzonobel,Yes
Http://opendatacommunities.org/id/metropolitan-district-council/leeds,Leeds City Council,28/02/2019,City Development,Libraries  Arts & Heritage  ,Supplies and Services,Operational Materials,205,09/01/2019,1902-00537,0.00,95.38,R,Akzonobel,Yes
Http://opendatacommunities.org/id/metropolitan-district-council/leeds,Leeds City Council,28/02/2019,Adults and Health,Public Health,Third Party Payments,Public Health Commissioned Services,526,22/02/2019,1902-00538,0.00,12000.00,R,Alan White,No
Http://opendatacommunities.org/id/metropolitan-district-council/leeds,Leeds City Council,28/02/2019,Children and Families,Social Care,Third Party Payments,Services Rendered By Other Organisations,511,15/02/2019,1902-00539,0.00,350.63,R,REDACTED PERSONAL DATA,No
Http://opendatacommunities.org/id/metropolitan-district-council/leeds,Leeds City Council,28/02/2019,Resources and Housing,Strategy and Improvement,Supplies and Services,Memberships,226,07/02/2019,1902-00540,0.00,388.00,R,Alarm,No
Http://opendatacommunities.org/id/metropolitan-district-council/leeds,Leeds City Council,28/02/2019,Resources and Housing,Finance,Supplies and Services,Memberships,226,07/02/2019,1902-00541,0.00,199.00,R,Alarm,No
Http://opendatacommunities.org/id/metropolitan-district-council/leeds,Leeds City Council,28/02/2019,Adults and Health,Services For Older People - 65 And Over,Third Party Payments,Residential Care Dementia,571,06/02/2019,1902-00542,0.00,1088.80,R,Albemarle,No
Http://opendatacommunities.org/id/metropolitan-district-council/leeds,Leeds City Council,28/02/2019,Children and Families,Social Care  ,Supplies and Services,Food & Drink,231,31/12/2018,1902-00543,0.00,46.32,R,Aldi,Yes
Http://opendatacommunities.org/id/metropolitan-district-council/leeds,Leeds City Council,28/02/2019,Communities and Environment,Communities  ,Supplies and Services,'Well Being' Large Grants Projects,230,17/01/2019,1902-00544,0.00,8.08,R,Aldi,Yes
Http://opendatacommunities.org/id/metropolitan-district-council/leeds,Leeds City Council,28/02/2019,Children and Families,Social Care  ,Supplies and Services,Food & Drink,231,15/01/2019,1902-00545,0.00,40.25,R,Aldi 40 779,Yes
Http://opendatacommunities.org/id/metropolitan-district-council/leeds,Leeds City Council,28/02/2019,Children and Families,Social Care  ,Premises,Cleaning Maintenance & Toiletries,127,15/01/2019,1902-00546,0.00,3.94,R,Aldi 40 779,Yes
Http://opendatacommunities.org/id/metropolitan-district-council/leeds,Leeds City Council,28/02/2019,Children and Families,Social Care  ,Supplies and Services,Food & Drink,231,17/01/2019,1902-00547,0.00,8.68,R,Aldi 40 779,Yes
Http://opendatacommunities.org/id/metropolitan-district-council/leeds,Leeds City Council,28/02/2019,Children and Families,Social Care  ,Supplies and Services,Food & Drink,231,22/01/2019,1902-00548,0.00,19.84,R,Aldi 40 779,Yes
Http://opendatacommunities.org/id/metropolitan-district-council/leeds,Leeds City Council,28/02/2019,Children and Families,Social Care  ,Third Party Payments,Placement Support,550,25/01/2019,1902-00549,0.00,39.35,R,Aldi 49 779,Yes
Http://opendatacommunities.org/id/metropolitan-district-council/leeds,Leeds City Council,28/02/2019,Children and Families,Social Care  ,Transfer Payments,Leaving Care Allowances,634,21/01/2019,1902-00550,0.00,25.65,R,Aldi 71 779,Yes
Http://opendatacommunities.org/id/metropolitan-district-council/leeds,Leeds City Council,28/02/2019,Communities and Environment,Customer Access  ,Supplies and Services,Office Consumables,210,23/01/2019,1902-00551,0.00,4.37,R,Aldi 779-90,Yes
Http://opendatacommunities.org/id/metropolitan-district-council/leeds,Leeds City Council,28/02/2019,Children and Families,Social Care  ,Premises,Cleaning Maintenance & Toiletries,127,07/01/2019,1902-00552,0.00,11.26,R,Aldi 85 779,Yes
Http://opendatacommunities.org/id/metropolitan-district-council/leeds,Leeds City Council,28/02/2019,Children and Families,Social Care  ,Supplies and Services,Food & Drink,231,07/01/2019,1902-00553,0.00,71.52,R,Aldi 85 779,Yes
Http://opendatacommunities.org/id/metropolitan-district-council/leeds,Leeds City Council,28/02/2019,Children and Families,Social Care  ,Supplies and Services,Food & Drink,231,12/01/2019,1902-00554,0.00,30.29,R,Aldi 88 779,Yes
Http://opendatacommunities.org/id/metropolitan-district-council/leeds,Leeds City Council,28/02/2019,Children and Families,Social Care  ,Supplies and Services,Food & Drink,231,26/01/2019,1902-00555,0.00,16.86,R,Aldi 88 779,Yes
Http://opendatacommunities.org/id/metropolitan-district-council/leeds,Leeds City Council,28/02/2019,Communities and Environment,Customer Access,Supplies and Services,Other Hired And Contracted Services,265,04/02/2019,1902-00556,0.00,247.50,R,Alena Zueva,No
Http://opendatacommunities.org/id/metropolitan-district-council/leeds,Leeds City Council,28/02/2019,Children and Families,Social Care,Support Services,Legal Disbursements,411,26/02/2019,1902-00557,0.00,77.75,R,Alere Toxicology Plc,No
Http://opendatacommunities.org/id/metropolitan-district-council/leeds,Leeds City Council,28/02/2019,Children and Families,Social Care,Support Services,Legal Disbursements,411,26/02/2019,1902-00558,0.00,175.68,R,Alere Toxicology Plc,No
Http://opendatacommunities.org/id/metropolitan-district-council/leeds,Leeds City Council,28/02/2019,Children and Families,Social Care,Support Services,Legal Disbursements,411,15/02/2019,1902-00559,0.00,133.04,R,Alere Toxicology Plc,No
Http://opendatacommunities.org/id/metropolitan-district-council/leeds,Leeds City Council,28/02/2019,Communities and Environment,Car Parking Services,Income,Penalties  Fines & Car Parking Charges,934,19/02/2019,1902-00560,0.00,3.00,R,REDACTED PERSONAL DATA,No
Http://opendatacommunities.org/id/metropolitan-district-council/leeds,Leeds City Council,28/02/2019,Children and Families,Social Care,Support Services,Legal Disbursements,411,01/02/2019,1902-00561,0.00,694.00,R,Alex Taylor,No
Http://opendatacommunities.org/id/metropolitan-district-council/leeds,Leeds City Council,28/02/2019,Resources and Housing,Commercial Services,Supplies and Services,Other Hired And Contracted Services,265,04/02/2019,1902-00562,0.00,300.00,R,Alex Wagg,No
Http://opendatacommunities.org/id/metropolitan-district-council/leeds,Leeds City Council,28/02/2019,Resources and Housing,Commercial Services,Supplies and Services,Other Hired And Contracted Services,265,13/02/2019,1902-00563,0.00,80.00,R,Alex Wagg,No
Http://opendatacommunities.org/id/metropolitan-district-council/leeds,Leeds City Council,28/02/2019,Resources and Housing,Commercial Services,Supplies and Services,Other Hired And Contracted Services,265,13/02/2019,1902-00564,0.00,240.00,R,Alex Wagg,No
Http://opendatacommunities.org/id/metropolitan-district-council/leeds,Leeds City Council,28/02/2019,Resources and Housing,Commercial Services,Supplies and Services,Other Hired And Contracted Services,265,13/02/2019,1902-00565,0.00,380.00,R,Alex Wagg,No
Http://opendatacommunities.org/id/metropolitan-district-council/leeds,Leeds City Council,28/02/2019,Resources and Housing,Commercial Services,Transport,Vehicle Spares,345,13/02/2019,1902-00566,0.00,380.00,R,Alex Wagg,No
Http://opendatacommunities.org/id/metropolitan-district-council/leeds,Leeds City Council,28/02/2019,Resources and Housing,Commercial Services,Transport,Vehicle Spares,345,13/02/2019,1902-00567,0.00,385.00,R,Alex Wagg,No
Http://opendatacommunities.org/id/metropolitan-district-council/leeds,Leeds City Council,28/02/2019,Resources and Housing,Commercial Services,Supplies and Services,Other Hired And Contracted Services,265,22/02/2019,1902-00568,0.00,80.00,R,Alex Wagg,No
Http://opendatacommunities.org/id/metropolitan-district-council/leeds,Leeds City Council,28/02/2019,Resources and Housing,Commercial Services,Supplies and Services,Other Hired And Contracted Services,265,19/02/2019,1902-00569,0.00,80.00,R,Alex Wagg,No
Http://opendatacommunities.org/id/metropolitan-district-council/leeds,Leeds City Council,28/02/2019,Resources and Housing,Commercial Services,Supplies and Services,Other Hired And Contracted Services,265,22/02/2019,1902-00570,0.00,80.00,R,Alex Wagg,No
Http://opendatacommunities.org/id/metropolitan-district-council/leeds,Leeds City Council,28/02/2019,Resources and Housing,Commercial Services,Supplies and Services,Other Hired And Contracted Services,265,22/02/2019,1902-00571,0.00,60.00,R,Alex Wagg,No
Http://opendatacommunities.org/id/metropolitan-district-council/leeds,Leeds City Council,28/02/2019,Resources and Housing,Commercial Services,Supplies and Services,Other Hired And Contracted Services,265,22/02/2019,1902-00572,0.00,80.00,R,Alex Wagg,No
Http://opendatacommunities.org/id/metropolitan-district-council/leeds,Leeds City Council,28/02/2019,Resources and Housing,Commercial Services,Supplies and Services,Other Hired And Contracted Services,265,28/02/2019,1902-00573,0.00,80.00,R,Alex Wagg,No
Http://opendatacommunities.org/id/metropolitan-district-council/leeds,Leeds City Council,28/02/2019,Resources and Housing,Commercial Services,Supplies and Services,Other Hired And Contracted Services,265,28/02/2019,1902-00574,0.00,100.00,R,Alex Wagg,No
Http://opendatacommunities.org/id/metropolitan-district-council/leeds,Leeds City Council,28/02/2019,Communities and Environment,Elections  Licensing and Registration,Income,Admissions  Booking Fees & Ticket Sales,933,21/02/2019,1902-00575,0.00,180.00,R,REDACTED PERSONAL DATA,No
Http://opendatacommunities.org/id/metropolitan-district-council/leeds,Leeds City Council,28/02/2019,Adults and Health,Services For Older People - 65 And Over,Third Party Payments,Residential Care Dementia,571,06/02/2019,1902-00576,0.00,18722.19,R,Alexander Residential Home,No
Http://opendatacommunities.org/id/metropolitan-district-council/leeds,Leeds City Council,28/02/2019,Adults and Health,Services For Older People - 65 And Over,Third Party Payments,Residential,580,06/02/2019,1902-00577,0.00,14306.01,R,Alexander Residential Home,No
Http://opendatacommunities.org/id/metropolitan-district-council/leeds,Leeds City Council,28/02/2019,Communities and Environment,Customer Access,Supplies and Services,Other Hired And Contracted Services,265,04/02/2019,1902-00578,0.00,414.00,R,Alexandra Costenco,No
Http://opendatacommunities.org/id/metropolitan-district-council/leeds,Leeds City Council,28/02/2019,Adults and Health,Services For Older People - 65 And Over,Third Party Payments,Residential,580,06/02/2019,1902-00579,0.00,8284.32,R,Alexandra Court,No
Http://opendatacommunities.org/id/metropolitan-district-council/leeds,Leeds City Council,28/02/2019,Adults and Health,Home Care Services  ,Supplies and Services,Clothing & Uniforms,241,21/01/2019,1902-00580,0.00,14.50,R,Alexandra Website,Yes
Http://opendatacommunities.org/id/metropolitan-district-council/leeds,Leeds City Council,28/02/2019,Resources and Housing,Strategic Housing Partnership & Support,Supplies and Services,Other Hired And Contracted Services,265,05/02/2019,1902-00581,0.00,600.00,R,REDACTED PERSONAL DATA,No
Http://opendatacommunities.org/id/metropolitan-district-council/leeds,Leeds City Council,28/02/2019,Children and Families,Social Care,Supplies and Services,General Amenity For Clients/Residents,285,22/02/2019,1902-00582,0.00,54.44,R,REDACTED PERSONAL DATA,No
Http://opendatacommunities.org/id/metropolitan-district-council/leeds,Leeds City Council,28/02/2019,Children and Families,Social Care,Transport,Public Transport Expenses,310,22/02/2019,1902-00583,0.00,41.10,R,REDACTED PERSONAL DATA,No
Http://opendatacommunities.org/id/metropolitan-district-council/leeds,Leeds City Council,28/02/2019,Resources and Housing,Leeds Building Services,Supplies and Services,Other Hired And Contracted Services,265,05/02/2019,1902-00584,0.00,790.00,R,Alfred Bagnall & Sons (Leeds) Ltd,No
Http://opendatacommunities.org/id/metropolitan-district-council/leeds,Leeds City Council,28/02/2019,Resources and Housing,Leeds Building Services,Supplies and Services,Other Hired And Contracted Services,265,19/02/2019,1902-00585,0.00,400.00,R,Alfred Bagnall & Sons (Leeds) Ltd,No
Http://opendatacommunities.org/id/metropolitan-district-council/leeds,Leeds City Council,28/02/2019,Resources and Housing,Leeds Building Services,Supplies and Services,Other Hired And Contracted Services,265,22/02/2019,1902-00586,0.00,200.00,R,Alfred Bagnall & Sons (Leeds) Ltd,No
Http://opendatacommunities.org/id/metropolitan-district-council/leeds,Leeds City Council,28/02/2019,Resources and Housing,Corporate Property Management,Capital,Construction,3,27/02/2019,1902-00587,0.00,28254.00,C,Alfred Bagnall & Sons (Leeds) Ltd,No
Http://opendatacommunities.org/id/metropolitan-district-council/leeds,Leeds City Council,28/02/2019,Resources and Housing,Corporate Property Management,Capital,Construction,3,07/02/2019,1902-00588,0.00,10000.00,C,Alfred Bagnall & Sons (Leeds) Ltd,No
Http://opendatacommunities.org/id/metropolitan-district-council/leeds,Leeds City Council,28/02/2019,Resources and Housing,Leeds Building Services,Supplies and Services,Other Hired And Contracted Services,265,14/02/2019,1902-00589,0.00,720.00,R,Alfred Bagnall & Sons (Leeds) Ltd,No
Http://opendatacommunities.org/id/metropolitan-district-council/leeds,Leeds City Council,28/02/2019,Resources and Housing,Leeds Building Services,Supplies and Services,Other Hired And Contracted Services,265,14/02/2019,1902-00590,0.00,400.00,R,Alfred Bagnall & Sons (Leeds) Ltd,No
Http://opendatacommunities.org/id/metropolitan-district-council/leeds,Leeds City Council,28/02/2019,Resources and Housing,Leeds Building Services,Supplies and Services,Other Hired And Contracted Services,265,26/02/2019,1902-00591,0.00,3478.00,R,Alfred Bagnall & Sons (Leeds) Ltd,No
Http://opendatacommunities.org/id/metropolitan-district-council/leeds,Leeds City Council,28/02/2019,Resources and Housing,Leeds Building Services,Supplies and Services,Other Hired And Contracted Services,265,27/02/2019,1902-00592,0.00,690.00,R,Alfred Bagnall & Sons (Leeds) Ltd,No
Http://opendatacommunities.org/id/metropolitan-district-council/leeds,Leeds City Council,28/02/2019,Resources and Housing,Leeds Building Services,Supplies and Services,Other Hired And Contracted Services,265,28/02/2019,1902-00593,0.00,490.00,R,Alfred Bagnall & Sons (Leeds) Ltd,No
Http://opendatacommunities.org/id/metropolitan-district-council/leeds,Leeds City Council,28/02/2019,Resources and Housing,Leeds Building Services,Supplies and Services,Other Hired And Contracted Services,265,28/02/2019,1902-00594,0.00,800.00,R,Alfred Bagnall & Sons (Leeds) Ltd,No
Http://opendatacommunities.org/id/metropolitan-district-council/leeds,Leeds City Council,28/02/2019,Resources and Housing,Leeds Building Services,Supplies and Services,Other Hired And Contracted Services,265,22/02/2019,1902-00595,0.00,200.00,R,Alfred Bagnall & Sons (Leeds) Ltd,No
Http://opendatacommunities.org/id/metropolitan-district-council/leeds,Leeds City Council,28/02/2019,Communities and Environment,Customer Access,Supplies and Services,Other Hired And Contracted Services,265,04/02/2019,1902-00596,0.00,256.50,R,Ali Pourakaberian,No
Http://opendatacommunities.org/id/metropolitan-district-council/leeds,Leeds City Council,28/02/2019,City Development,Libraries  Arts & Heritage,Supplies and Services,Bought In Professional Services,277,26/02/2019,1902-00597,0.00,1000.00,R,REDACTED PERSONAL DATA,No
Http://opendatacommunities.org/id/metropolitan-district-council/leeds,Leeds City Council,28/02/2019,Children and Families,Partnerships & Health,Employees,Training & Development,70,15/02/2019,1902-00598,0.00,1416.64,R,REDACTED PERSONAL DATA,No
Http://opendatacommunities.org/id/metropolitan-district-council/leeds,Leeds City Council,28/02/2019,Children and Families,Social Care,Third Party Payments,Services Rendered By Other Organisations,511,26/02/2019,1902-00599,0.00,467.50,R,REDACTED PERSONAL DATA,No
Http://opendatacommunities.org/id/metropolitan-district-council/leeds,Leeds City Council,28/02/2019,Children and Families,Social Care,Third Party Payments,Services Rendered By Other Organisations,511,15/02/2019,1902-00600,0.00,233.75,R,REDACTED PERSONAL DATA,No
Http://opendatacommunities.org/id/metropolitan-district-council/leeds,Leeds City Council,28/02/2019,Children and Families,Social Care,Third Party Payments,Services Rendered By Other Organisations,511,26/02/2019,1902-00601,0.00,71.00,R,REDACTED PERSONAL DATA,No
Http://opendatacommunities.org/id/metropolitan-district-council/leeds,Leeds City Council,28/02/2019,City Development,Libraries  Arts & Heritage,Supplies and Services,Other Hired And Contracted Services,265,20/02/2019,1902-00602,0.00,400.00,R,Alison Rhind,No
Http://opendatacommunities.org/id/metropolitan-district-council/leeds,Leeds City Council,28/02/2019,Children and Families,Social Care,Supplies and Services,Subsistence,256,21/02/2019,1902-00603,0.00,15.50,R,REDACTED PERSONAL DATA,No
Http://opendatacommunities.org/id/metropolitan-district-council/leeds,Leeds City Council,28/02/2019,Children and Families,Social Care,Third Party Payments,Placement Support,550,21/02/2019,1902-00604,0.00,58.40,R,REDACTED PERSONAL DATA,No
Http://opendatacommunities.org/id/metropolitan-district-council/leeds,Leeds City Council,28/02/2019,Resources and Housing,Leeds Building Services,Supplies and Services,Other Hired And Contracted Services,265,07/02/2019,1902-00605,0.00,195.00,R,All Clear Solutions Ltd,No
Http://opendatacommunities.org/id/metropolitan-district-council/leeds,Leeds City Council,28/02/2019,Resources and Housing,Leeds Building Services,Supplies and Services,Other Hired And Contracted Services,265,07/02/2019,1902-00606,0.00,195.00,R,All Clear Solutions Ltd,No
Http://opendatacommunities.org/id/metropolitan-district-council/leeds,Leeds City Council,28/02/2019,Resources and Housing,Leeds Building Services,Supplies and Services,Other Hired And Contracted Services,265,22/02/2019,1902-00607,0.00,195.00,R,All Clear Solutions Ltd,No
Http://opendatacommunities.org/id/metropolitan-district-council/leeds,Leeds City Council,28/02/2019,Resources and Housing,Leeds Building Services,Supplies and Services,Other Hired And Contracted Services,265,20/02/2019,1902-00608,0.00,195.00,R,All Clear Solutions Ltd,No
Http://opendatacommunities.org/id/metropolitan-district-council/leeds,Leeds City Council,28/02/2019,Resources and Housing,Leeds Building Services,Supplies and Services,Other Hired And Contracted Services,265,20/02/2019,1902-00609,0.00,195.00,R,All Clear Solutions Ltd,No
Http://opendatacommunities.org/id/metropolitan-district-council/leeds,Leeds City Council,28/02/2019,Resources and Housing,Leeds Building Services,Supplies and Services,Other Hired And Contracted Services,265,22/02/2019,1902-00610,0.00,195.00,R,All Clear Solutions Ltd,No
Http://opendatacommunities.org/id/metropolitan-district-council/leeds,Leeds City Council,28/02/2019,Resources and Housing,Leeds Building Services,Supplies and Services,Other Hired And Contracted Services,265,26/02/2019,1902-00611,0.00,195.00,R,All Clear Solutions Ltd,No
Http://opendatacommunities.org/id/metropolitan-district-council/leeds,Leeds City Council,28/02/2019,Resources and Housing,Leeds Building Services,Supplies and Services,Other Hired And Contracted Services,265,22/02/2019,1902-00612,0.00,250.00,R,All Clear Solutions Ltd,No
Http://opendatacommunities.org/id/metropolitan-district-council/leeds,Leeds City Council,28/02/2019,Resources and Housing,Leeds Building Services,Supplies and Services,Other Hired And Contracted Services,265,07/02/2019,1902-00613,0.00,-432.00,R,All Clear Solutions Ltd,No
Http://opendatacommunities.org/id/metropolitan-district-council/leeds,Leeds City Council,28/02/2019,Children and Families,Social Care,Third Party Payments,Services Rendered By Other Organisations,511,28/02/2019,1902-00614,0.00,2103.75,R,All Stars Childcare,No
Http://opendatacommunities.org/id/metropolitan-district-council/leeds,Leeds City Council,28/02/2019,Children and Families,Social Care,Third Party Payments,Services Rendered By Other Organisations,511,28/02/2019,1902-00615,0.00,24917.75,R,All Stars Childcare,No
Http://opendatacommunities.org/id/metropolitan-district-council/leeds,Leeds City Council,28/02/2019,Children and Families,Social Care,Third Party Payments,Services Rendered By Other Organisations,511,26/02/2019,1902-00616,0.00,578.33,R,All Stars Childcare,No
Http://opendatacommunities.org/id/metropolitan-district-council/leeds,Leeds City Council As Accountable Body,28/02/2019,Social Services Pooled Budgets,Jcs For People With Learning Disabilitie,Third Party Payments,Sheltered Accommodation,569,06/02/2019,1902-00617,0.00,7786.22,R,Allerton Avenue,No
Http://opendatacommunities.org/id/metropolitan-district-council/leeds,Leeds City Council,28/02/2019,Adults and Health,Public Health,Third Party Payments,Public Health Commissioned Services,526,19/02/2019,1902-00618,0.00,500.00,R,Allerton Medical Centre,No
Http://opendatacommunities.org/id/metropolitan-district-council/leeds,Leeds City Council,28/02/2019,Adults and Health,Services For Older People - 65 And Over,Third Party Payments,Nursing Care Dementia,574,06/02/2019,1902-00619,0.00,2094.28,R,Allerton Park N H,No
Http://opendatacommunities.org/id/metropolitan-district-council/leeds,Leeds City Council,28/02/2019,Communities and Environment,Parks and Countryside,Supplies and Services,Operational Materials,205,28/02/2019,1902-00620,0.00,6.00,R,Allflex Uk Group Ltd,No
Http://opendatacommunities.org/id/metropolitan-district-council/leeds,Leeds City Council,28/02/2019,Resources and Housing,Finance,Supplies and Services,Bank Charges,263,06/02/2019,1902-00621,0.00,448.41,R,Alliance & Leicester Commercial Bank,No
Http://opendatacommunities.org/id/metropolitan-district-council/leeds,Leeds City Council,28/02/2019,Resources and Housing,Finance,Supplies and Services,Bank Charges,263,06/02/2019,1902-00622,0.00,100.00,R,Alliance & Leicester Commercial Bank,No
Http://opendatacommunities.org/id/metropolitan-district-council/leeds,Leeds City Council,28/02/2019,Resources and Housing,Finance,Supplies and Services,Bank Charges,263,01/02/2019,1902-00623,0.00,-59.54,R,Alliance & Leicester Commercial Bank,No
Http://opendatacommunities.org/id/metropolitan-district-council/leeds,Leeds City Council,28/02/2019,Resources and Housing,Commercial Services,Transport,Vehicle Spares,345,08/02/2019,1902-00624,0.00,745.00,R,Alliance Electronics Ltd,No
Http://opendatacommunities.org/id/metropolitan-district-council/leeds,Leeds City Council,28/02/2019,City Development,Recreation,Employees,Training & Development,70,06/02/2019,1902-00625,0.00,937.50,R,Alliance Leisure Service Ltd,No
Http://opendatacommunities.org/id/metropolitan-district-council/leeds,Leeds City Council,28/02/2019,City Development,Recreation,Supplies and Services,Printing,215,15/02/2019,1902-00626,0.00,1250.00,R,Alliance Leisure Service Ltd,No
Http://opendatacommunities.org/id/metropolitan-district-council/leeds,Leeds City Council,28/02/2019,Insurance,Insurance,Supplies and Services,Insurance Claims,248,06/02/2019,1902-00627,0.00,5080.05,R,Allianz Insurance Plc,No
Http://opendatacommunities.org/id/metropolitan-district-council/leeds,Leeds City Council,28/02/2019,City Development,Highways,Supplies and Services,Other Hired And Contracted Services,265,18/02/2019,1902-00628,0.00,230.50,R,Allied Exploration & Geotechnics Ltd,No
Http://opendatacommunities.org/id/metropolitan-district-council/leeds,Leeds City Council,28/02/2019,City Development,Highways,Supplies and Services,Other Hired And Contracted Services,265,18/02/2019,1902-00629,0.00,1642.30,R,Allied Exploration & Geotechnics Ltd,No
Http://opendatacommunities.org/id/metropolitan-district-council/leeds,Leeds City Council,28/02/2019,City Development,Highways,Supplies and Services,Other Hired And Contracted Services,265,18/02/2019,1902-00630,0.00,25176.28,R,Allied Exploration & Geotechnics Ltd,No
Http://opendatacommunities.org/id/metropolitan-district-council/leeds,Leeds City Council,28/02/2019,City Development,Highways,Supplies and Services,Other Hired And Contracted Services,265,26/02/2019,1902-00631,0.00,33383.22,R,Allied Exploration & Geotechnics Ltd,No
Http://opendatacommunities.org/id/metropolitan-district-council/leeds,Leeds City Council,28/02/2019,Adults and Health,Other Generic Services,Third Party Payments,Home Care,568,14/02/2019,1902-00632,0.00,10851.79,R,Allied Healthcare,No
Http://opendatacommunities.org/id/metropolitan-district-council/leeds,Leeds City Council,28/02/2019,Adults and Health,Other Generic Services,Third Party Payments,Home Care,568,15/02/2019,1902-00633,0.00,4917.54,R,Allied Healthcare,No
Http://opendatacommunities.org/id/metropolitan-district-council/leeds,Leeds City Council,28/02/2019,Adults and Health,Other Generic Services,Third Party Payments,Home Care,568,13/02/2019,1902-00634,0.00,-109.20,R,Allied Healthcare,No
Http://opendatacommunities.org/id/metropolitan-district-council/leeds,Leeds City Council As Accountable Body,28/02/2019,Social Services Pooled Budgets,Jcs For People With Learning Disabilitie,Third Party Payments,Home Care,568,01/02/2019,1902-00635,0.00,1254.29,R,Allied Healthcare,No
Http://opendatacommunities.org/id/metropolitan-district-council/leeds,Leeds City Council As Accountable Body,28/02/2019,Social Services Pooled Budgets,Jcs For People With Learning Disabilitie,Third Party Payments,Home Care,568,14/02/2019,1902-00636,0.00,15463.68,R,Allied Healthcare,No
Http://opendatacommunities.org/id/metropolitan-district-council/leeds,Leeds City Council As Accountable Body,28/02/2019,Social Services Pooled Budgets,Jcs For People With Learning Disabilitie,Third Party Payments,Home Care,568,14/02/2019,1902-00637,0.00,5398.75,R,Allied Healthcare,No
Http://opendatacommunities.org/id/metropolitan-district-council/leeds,Leeds City Council As Accountable Body,28/02/2019,Social Services Pooled Budgets,Jcs For People With Learning Disabilitie,Third Party Payments,Home Care,568,19/02/2019,1902-00638,0.00,551.40,R,Allied Healthcare,No
Http://opendatacommunities.org/id/metropolitan-district-council/leeds,Leeds City Council As Accountable Body,28/02/2019,Social Services Pooled Budgets,Jcs For People With Learning Disabilitie,Third Party Payments,Home Care,568,19/02/2019,1902-00639,0.00,100.08,R,Allied Healthcare,No
Http://opendatacommunities.org/id/metropolitan-district-council/leeds,Leeds City Council,28/02/2019,Children and Families,Social Care,Third Party Payments,Services Rendered By Voluntary Sector,505,19/02/2019,1902-00640,0.00,684.00,R,Allied Healthcare,No
Http://opendatacommunities.org/id/metropolitan-district-council/leeds,Leeds City Council,28/02/2019,Adults and Health,Services For Older People - 65 And Over,Third Party Payments,Home Care,568,13/02/2019,1902-00641,0.00,13583.31,R,Allied Healthcare,No
Http://opendatacommunities.org/id/metropolitan-district-council/leeds,Leeds City Council,28/02/2019,Adults and Health,Services For Older People Under 65 P/Dis,Third Party Payments,Home Care,568,13/02/2019,1902-00642,0.00,8189.19,R,Allied Healthcare,No
Http://opendatacommunities.org/id/metropolitan-district-council/leeds,Leeds City Council,28/02/2019,Adults and Health,Services For Adults Under 65 Mental/Dis,Third Party Payments,Home Care,568,06/02/2019,1902-00643,0.00,302.86,R,Allied Healthcare,No
Http://opendatacommunities.org/id/metropolitan-district-council/leeds,Leeds City Council,28/02/2019,Adults and Health,Services For Older People - 65 And Over,Third Party Payments,Home Care,568,06/02/2019,1902-00644,0.00,23995.20,R,Allied Healthcare,No
Http://opendatacommunities.org/id/metropolitan-district-council/leeds,Leeds City Council,28/02/2019,Adults and Health,Services For Older People Under 65 P/Dis,Third Party Payments,Home Care,568,06/02/2019,1902-00645,0.00,1393.63,R,Allied Healthcare,No
Http://opendatacommunities.org/id/metropolitan-district-council/leeds,Leeds City Council As Accountable Body,28/02/2019,Social Services Pooled Budgets,Jcs For People With Learning Disabilitie,Third Party Payments,Home Care,568,06/02/2019,1902-00646,0.00,280.70,R,Allied Healthcare,No
Http://opendatacommunities.org/id/metropolitan-district-council/leeds,Leeds City Council,28/02/2019,Children and Families,Social Care,Transport,Public Transport Expenses,310,08/02/2019,1902-00647,0.00,3995.00,R,Allied Vehicles Ltd,No
Http://opendatacommunities.org/id/metropolitan-district-council/leeds,Leeds City Council,28/02/2019,Children and Families,Social Care,Third Party Payments,Services Rendered By Other Organisations,511,15/02/2019,1902-00648,0.00,233.75,R,REDACTED PERSONAL DATA,No
Http://opendatacommunities.org/id/metropolitan-district-council/leeds,Leeds City Council,28/02/2019,Resources and Housing,Strategic Housing Partnership & Support  ,Supplies and Services,Other Hired And Contracted Services,265,17/01/2019,1902-00649,0.00,111.95,R,Allpay *robin Hood Energy,Yes
Http://opendatacommunities.org/id/metropolitan-district-council/leeds,Leeds City Council,28/02/2019,Children and Families,Social Care  ,Transfer Payments,Leaving Care Allowances,634,22/01/2019,1902-00650,0.00,60.00,R,Allpay *robin Hood Energy,Yes
Http://opendatacommunities.org/id/metropolitan-district-council/leeds,Leeds City Council,28/02/2019,Children and Families,Social Care  ,Transfer Payments,Leaving Care Allowances,634,09/01/2019,1902-00651,0.00,30.00,R,Allpay *toto Energy,Yes
Http://opendatacommunities.org/id/metropolitan-district-council/leeds,Leeds City Council,28/02/2019,Resources and Housing,Finance,Supplies and Services,Bank Charges,263,01/02/2019,1902-00652,0.00,332.33,R,Allpay Limted,No
Http://opendatacommunities.org/id/metropolitan-district-council/leeds,Leeds City Council,28/02/2019,Resources and Housing,Finance,Supplies and Services,Bank Charges,263,01/02/2019,1902-00653,0.00,9663.04,R,Allpay Limted,No
Http://opendatacommunities.org/id/metropolitan-district-council/leeds,Leeds City Council,28/02/2019,Resources and Housing,Finance,Supplies and Services,Bank Charges,263,01/02/2019,1902-00654,0.00,4439.13,R,Allpay Limted,No
Http://opendatacommunities.org/id/metropolitan-district-council/leeds,Leeds City Council,28/02/2019,Strategic Landlord,Housing Management,Supplies and Services,Other Hired And Contracted Services,265,07/02/2019,1902-00655,0.00,0.15,R,Allpay Limted,No
Http://opendatacommunities.org/id/metropolitan-district-council/leeds,Leeds City Council,28/02/2019,Strategic Landlord,Housing Management,Supplies and Services,Other Hired And Contracted Services,265,07/02/2019,1902-00656,0.00,254.01,R,Allpay Limted,No
Http://opendatacommunities.org/id/metropolitan-district-council/leeds,Leeds City Council,28/02/2019,Strategic Landlord,Housing Management,Supplies and Services,Other Hired And Contracted Services,265,07/02/2019,1902-00657,0.00,10.17,R,Allpay Limted,No
Http://opendatacommunities.org/id/metropolitan-district-council/leeds,Leeds City Council,28/02/2019,Resources and Housing,Finance,Supplies and Services,Bank Charges,263,01/02/2019,1902-00658,0.00,7.24,R,Allpay Limted,No
Http://opendatacommunities.org/id/metropolitan-district-council/leeds,Leeds City Council,28/02/2019,Resources and Housing,Finance,Supplies and Services,Bank Charges,263,01/02/2019,1902-00659,0.00,2772.54,R,Allpay Limted,No
Http://opendatacommunities.org/id/metropolitan-district-council/leeds,Leeds City Council,28/02/2019,Resources and Housing,Finance,Supplies and Services,Bank Charges,263,01/02/2019,1902-00660,0.00,101.62,R,Allpay Limted,No
Http://opendatacommunities.org/id/metropolitan-district-council/leeds,Leeds City Council,28/02/2019,Resources and Housing,Leeds Building Services,Transport,Fuel (Non LCC Supplies),321,12/02/2019,1902-00661,0.00,27.30,R,Allstar Business Solutions Ltd,No
Http://opendatacommunities.org/id/metropolitan-district-council/leeds,Leeds City Council,28/02/2019,Resources and Housing,Leeds Building Services,Transport,Fuel (Non LCC Supplies),321,28/02/2019,1902-00662,0.00,85.68,R,Allstar Business Solutions Ltd,No
Http://opendatacommunities.org/id/metropolitan-district-council/leeds,Leeds City Council,28/02/2019,Resources and Housing,Democratic Services,Transport,Fuel (Non LCC Supplies),321,07/02/2019,1902-00663,0.00,4.18,R,Allstar Business Solutions Ltd,No
Http://opendatacommunities.org/id/metropolitan-district-council/leeds,Leeds City Council,28/02/2019,Communities and Environment,Parks and Countryside,Transport,Fuel (Non LCC Supplies),321,07/02/2019,1902-00664,0.00,675.39,R,Allstar Business Solutions Ltd,No
Http://opendatacommunities.org/id/metropolitan-district-council/leeds,Leeds City Council,28/02/2019,City Development,Highways,Transport,Fuel (Non LCC Supplies),321,07/02/2019,1902-00665,0.00,346.53,R,Allstar Business Solutions Ltd,No
Http://opendatacommunities.org/id/metropolitan-district-council/leeds,Leeds City Council,28/02/2019,Children and Families,Learning,Transport,Fuel (Non LCC Supplies),321,07/02/2019,1902-00666,0.00,1444.29,R,Allstar Business Solutions Ltd,No
Http://opendatacommunities.org/id/metropolitan-district-council/leeds,Leeds City Council,28/02/2019,Children and Families,Social Care,Support Services,Legal Disbursements,411,18/02/2019,1902-00667,0.00,179.67,R,Alphabiolabs,No
Http://opendatacommunities.org/id/metropolitan-district-council/leeds,Leeds City Council,28/02/2019,Children and Families,Social Care,Support Services,Legal Disbursements,411,13/02/2019,1902-00668,0.00,133.01,R,Alphabiolabs,No
Http://opendatacommunities.org/id/metropolitan-district-council/leeds,Leeds City Council,28/02/2019,Children and Families,Social Care,Support Services,Legal Disbursements,411,15/02/2019,1902-00669,0.00,699.00,R,Alphabiolabs,No
Http://opendatacommunities.org/id/metropolitan-district-council/leeds,Leeds City Council,28/02/2019,Children and Families,Social Care,Support Services,Legal Disbursements,411,01/02/2019,1902-00670,0.00,210.00,R,Alphabiolabs,No
Http://opendatacommunities.org/id/metropolitan-district-council/leeds,Leeds City Council,28/02/2019,Children and Families,Social Care,Support Services,Legal Disbursements,411,01/02/2019,1902-00671,0.00,180.80,R,Alphabiolabs,No
Http://opendatacommunities.org/id/metropolitan-district-council/leeds,Leeds City Council,28/02/2019,Children and Families,Social Care,Support Services,Legal Disbursements,411,08/02/2019,1902-00672,0.00,248.00,R,Alphabiolabs,No
Http://opendatacommunities.org/id/metropolitan-district-council/leeds,Leeds City Council,28/02/2019,Children and Families,Social Care,Support Services,Legal Disbursements,411,13/02/2019,1902-00673,0.00,425.00,R,Alphabiolabs,No
Http://opendatacommunities.org/id/metropolitan-district-council/leeds,Leeds City Council,28/02/2019,Children and Families,Social Care,Support Services,Legal Disbursements,411,13/02/2019,1902-00674,0.00,155.00,R,Alphabiolabs,No
Http://opendatacommunities.org/id/metropolitan-district-council/leeds,Leeds City Council,28/02/2019,Children and Families,Social Care,Support Services,Legal Disbursements,411,15/02/2019,1902-00675,0.00,286.67,R,Alphabiolabs,No
Http://opendatacommunities.org/id/metropolitan-district-council/leeds,Leeds City Council,28/02/2019,Children and Families,Social Care,Support Services,Legal Disbursements,411,22/02/2019,1902-00676,0.00,320.00,R,Alphabiolabs,No
Http://opendatacommunities.org/id/metropolitan-district-council/leeds,Leeds City Council,28/02/2019,Children and Families,Social Care,Support Services,Legal Disbursements,411,22/02/2019,1902-00677,0.00,263.47,R,Alphabiolabs,No
Http://opendatacommunities.org/id/metropolitan-district-council/leeds,Leeds City Council,28/02/2019,Children and Families,Social Care,Support Services,Legal Disbursements,411,22/02/2019,1902-00678,0.00,112.25,R,Alphabiolabs,No
Http://opendatacommunities.org/id/metropolitan-district-council/leeds,Leeds City Council,28/02/2019,Children and Families,Social Care,Support Services,Legal Disbursements,411,27/02/2019,1902-00679,0.00,249.75,R,Alphabiolabs,No
Http://opendatacommunities.org/id/metropolitan-district-council/leeds,Leeds City Council,28/02/2019,Children and Families,Social Care,Support Services,Legal Disbursements,411,27/02/2019,1902-00680,0.00,216.33,R,Alphabiolabs,No
Http://opendatacommunities.org/id/metropolitan-district-council/leeds,Leeds City Council,28/02/2019,Children and Families,Social Care,Support Services,Legal Disbursements,411,27/02/2019,1902-00681,0.00,70.00,R,Alphabiolabs,No
Http://opendatacommunities.org/id/metropolitan-district-council/leeds,Leeds City Council,28/02/2019,Children and Families,Social Care,Support Services,Legal Disbursements,411,27/02/2019,1902-00682,0.00,152.50,R,Alphabiolabs,No
Http://opendatacommunities.org/id/metropolitan-district-council/leeds,Leeds City Council,28/02/2019,Children and Families,Social Care,Support Services,Legal Disbursements,411,27/02/2019,1902-00683,0.00,155.00,R,Alphabiolabs,No
Http://opendatacommunities.org/id/metropolitan-district-council/leeds,Leeds City Council,28/02/2019,Communities and Environment,Environmental Health,Supplies and Services,Other Hired And Contracted Services,265,18/02/2019,1902-00684,0.00,84.23,R,Als Environmental Limited,No
Http://opendatacommunities.org/id/metropolitan-district-council/leeds,Leeds City Council,28/02/2019,Communities and Environment,Environmental Health,Supplies and Services,Other Hired And Contracted Services,265,18/02/2019,1902-00685,0.00,100.96,R,Als Environmental Limited,No
Http://opendatacommunities.org/id/metropolitan-district-council/leeds,Leeds City Council,28/02/2019,City Development,Libraries  Arts & Heritage,Supplies and Services,Other Hired And Contracted Services,265,20/02/2019,1902-00686,0.00,592.32,R,Altitude Film Distribution Limited,No
Http://opendatacommunities.org/id/metropolitan-district-council/leeds,Leeds City Council,28/02/2019,City Development,Libraries  Arts & Heritage,Supplies and Services,Other Hired And Contracted Services,265,20/02/2019,1902-00687,0.00,313.82,R,Altitude Film Distribution Limited,No
Http://opendatacommunities.org/id/metropolitan-district-council/leeds,Leeds City Council,28/02/2019,Adults and Health,Public Health,Third Party Payments,Public Health Commissioned Services,526,19/02/2019,1902-00688,0.00,1780.00,R,Alwoodley Medical Centre,No
Http://opendatacommunities.org/id/metropolitan-district-council/leeds,Leeds City Council,28/02/2019,Strategic Accounts,Miscellaneous,Supplies and Services,Non-Recurring Grants,227,11/02/2019,1902-00689,0.00,150.00,R,Alwoodley Park Lunch Club,No
Http://opendatacommunities.org/id/metropolitan-district-council/leeds,Leeds City Council,28/02/2019,Communities and Environment,Communities,Supplies and Services,Other Hired And Contracted Services,265,22/02/2019,1902-00690,0.00,25.00,R,REDACTED PERSONAL DATA,No
Http://opendatacommunities.org/id/metropolitan-district-council/leeds,Leeds City Council,28/02/2019,Communities and Environment,Communities,Supplies and Services,Other Hired And Contracted Services,265,01/02/2019,1902-00691,0.00,25.00,R,REDACTED PERSONAL DATA,No
Http://opendatacommunities.org/id/metropolitan-district-council/leeds,Leeds City Council,28/02/2019,Resources and Housing,Strategic Housing Partnership & Support,Supplies and Services,Other Hired And Contracted Services,265,20/02/2019,1902-00692,0.00,1785.00,R,Amalida Properties,No
Http://opendatacommunities.org/id/metropolitan-district-council/leeds,Leeds City Council,28/02/2019,Children and Families,Social Care,Third Party Payments,Services Rendered By Other Organisations,511,15/02/2019,1902-00693,0.00,623.34,R,REDACTED PERSONAL DATA,No
Http://opendatacommunities.org/id/metropolitan-district-council/leeds,Leeds City Council,28/02/2019,Children and Families,Social Care,Third Party Payments,Services Rendered By Other Organisations,511,15/02/2019,1902-00694,0.00,141.67,R,REDACTED PERSONAL DATA,No
Http://opendatacommunities.org/id/metropolitan-district-council/leeds,Leeds City Council,28/02/2019,Children and Families,Social Care,Third Party Payments,Services Rendered By Other Organisations,511,15/02/2019,1902-00695,0.00,230.21,R,REDACTED PERSONAL DATA,No
Http://opendatacommunities.org/id/metropolitan-district-council/leeds,Leeds City Council,28/02/2019,Adults and Health,Services For Adults Under 65 Mental/Dis,Support Services,Legal Disbursements,411,26/02/2019,1902-00696,0.00,1293.40,R,Amanda Murphy Limited,No
Http://opendatacommunities.org/id/metropolitan-district-council/leeds,Leeds City Council,28/02/2019,Resources and Housing,Strategic Housing Partnership & Support,Supplies and Services,Other Hired And Contracted Services,265,28/02/2019,1902-00697,0.00,1500.00,R,REDACTED PERSONAL DATA,No
Http://opendatacommunities.org/id/metropolitan-district-council/leeds,Leeds City Council,28/02/2019,Children and Families,Social Care,Third Party Payments,Services Rendered By Other Organisations,511,20/02/2019,1902-00698,0.00,561.00,R,REDACTED PERSONAL DATA,No
Http://opendatacommunities.org/id/metropolitan-district-council/leeds,Leeds City Council,28/02/2019,Children and Families,Social Care,Third Party Payments,Services Rendered By Other Organisations,511,26/02/2019,1902-00699,0.00,213.33,R,REDACTED PERSONAL DATA,No
Http://opendatacommunities.org/id/metropolitan-district-council/leeds,Leeds City Council,28/02/2019,Resources and Housing,Shared Services,Supplies and Services,Other Hired And Contracted Services,265,18/02/2019,1902-00700,0.00,123.92,R,Amari Plastics Plc,No
Http://opendatacommunities.org/id/metropolitan-district-council/leeds,Leeds City Council,28/02/2019,Resources and Housing,Leeds Building Services,Supplies and Services,Operational Materials,205,19/02/2019,1902-00701,0.00,48.24,R,Amari Plastics Plc,No
Http://opendatacommunities.org/id/metropolitan-district-council/leeds,Leeds City Council,28/02/2019,Resources and Housing,Leeds Building Services,Supplies and Services,Operational Materials,205,19/02/2019,1902-00702,0.00,83.68,R,Amari Plastics Plc,No
Http://opendatacommunities.org/id/metropolitan-district-council/leeds,Leeds City Council,28/02/2019,Resources and Housing,Shared Services,Supplies and Services,Operational Materials,205,14/02/2019,1902-00703,0.00,371.76,R,Amari Plastics Plc,No
Http://opendatacommunities.org/id/metropolitan-district-council/leeds,Leeds City Council,28/02/2019,Children and Families,Social Care,Third Party Payments,Services Rendered By Other Organisations,511,20/02/2019,1902-00704,0.00,3213.00,R,Amazing Grace Early Years Childcare,No
Http://opendatacommunities.org/id/metropolitan-district-council/leeds,Leeds City Council,28/02/2019,Children and Families,Social Care,Third Party Payments,Services Rendered By Other Organisations,511,15/02/2019,1902-00705,0.00,8415.00,R,Amazing Grace Early Years Childcare,No
Http://opendatacommunities.org/id/metropolitan-district-council/leeds,Leeds City Council,28/02/2019,Children and Families,Social Care,Third Party Payments,Services Rendered By Other Organisations,511,26/02/2019,1902-00706,0.00,2176.33,R,Amazing Grace Early Years Childcare,No
Http://opendatacommunities.org/id/metropolitan-district-council/leeds,Leeds City Council,28/02/2019,City Development,Recreation,Supplies and Services,Operational Furniture And Equipment,203,18/02/2019,1902-00707,0.00,407.20,R,Amazon Leisure Uk Ltd,No
Http://opendatacommunities.org/id/metropolitan-district-council/leeds,Leeds City Council,28/02/2019,City Development,Recreation,Supplies and Services,Operational Furniture And Equipment,203,08/02/2019,1902-00708,0.00,600.93,R,Amazon Leisure Uk Ltd,No
Http://opendatacommunities.org/id/metropolitan-district-council/leeds,Leeds City Council,28/02/2019,City Development,Recreation,Supplies and Services,Operational Furniture And Equipment,203,20/02/2019,1902-00709,0.00,378.00,R,Amazon Leisure Uk Ltd,No
Http://opendatacommunities.org/id/metropolitan-district-council/leeds,Leeds City Council,28/02/2019,City Development,Recreation,Supplies and Services,Operational Furniture And Equipment,203,27/02/2019,1902-00710,0.00,105.00,R,Amazon Leisure Uk Ltd,No
Http://opendatacommunities.org/id/metropolitan-district-council/leeds,Leeds City Council,28/02/2019,Communities and Environment,Communities  ,Supplies and Services,'Well Being' Large Grants Projects,230,03/01/2019,1902-00711,0.00,-7.99,R,Amazon Prime,Yes
Http://opendatacommunities.org/id/metropolitan-district-council/leeds,Leeds City Council,28/02/2019,Children and Families,Social Care  ,Supplies and Services,Operational Furniture And Equipment,203,18/01/2019,1902-00712,0.00,-7.99,R,Amazon Prime,Yes
Http://opendatacommunities.org/id/metropolitan-district-council/leeds,Leeds City Council,28/02/2019,Children and Families,Social Care  ,Supplies and Services,Operational Furniture And Equipment,203,18/01/2019,1902-00713,0.00,-7.99,R,Amazon Prime,Yes
Http://opendatacommunities.org/id/metropolitan-district-council/leeds,Leeds City Council,28/02/2019,Children and Families,Social Care  ,Supplies and Services,Operational Furniture And Equipment,203,18/01/2019,1902-00714,0.00,-7.99,R,Amazon Prime,Yes
Http://opendatacommunities.org/id/metropolitan-district-council/leeds,Leeds City Council,28/02/2019,Children and Families,Social Care  ,Supplies and Services,Operational Furniture And Equipment,203,18/01/2019,1902-00715,0.00,-7.99,R,Amazon Prime,Yes
Http://opendatacommunities.org/id/metropolitan-district-council/leeds,Leeds City Council,28/02/2019,Children and Families,Social Care  ,Supplies and Services,Operational Furniture And Equipment,203,18/01/2019,1902-00716,0.00,-7.99,R,Amazon Prime Amzn.Co.Uk/P,Yes
Http://opendatacommunities.org/id/metropolitan-district-council/leeds,Leeds City Council,28/02/2019,Communities and Environment,Environmental Action (City Centre)  ,Premises,General Maintenance,104,06/01/2019,1902-00717,0.00,7.99,R,Amazon Prime*mb1ou3ns4,Yes
Http://opendatacommunities.org/id/metropolitan-district-council/leeds,Leeds City Council,28/02/2019,Resources and Housing,Leeds Building Services  ,Supplies and Services,Office Consumables,210,08/01/2019,1902-00718,0.00,7.99,R,Amazon Prime*mb2400t94,Yes
Http://opendatacommunities.org/id/metropolitan-district-council/leeds,Leeds City Council,28/02/2019,Resources and Housing,Commercial Services  ,Supplies and Services,Operational Materials,205,27/01/2019,1902-00719,0.00,7.99,R,Amazon Prime*mb5k24rc4,Yes
Http://opendatacommunities.org/id/metropolitan-district-council/leeds,Leeds City Council,28/02/2019,City Development,Libraries  Arts & Heritage  ,Supplies and Services,Other Hired And Contracted Services,265,14/01/2019,1902-00720,0.00,7.99,R,Amazon Prime*mb5wz9vw4,Yes
Http://opendatacommunities.org/id/metropolitan-district-council/leeds,Leeds City Council,28/02/2019,Communities and Environment,Parks And Countryside  ,Supplies and Services,Office Consumables,210,19/01/2019,1902-00721,0.00,7.99,R,Amazon Prime*mb6ye86d4,Yes
Http://opendatacommunities.org/id/metropolitan-district-council/leeds,Leeds City Council,28/02/2019,City Development,Libraries  Arts & Heritage  ,Supplies and Services,Operational Materials,205,09/01/2019,1902-00722,0.00,7.99,R,Amazon Prime*mb7l81e54,Yes
Http://opendatacommunities.org/id/metropolitan-district-council/leeds,Leeds City Council,28/02/2019,City Development,Highways  ,Supplies and Services,Operational Furniture And Equipment,203,24/01/2019,1902-00723,0.00,6.66,R,Amazon Prime*mb9oo59w4,Yes
Http://opendatacommunities.org/id/metropolitan-district-council/leeds,Leeds City Council,28/02/2019,Communities and Environment,Customer Access  ,Supplies and Services,Operational Materials,205,25/04/2018,1902-00724,0.00,51.65,R,Amazon UK Marketplace,Yes
Http://opendatacommunities.org/id/metropolitan-district-council/leeds,Leeds City Council,28/02/2019,City Development,Libraries  Arts & Heritage  ,Supplies and Services,Books & Audio-Visual Materials,206,29/05/2018,1902-00725,0.00,15.92,R,Amazon UK Marketplace,Yes
Http://opendatacommunities.org/id/metropolitan-district-council/leeds,Leeds City Council,28/02/2019,Children and Families,Social Care  ,Supplies and Services,Office Consumables,210,18/10/2018,1902-00726,0.00,3.90,R,Amazon.Co.Uk,Yes
Http://opendatacommunities.org/id/metropolitan-district-council/leeds,Leeds City Council,28/02/2019,Children and Families,Partnerships & Health  ,Supplies and Services,Office Consumables,210,03/10/2018,1902-00727,0.00,22.99,R,Amazon.Co.Uk Amazon.Co.Uk,Yes
Http://opendatacommunities.org/id/metropolitan-district-council/leeds,Leeds City Council,28/02/2019,Resources and Housing,Shared Services  ,Supplies and Services,Office Consumables,210,15/11/2018,1902-00728,0.00,-29.85,R,Amazon.Co.Uk Amazon.Co.Uk,Yes
Http://opendatacommunities.org/id/metropolitan-district-council/leeds,Leeds City Council,28/02/2019,Communities and Environment,Customer Access  ,Supplies and Services,Office Consumables,210,26/11/2018,1902-00729,0.00,67.14,R,Amazon.Co.Uk*m09no6ca4 Am,Yes
Http://opendatacommunities.org/id/metropolitan-district-council/leeds,Leeds City Council,28/02/2019,Children and Families,Social Care  ,Supplies and Services,Teaching Materials,202,31/12/2018,1902-00730,0.00,80.17,R,Amazon.Co.Uk*m21i70924 Am,Yes
Http://opendatacommunities.org/id/metropolitan-district-council/leeds,Leeds City Council,28/02/2019,Children and Families,Social Care  ,Supplies and Services,Operational Furniture And Equipment,203,30/12/2018,1902-00731,0.00,29.28,R,Amazon.Co.Uk*m290v89v4 Am,Yes
Http://opendatacommunities.org/id/metropolitan-district-council/leeds,Leeds City Council,28/02/2019,Children and Families,Social Care  ,Supplies and Services,Office Consumables,210,21/11/2018,1902-00732,0.00,6.93,R,Amazon.Co.Uk*m826u46f4 Am,Yes
Http://opendatacommunities.org/id/metropolitan-district-council/leeds,Leeds City Council,28/02/2019,Children and Families,Social Care  ,Supplies and Services,Office Consumables,210,21/11/2018,1902-00733,0.00,1.97,R,Amazon.Co.Uk*m85kz1qy4 Am,Yes
Http://opendatacommunities.org/id/metropolitan-district-council/leeds,Leeds City Council,28/02/2019,Communities and Environment,Community Safety  ,Supplies and Services,Operational Materials,205,21/11/2018,1902-00734,0.00,18.34,R,Amazon.Co.Uk*m874n48u4 Am,Yes
Http://opendatacommunities.org/id/metropolitan-district-council/leeds,Leeds City Council,28/02/2019,Children and Families,Social Care  ,Employees,Occupational Health,85,25/11/2018,1902-00735,0.00,17.03,R,Amazon.Co.Uk*m87sr3rn4 Am,Yes
Http://opendatacommunities.org/id/metropolitan-district-council/leeds,Leeds City Council,28/02/2019,Children and Families,Social Care  ,Supplies and Services,Office Consumables,210,21/11/2018,1902-00736,0.00,19.67,R,Amazon.Co.Uk*m88qh3qd4 Am,Yes
Http://opendatacommunities.org/id/metropolitan-district-council/leeds,Leeds City Council,28/02/2019,Children and Families,Social Care  ,Employees,Occupational Health,85,25/11/2018,1902-00737,0.00,14.29,R,Amazon.Co.Uk*m88qi8re4 Am,Yes
Http://opendatacommunities.org/id/metropolitan-district-council/leeds,Leeds City Council,28/02/2019,Children and Families,Social Care  ,Supplies and Services,Office Consumables,210,23/01/2019,1902-00738,0.00,8.97,R,Amazon.Co.Uk*mb08g27l4,Yes
Http://opendatacommunities.org/id/metropolitan-district-council/leeds,Leeds City Council,28/02/2019,Children and Families,Social Care  ,Supplies and Services,Computer Software & Equipment,214,06/01/2019,1902-00739,0.00,21.72,R,Amazon.Co.Uk*mb0ce3nl4 Am,Yes
Http://opendatacommunities.org/id/metropolitan-district-council/leeds,Leeds City Council,28/02/2019,Adults and Health,Services For Older People - 65 And Over  ,Premises,Cleaning Maintenance & Toiletries,127,20/01/2019,1902-00740,0.00,14.44,R,Amazon.Co.Uk*mb0dp4d64,Yes
Http://opendatacommunities.org/id/metropolitan-district-council/leeds,Leeds City Council,28/02/2019,City Development,Libraries  Arts & Heritage  ,Supplies and Services,Operational Materials,205,03/01/2019,1902-00741,0.00,16.66,R,Amazon.Co.Uk*mb0gb94j4 Am,Yes
Http://opendatacommunities.org/id/metropolitan-district-council/leeds,Leeds City Council,28/02/2019,Children and Families,Social Care  ,Supplies and Services,Teaching Materials,202,21/01/2019,1902-00742,0.00,5.99,R,Amazon.Co.Uk*mb0kw1s64,Yes
Http://opendatacommunities.org/id/metropolitan-district-council/leeds,Leeds City Council,28/02/2019,Children and Families,Social Care  ,Supplies and Services,Teaching Materials,202,18/01/2019,1902-00743,0.00,6.99,R,Amazon.Co.Uk*mb0r46qu4,Yes
Http://opendatacommunities.org/id/metropolitan-district-council/leeds,Leeds City Council,28/02/2019,Children and Families,Social Care  ,Supplies and Services,Teaching Materials,202,16/01/2019,1902-00744,0.00,9.84,R,Amazon.Co.Uk*mb0yw5h74 Am,Yes
Http://opendatacommunities.org/id/metropolitan-district-council/leeds,Leeds City Council,28/02/2019,Communities and Environment,Parks And Countryside  ,Supplies and Services,Office Consumables,210,23/01/2019,1902-00745,0.00,16.99,R,Amazon.Co.Uk*mb13277o4,Yes
Http://opendatacommunities.org/id/metropolitan-district-council/leeds,Leeds City Council,28/02/2019,Communities and Environment,Benefits  Wlefare And Poverty  ,Employees,Best Value Training,70,08/01/2019,1902-00746,0.00,112.00,R,Amazon.Co.Uk*mb1684ae4,Yes
Http://opendatacommunities.org/id/metropolitan-district-council/leeds,Leeds City Council,28/02/2019,Adults and Health,Services For Adults Under 65 Learn/Dis  ,Supplies and Services,Office Furniture & Equipment,201,22/01/2019,1902-00747,0.00,39.93,R,Amazon.Co.Uk*mb18g1284 Am,Yes
Http://opendatacommunities.org/id/metropolitan-district-council/leeds,Leeds City Council,28/02/2019,Children and Families,Social Care  ,Supplies and Services,Teaching Materials,202,14/01/2019,1902-00748,0.00,46.22,R,Amazon.Co.Uk*mb1kh5vl4 Am,Yes
Http://opendatacommunities.org/id/metropolitan-district-council/leeds,Leeds City Council,28/02/2019,Children and Families,Social Care  ,Supplies and Services,Operational Furniture And Equipment,203,17/01/2019,1902-00749,0.00,66.52,R,Amazon.Co.Uk*mb1n12bv4,Yes
Http://opendatacommunities.org/id/metropolitan-district-council/leeds,Leeds City Council,28/02/2019,City Development,Recreation  ,Supplies and Services,Operational Furniture And Equipment,203,10/01/2019,1902-00750,0.00,41.25,R,Amazon.Co.Uk*mb1oy41v4,Yes
Http://opendatacommunities.org/id/metropolitan-district-council/leeds,Leeds City Council,28/02/2019,Resources and Housing,Commercial Services  ,Supplies and Services,Operational Materials,205,24/01/2019,1902-00751,0.00,81.98,R,Amazon.Co.Uk*mb1r57ut4 Am,Yes
Http://opendatacommunities.org/id/metropolitan-district-council/leeds,Leeds City Council,28/02/2019,Resources and Housing,Leeds Building Services  ,Supplies and Services,Computer Software & Equipment,214,03/01/2019,1902-00752,0.00,20.33,R,Amazon.Co.Uk*mb24m9f74,Yes
Http://opendatacommunities.org/id/metropolitan-district-council/leeds,Leeds City Council,28/02/2019,Children and Families,Learning  ,Supplies and Services,Teaching Materials,202,23/01/2019,1902-00753,0.00,20.99,R,Amazon.Co.Uk*mb27r37c4,Yes
Http://opendatacommunities.org/id/metropolitan-district-council/leeds,Leeds City Council,28/02/2019,Children and Families,Learning  ,Supplies and Services,Teaching Materials,202,08/01/2019,1902-00754,0.00,73.42,R,Amazon.Co.Uk*mb2ag3tm4,Yes
Http://opendatacommunities.org/id/metropolitan-district-council/leeds,Leeds City Council,28/02/2019,Children and Families,Social Care  ,Supplies and Services,Teaching Materials,202,11/01/2019,1902-00755,0.00,34.99,R,Amazon.Co.Uk*mb2er9pz4 Am,Yes
Http://opendatacommunities.org/id/metropolitan-district-council/leeds,Leeds City Council,28/02/2019,City Development,Libraries  Arts & Heritage  ,Supplies and Services,Books & Audio-Visual Materials,206,20/01/2019,1902-00756,0.00,12.49,R,Amazon.Co.Uk*mb2fs9d14,Yes
Http://opendatacommunities.org/id/metropolitan-district-council/leeds,Leeds City Council,28/02/2019,City Development,Libraries  Arts & Heritage  ,Supplies and Services,Operational Materials,205,28/01/2019,1902-00757,0.00,65.47,R,Amazon.Co.Uk*mb2ix0ym4,Yes
Http://opendatacommunities.org/id/metropolitan-district-council/leeds,Leeds City Council,28/02/2019,Resources and Housing,Facilities Management  ,Supplies and Services,Operational Materials,205,08/01/2019,1902-00758,0.00,3.33,R,Amazon.Co.Uk*mb2rt5a34,Yes
Http://opendatacommunities.org/id/metropolitan-district-council/leeds,Leeds City Council,28/02/2019,Resources and Housing,Finance  ,Supplies and Services,Computer Software & Equipment,214,13/01/2019,1902-00759,0.00,50.28,R,Amazon.Co.Uk*mb2ur3xx4 Am,Yes
Http://opendatacommunities.org/id/metropolitan-district-council/leeds,Leeds City Council,28/02/2019,Children and Families,Learning  ,Supplies and Services,Teaching Materials,202,12/01/2019,1902-00760,0.00,9.99,R,Amazon.Co.Uk*mb2v30gq4,Yes
Http://opendatacommunities.org/id/metropolitan-district-council/leeds,Leeds City Council,28/02/2019,Resources and Housing,Facilities Management  ,Supplies and Services,Operational Materials,205,08/01/2019,1902-00761,0.00,7.84,R,Amazon.Co.Uk*mb30p8a64,Yes
Http://opendatacommunities.org/id/metropolitan-district-council/leeds,Leeds City Council,28/02/2019,City Development,Libraries  Arts & Heritage  ,Supplies and Services,Operational Furniture And Equipment,203,08/01/2019,1902-00762,0.00,11.77,R,Amazon.Co.Uk*mb30s6a54 Am,Yes
Http://opendatacommunities.org/id/metropolitan-district-council/leeds,Leeds City Council,28/02/2019,City Development,Libraries  Arts & Heritage  ,Supplies and Services,Books & Audio-Visual Materials,206,15/01/2019,1902-00763,0.00,9.73,R,Amazon.Co.Uk*mb31t55q4,Yes
Http://opendatacommunities.org/id/metropolitan-district-council/leeds,Leeds City Council,28/02/2019,Resources and Housing,Legal Services  ,Supplies and Services,Operational Materials,205,12/01/2019,1902-00764,0.00,46.88,R,Amazon.Co.Uk*mb3625gw4 Am,Yes
Http://opendatacommunities.org/id/metropolitan-district-council/leeds,Leeds City Council,28/02/2019,Children and Families,Learning  ,Supplies and Services,Teaching Materials,202,23/01/2019,1902-00765,0.00,38.99,R,Amazon.Co.Uk*mb37a67d4 Am,Yes
Http://opendatacommunities.org/id/metropolitan-district-council/leeds,Leeds City Council,28/02/2019,City Development,Libraries  Arts & Heritage  ,Supplies and Services,Operational Materials,205,16/01/2019,1902-00766,0.00,5.19,R,Amazon.Co.Uk*mb3aw0hp4,Yes
Http://opendatacommunities.org/id/metropolitan-district-council/leeds,Leeds City Council,28/02/2019,Children and Families,Social Care  ,Supplies and Services,Office Consumables,210,23/01/2019,1902-00767,0.00,5.45,R,Amazon.Co.Uk*mb3d727w4 Am,Yes
Http://opendatacommunities.org/id/metropolitan-district-council/leeds,Leeds City Council,28/02/2019,Children and Families,Social Care  ,Supplies and Services,Teaching Furniture & Equipment,207,27/01/2019,1902-00768,0.00,41.54,R,Amazon.Co.Uk*mb3ju6rd4 Am,Yes
Http://opendatacommunities.org/id/metropolitan-district-council/leeds,Leeds City Council,28/02/2019,Children and Families,Social Care  ,Supplies and Services,Teaching Materials,202,15/01/2019,1902-00769,0.00,12.80,R,Amazon.Co.Uk*mb3nv45r4,Yes
Http://opendatacommunities.org/id/metropolitan-district-council/leeds,Leeds City Council,28/02/2019,Communities and Environment,Environmental Health  ,Supplies and Services,Operational Furniture And Equipment,203,03/01/2019,1902-00770,0.00,29.14,R,Amazon.Co.Uk*mb3qb24z4,Yes
Http://opendatacommunities.org/id/metropolitan-district-council/leeds,Leeds City Council,28/02/2019,Resources and Housing,Leeds Building Services  ,Supplies and Services,Computer Software & Equipment,214,08/01/2019,1902-00771,0.00,6.82,R,Amazon.Co.Uk*mb3rk3aq4 Am,Yes
Http://opendatacommunities.org/id/metropolitan-district-council/leeds,Leeds City Council,28/02/2019,Resources and Housing,Commercial Services  ,Supplies and Services,Operational Materials,205,25/01/2019,1902-00772,0.00,29.99,R,Amazon.Co.Uk*mb3t94964,Yes
Http://opendatacommunities.org/id/metropolitan-district-council/leeds,Leeds City Council,28/02/2019,Children and Families,Social Care  ,Supplies and Services,Clothing & Uniforms,241,24/01/2019,1902-00773,0.00,46.22,R,Amazon.Co.Uk*mb48k99l4,Yes
